{"text_format":"1","workbook":"xlsx","n_sheets":19,"sheets":["Spis treści","nazwa użytkownika","Intro","Podsumowanie kosztów","Koszty developmentu","Koszty uruchomienia","Koszty produkcji - szczegółowy","Kosztorys szczeg. - zmiany TVP","Podsumowanie koszt - zmiany TVP","Obsada aktorska","Wynajem obiektów zdjęciowych","Budowa dekoracji","Raport kosztów","Cost to cost","Notatnik","check szczeg","check pods","check uruch","check zmian szczeg"],"not_rendered":{"charts":0,"images":10,"macros":1,"external_links":0,"defined_names":19,"comments":2,"pivot_tables":0},"unopened":[],"bounds":{"document_bytes":16777216,"sheet_cells":100000,"rows_first":2000,"rows_last":500,"rows_between":2000,"halvings":0,"cell_chars":16384,"cell_head_chars":4096},"cells_cut":0,"cells_raw":0,"read":"whole","date_system":"1900"}

{"sheet":"Spis treści","index":0,"n_rows":11,"n_cols":2,"rows_kept":11,"cut":false,"hidden":false,"merged":[]}
[]
[null,"Intro"]
[null,"Podsumowanie kosztów"]
[null,"Koszty uruchomienia"]
[null,"Koszty produkcji - szczegółowy"]
[null,"Obsada aktorska"]
[null,"Wynajem obiektów zdjęciowych"]
[null,"Budowa dekoracji"]
[null,"Raport kosztów"]
[null,"Cost to cost"]
[null,"Notatnik"]

{"sheet":"nazwa użytkownika","index":1,"n_rows":2,"n_cols":2,"rows_kept":2,"cut":false,"hidden":true,"merged":[]}
[]
[null,"m"]

{"sheet":"Intro","index":2,"n_rows":23,"n_cols":14,"rows_kept":23,"cut":false,"hidden":false,"merged":[[13,1,14,10],[17,1,17,10],[18,1,18,10],[16,1,16,10],[15,1,15,10],[9,1,9,13],[21,1,21,13],[22,1,25,13],[19,1,19,13]]}
[]
[]
[null,null,null,null,null,null,null,null,null,null,null,null,null,"Załącznik nr 6 do Uchwały nr 451/2017 z dn. 10.08.2017"]
[]
[]
[]
[]
[]
[]
[null,"KOSZTORYS - SERIALE / FILMY DOKUMENTALNE"]
[]
[null,null,null,null,null,null,null,null,null,null,null,"ver. 1.1"]
[null,"Instrukcja:"]
[null,"Opracowany kosztorys pozwala na analizę planowanych kosztów dotyczących realizacji projektu oraz bieżącą kontrolę wydatków. \nW celu prawidłowego korzystania z narzędzi należy zastosować się do niniejszej instrukcji. "]
[]
[null,"Na początku należy wypełnić informacje ogólne obejmujące założenia produkcyjne, harmonogram oraz strukturę finansowania (zakładka \"Podsumowanie kosztów\", zakres zaznaczony na pomarańczowo). Następnie należy wypełnić arkusz \"Koszty produkcji - szczegółowy\" . Wprowadzane dane odnoszą się do kosztorysu planowanego."]
[null,"W przypadku wystąpienia pozycji, która nie ma miejsca w kosztorysie należy uzupełnić pusty wiersz w odpowiedniej kategorii oraz wprowadzić opis kategorii szczegółowej."]
[null,"Prosimy o uważne czytanie komentarzy oraz załączenie wskazanych specyfikacji/list (obsada, obiekty, sprzęt).\nW arkuszu \"Notatnik\" mogą państwo wpisywać dodatkowe uwagi, notatki, wnioski."]
[null,"Arkusz \"Raport kosztów\", jest narzędziem pozwalającym na przeprowadzanie bieżącej kontroli kosztów ponoszonych na produkcję."]
[null,"W celu poprawnego działania pliku niezbędne jest włączenie zawartości makr !"]
[]
[null,"Prosimy o dokładne uzupełnianie komórek. Wpisane w kosztorysie jednostki są trwale obowiązujące i nie podlegają zmianie."]
[null,"Prosimy o przesłanie wypełnionych dokumentów zgodnie z postanowieniami Instrukcji współpracy \nTVP S.A. z Producentami zewnętrznymi."]

{"sheet":"Podsumowanie kosztów","index":3,"n_rows":66,"n_cols":9,"rows_kept":66,"cut":false,"hidden":false,"merged":[[20,5,23,5],[10,2,10,3],[3,2,3,3],[1,2,1,3],[5,2,5,3],[6,2,6,3],[7,2,7,3],[8,2,8,3],[9,2,9,3],[4,2,4,3],[2,2,2,3]]}
[]
[null,"Tytuł",null,null,null,"ver 1.1"]
[null,"Gatunek"]
[null,"Data sporządzenia"]
[null,"Numer wersji"]
[null,"Liczba odcinków",1]
[null,"Czas emisji"]
[null,"Format obrazu i dźwięku"]
[null,"Nośnik"]
[null,"Liczba dni zdjęciowych"]
[null,"Kontrahent"]
[]
[null,"L.p.","Kategoria wydatków","Budżet"]
[null,"0.","Koszty developmentu",{"$f":"'Koszty developmentu'!I41","v":0}]
[null,"0.1",{"$f":"'Koszty developmentu'!#REF!","v":{"$error":"#REF!"}},{"$f":"'Koszty developmentu'!#REF!","v":{"$error":"#REF!"}}]
[null,"0.2",{"$f":"'Koszty developmentu'!B9","v":"Opracowania literackie"},{"$f":"'Koszty developmentu'!I9","v":0}]
[null,"0.3",{"$f":"'Koszty developmentu'!#REF!","v":{"$error":"#REF!"}},{"$f":"'Koszty developmentu'!#REF!","v":{"$error":"#REF!"}}]
[null,"0.4",{"$f":"'Koszty developmentu'!B31","v":"Koszty podróży"},{"$f":"'Koszty developmentu'!I31","v":0}]
[null,"0.5",{"$f":"'Koszty developmentu'!B36","v":"Inne"},{"$f":"'Koszty developmentu'!I36","v":0}]
[null,null,"Koszty uruchomienia - jednorazowe",{"$f":"'Koszty uruchomienia'!I40","v":0},null,null,null,null,"Telenowela"]
[null,null,"Koszty produkcji:",null,null,"Koszty uruchomienia nie wliczają się do sumy kosztów produkcji wykazanych poniżej.",null,null,"Serial obyczajowy"]
[null,"1.",{"$f":"'Koszty produkcji - szczegółowy'!B2","v":"Prace literackie"},{"$f":"'Koszty produkcji - szczegółowy'!I2","v":0},null,null,null,null,"Serial historyczny"]
[null,"2.",{"$f":"'Koszty produkcji - szczegółowy'!B11","v":"Pion reżyserski"},{"$f":"'Koszty produkcji - szczegółowy'!I11","v":0},null,null,null,null,"Serial dokumentalny"]
[null,"3.",{"$f":"'Koszty produkcji - szczegółowy'!B21","v":"Pion produkcji"},{"$f":"'Koszty produkcji - szczegółowy'!I21","v":0},null,null,null,null,"Serial kryminalny"]
[null,"4.",{"$f":"'Koszty produkcji - szczegółowy'!B36","v":"Pion operatorski"},{"$f":"'Koszty produkcji - szczegółowy'!I36","v":0},null,null,null,null,"Serial paradokumentalny"]
[null,"5.",{"$f":"'Koszty produkcji - szczegółowy'!B52","v":"Pion scenografii "},{"$f":"'Koszty produkcji - szczegółowy'!I52","v":0},null,null,null,null,"Serial animowany"]
[null,"6.",{"$f":"'Koszty produkcji - szczegółowy'!B68","v":"Pion kostiumograficzny"},{"$f":"'Koszty produkcji - szczegółowy'!I68","v":0},null,null,null,null,"Serial komediowy"]
[null,"7.",{"$f":"'Koszty produkcji - szczegółowy'!B77","v":"Pion charakteryzatorski"},{"$f":"'Koszty produkcji - szczegółowy'!I77","v":0},null,null,null,null,"Sitcom"]
[null,"8.",{"$f":"'Koszty produkcji - szczegółowy'!B87","v":"Pion dźwiękowy"},{"$f":"'Koszty produkcji - szczegółowy'!I87","v":0},null,null,null,null,"Film dokumentalny"]
[null,"9.",{"$f":"'Koszty produkcji - szczegółowy'!B95","v":"Wykonawcy i odtwórcy"},{"$f":"'Koszty produkcji - szczegółowy'!I95","v":0}]
[null,"10.",{"$f":"'Koszty produkcji - szczegółowy'!B110","v":"Konsultacje"},{"$f":"'Koszty produkcji - szczegółowy'!I110","v":0}]
[null,"11.",{"$f":"'Koszty produkcji - szczegółowy'!B120","v":"Muzyka"},{"$f":"'Koszty produkcji - szczegółowy'!I120","v":0}]
[null,"12.",{"$f":"'Koszty produkcji - szczegółowy'!B130","v":"Technika zdjęciowa"},{"$f":"'Koszty produkcji - szczegółowy'!I130","v":0}]
[null,"13.",{"$f":"'Koszty produkcji - szczegółowy'!B154","v":"Scenografia i rekwizyty"},{"$f":"'Koszty produkcji - szczegółowy'!I154","v":0}]
[null,"14.",{"$f":"'Koszty produkcji - szczegółowy'!B174","v":"Kostiumy materiały"},{"$f":"'Koszty produkcji - szczegółowy'!I174","v":0}]
[null,"15.",{"$f":"'Koszty produkcji - szczegółowy'!B183","v":"Charakteryzacja materiały "},{"$f":"'Koszty produkcji - szczegółowy'!I183","v":0}]
[null,"16.",{"$f":"'Koszty produkcji - szczegółowy'!B190","v":"Postprodukcja - montaż i udźwiękowienie"},{"$f":"'Koszty produkcji - szczegółowy'!I190","v":0}]
[null,"17.",{"$f":"'Koszty produkcji - szczegółowy'!B212","v":"Usługi obce "},{"$f":"'Koszty produkcji - szczegółowy'!I212","v":0}]
[null,"18.",{"$f":"'Koszty produkcji - szczegółowy'!B230","v":"Koszty administracyjno - biurowe"},{"$f":"'Koszty produkcji - szczegółowy'!I230","v":0}]
[null,"19.",{"$f":"'Koszty produkcji - szczegółowy'!B239","v":"Transport"},{"$f":"'Koszty produkcji - szczegółowy'!I239","v":0}]
[null,"19a.",{"$f":"'Koszty produkcji - szczegółowy'!B240","v":"Okres przygotowawczy"},{"$f":"'Koszty produkcji - szczegółowy'!I240","v":0}]
[null,"19b.",{"$f":"'Koszty produkcji - szczegółowy'!B248","v":"Okres zdjęciowy"},{"$f":"'Koszty produkcji - szczegółowy'!I248","v":0}]
[null,"19c.",{"$f":"'Koszty produkcji - szczegółowy'!B270","v":"Okres likwidacji"},{"$f":"'Koszty produkcji - szczegółowy'!I270","v":0}]
[null,"20.",{"$f":"'Koszty produkcji - szczegółowy'!B277","v":"Delegacje,Hotele"},{"$f":"'Koszty produkcji - szczegółowy'!I277","v":0}]
[null,"20a.",{"$f":"'Koszty produkcji - szczegółowy'!B278","v":"Okres przygotowawczy"},{"$f":"'Koszty produkcji - szczegółowy'!I278","v":0}]
[null,"20b.",{"$f":"'Koszty produkcji - szczegółowy'!B282","v":"Okres zdjęciowy - ekipa"},{"$f":"'Koszty produkcji - szczegółowy'!I282","v":0}]
[null,"20c.",{"$f":"'Koszty produkcji - szczegółowy'!B286","v":"Okres zdjęciowy - aktorzy"},{"$f":"'Koszty produkcji - szczegółowy'!I286","v":0}]
[null,"20d.",{"$f":"'Koszty produkcji - szczegółowy'!B290","v":"Ryczałty samochodowe"},{"$f":"'Koszty produkcji - szczegółowy'!I290","v":0}]
[null,"21.",{"$f":"'Koszty produkcji - szczegółowy'!B293","v":"Promocja"},{"$f":"'Koszty produkcji - szczegółowy'!I293","v":0}]
[null,"22.",{"$f":"'Koszty produkcji - szczegółowy'!B299","v":"Inne zlecenia"},{"$f":"'Koszty produkcji - szczegółowy'!I299","v":0}]
[null,"A","RAZEM KOSZTY BEZPOŚREDNIE ",{"$f":"SUM(D22:D40,D44,D49:D50)","v":0}]
[null,null,"Średni koszt bezpośredni 1 odcinka",{"$f":"D51/C6","v":0}]
[null,null,"Narzut X%",0]
[null,"B","Narzut ",{"$f":"D53*D51","v":0}]
[]
[null,"C=A+B","Razem koszty",{"$f":"D51+D54","v":0}]
[]
[null,null,"Zysk X%",0]
[null,"D","Zysk",{"$f":"D56*D58","v":0}]
[]
[null,"E=C+D","Razem koszty netto",{"$f":"D56+D59","v":0}]
[null,null,"Średni koszt  1 odcinka po narzutach i zysku",{"$f":"D61/C6","v":0}]
[]
[null,"F","Podatek VAT 23%",{"$f":"D61*0.23","v":0}]
[]
[null,"G=E+F","Koszt brutto",{"$f":"D61+D64","v":0}]

{"sheet":"Koszty developmentu","index":4,"n_rows":44,"n_cols":14,"rows_kept":44,"cut":false,"hidden":true,"merged":[]}
[]
[null,null,null,null,null,null,null,null,null,null,null,null,null,"Development"]
[null,"KOSZTORYS serialu/filmu dokumentalnego:",{"$f":"'Podsumowanie kosztów'!C2","v":0}]
[]
[null,"Data rozpoczęcia developmentu:"]
[null,"Data zakończenia developmentu:"]
[]
["Lp.","Kategoria","Nazwa","W przypadku osób -wskazać imię i nazwisko, w przypadku sprzętu - wypełnić podając producenta, typ, model, opcje itp.","Jednostka miary","Ilość","X","Stawka","Suma","Źródło kosztów"]
["I","Opracowania literackie",null,null,null,null,null,null,{"$f":"SUM(I13:I29)","v":0}]
[null,null,"Storyline",null,null,null,null,null,{"$f":"H10*F10*G10","v":0},"Producent- zasoby własne oraz spółek powiązanych"]
[null,null,"Scenariusz",null,null,null,null,null,0,"Producent- zasoby własne oraz spółek powiązanych"]
[null,null,"Dialogi",null,null,null,null,null,{"$f":"H12*F12*G12","v":0},"Producent- zasoby własne oraz spółek powiązanych"]
[null,null,null,null,null,null,null,null,{"$f":"H13*F13*G13","v":0},"Producent- zasoby własne oraz spółek powiązanych"]
["II","Honoraria",null,null,null,null,null,null,{"$f":"SUM(I15:I20)","v":0}]
[null,null,"Reżyser (prace w okresie developmentu)",null,null,null,null,null,0,"Producent- zasoby własne oraz spółek powiązanych"]
[null,null,"Producent realizujący",null,null,null,null,null,0,"Producent- zasoby własne oraz spółek powiązanych"]
[null,null,"Kierownik produkcji",null,null,null,null,null,0,"Producent- zasoby własne oraz spółek powiązanych"]
[null,null,"Operator obrazu",null,null,null,null,null,0,"Producent- zasoby własne oraz spółek powiązanych"]
[null,null,"Scenograf",null,null,null,null,null,0,"Producent- zasoby własne oraz spółek powiązanych"]
[null,null,"Konsultacje specjalistyczne",null,null,null,null,null,0,"Producent- zasoby własne oraz spółek powiązanych"]
[null,null,null,null,null,null,null,null,0,"Producent- zasoby własne oraz spółek powiązanych"]
[null,null,null,null,null,null,null,null,0,"Producent- zasoby własne oraz spółek powiązanych"]
[null,null,null,null,null,null,null,null,0,"Producent- zasoby własne oraz spółek powiązanych"]
[null,null,null,null,null,null,null,null,0,"Producent- zasoby własne oraz spółek powiązanych"]
[null,null,null,null,null,null,null,null,0,"Producent- zasoby własne oraz spółek powiązanych"]
[null,null,null,null,null,null,null,null,0,"Producent- zasoby własne oraz spółek powiązanych"]
[null,null,null,null,null,null,null,null,0,"Producent- zasoby własne oraz spółek powiązanych"]
[null,null,null,null,null,null,null,null,0,"Producent- zasoby własne oraz spółek powiązanych"]
[null,null,null,null,null,null,null,null,0,"Producent- zasoby własne oraz spółek powiązanych"]
[]
["III","Koszty podróży",null,null,null,null,null,null,{"$f":"SUM(I32:I34)","v":0}]
[null,null,"Hotele",null,null,null,null,null,{"$f":"H32*F32*G32","v":0},"Producent- zasoby własne oraz spółek powiązanych"]
[null,null,"Przejazdy",null,null,null,null,null,{"$f":"H33*F33*G33","v":0},"Producent- zasoby własne oraz spółek powiązanych"]
[null,null,null,null,null,null,null,null,{"$f":"H34*F34*G34","v":0},"Producent- zasoby własne oraz spółek powiązanych"]
[]
["IV","Inne",null,null,null,null,null,null,{"$f":"SUM(I37:I37)","v":0}]
[null,null,null,null,null,null,null,null,{"$f":"H37*F37*G37","v":0},"Producent- zasoby własne oraz spółek powiązanych"]
[null,null,null,null,null,null,null,null,{"$f":"H38*F38*G38","v":0},"Producent- zasoby własne oraz spółek powiązanych"]
[]
[]
[null,null,null,null,null,null,"Suma",null,{"$f":"SUM(I9,I14,I31,I36)","v":0}]
[]
[null,null,null,null,null,"Suma kosztów","Producent zasoby własne",null,{"$f":"SUMIFS($I$9:$I$37,$J$9:$J$37,\"Producent- zasoby własne oraz spółek powiązanych\")","v":0}]
[null,null,null,null,null,null,"Wynajmy zewnętrzne",null,{"$f":"SUMIFS($I$9:$I$37,$J$9:$J$37,\"Wynajmy zewnętrzne\")","v":0}]

{"sheet":"Koszty uruchomienia","index":5,"n_rows":40,"n_cols":14,"rows_kept":40,"cut":false,"hidden":false,"merged":[]}
["Lp.","Kategoria","Nazwa","W przypadku osób -wskazać imię i nazwisko,w przypadku firm podać nazwę firmy, w przypadku sprzętu -wskazać producenta,model,typ","Jednostka miary","Liczba","X","Stawka jednostkowa","Suma","Źródło kosztów"]
["1.","Prace literackie",null,null,null,null,null,null,{"$f":"SUM(I3:I4)","v":0},null,null,null,null,"Koszty uruchomienia"]
[null,null,"Prawa do pierwowzoru literackiego",null,"Ryczałt",null,1,null,{"$f":"H3*F3*G3","v":0}]
[null,null,"Materiały archiwalne - zakup praw",null,"Ryczałt",null,1,null,{"$f":"H4*F4*G4","v":0}]
["2.","Pion scenografii ",null,null,null,null,null,null,{"$f":"SUM(I6,I13,I16,I19)","v":0}]
["2a.","Honoraria",null,null,null,null,null,null,{"$f":"SUM(I7:I12)","v":0}]
[null,null,"Scenograf",null,"Ryczałt",null,1,null,{"$f":"H7*F7*G7","v":0}]
[null,null,"Dekorator wnętrz",null,"Ryczałt",null,1,null,0]
[null,null,"Kostiumograf",null,"Ryczałt",null,1,null,0]
[null,null,"Rekwizytor",null,"Ryczałt",null,1,null,0]
[null,null,"Kierownik budowy dekoracji",null,"Ryczałt",null,1,null,0]
[null,null,"Grafik/Plastyk",null,"Ryczałt",null,1,null,0]
["2b.","Kostiumy",null,null,null,null,null,null,{"$f":"SUM(I14:I15)","v":0}]
[null,null,"Zakup",null,"Ryczałt",null,1,null,{"$f":"H14*F14*G14","v":0}]
[null,null,"Wykonanie",null,"Ryczałt",null,1,null,{"$f":"H15*F15*G15","v":0}]
["2c.","Rekwizyty",null,null,null,null,null,null,{"$f":"SUM(I17:I18)","v":0}]
[null,null,"Zakup",null,"Ryczałt",null,1,null,{"$f":"H17*F17*G17","v":0}]
[null,null,"Wykonanie",null,"Ryczałt",null,1,null,{"$f":"H18*F18*G18","v":0}]
["2d.","Budowa Dekoracji",null,null,null,null,null,null,{"$f":"SUM(I20:I22)","v":0}]
[null,null,"Budowa dekoracji materiały","Kwota pobrana z arkusza  \"Budowa dekoracji\"","Ryczałt",1,1,{"$f":"'Budowa dekoracji'!D108","v":0},{"$f":"H20*F20*G20","v":0}]
[null,null,"Budowa dekoracji wykonanie","Kwota pobrana z arkusza  \"Budowa dekoracji\"","Ryczałt",1,1,{"$f":"'Budowa dekoracji'!C108","v":0},{"$f":"H21*F21*G21","v":0}]
[null,null,"Zakup elementów scenografii",null,"Ryczałt",null,1,null,{"$f":"H22*F22*G22","v":0}]
["3.","Czołówka, oprawa muzyczna i graficzna",null,null,null,null,null,null,{"$f":"SUM(I24:I26)","v":0}]
[null,null,"Czołówka - projekt i wykonanie",null,"Ryczałt",null,1,null,{"$f":"H24*F24*G24","v":0}]
[null,null,"Kompozytor",null,"Ryczałt",null,1,null,{"$f":"H25*F25*G25","v":0}]
[null,null,"Nagranie muzyki (studio)",null,"Ryczałt",null,1,null,{"$f":"H26*F26*G26","v":0}]
["4.","Promocja",null,null,null,null,null,null,{"$f":"SUM(I28:I29)","v":0}]
[null,null,"Koszty PR ",null,"Ryczałt",null,1,null,{"$f":"H28*F28*G28","v":0}]
[null,null,"Utworzenie strony internetowej",null,"Ryczałt",null,1,null,{"$f":"H29*F29*G29","v":0}]
["5.","Inne zlecenia",null,null,null,null,null,null,{"$f":"SUM(I31:I35)","v":0}]
[null,null,null,null,null,null,1,null,{"$f":"H31*F31*G31","v":0}]
[null,null,null,null,null,null,1,null,{"$f":"H32*F32*G32","v":0}]
[null,null,null,null,null,null,1,null,{"$f":"H33*F33*G33","v":0}]
[null,null,null,null,null,null,1,null,{"$f":"H34*F34*G34","v":0}]
[null,null,null,null,null,null,1,null,{"$f":"H35*F35*G35","v":0}]
[]
[null,"Suma kosztów:","Producent zasoby własne",null,null,null,null,null,{"$f":"SUMIFS($I$2:$I$35,$J$2:$J$35,\"Producent zewnętrzny - zasoby własne oraz spółek powiązanych\")","v":0}]
[null,null,"Koszty zewnętrzne",null,null,null,null,null,{"$f":"SUMIFS($I$2:$I$35,$J$2:$J$35,\"Koszty zewnętrzne\")","v":0}]
[]
[null,null,"RAZEM koszty bezpośrednie",null,null,null,null,null,{"$f":"SUM(I2,I5,I23,I27,I30)","v":0}]

{"sheet":"Koszty produkcji - szczegółowy","index":6,"n_rows":310,"n_cols":14,"rows_kept":310,"cut":false,"hidden":false,"merged":[]}
["Lp.","Kategoria","Nazwa","W przypadku osób -wskazać imię i nazwisko,w przypadku firm podać nazwę firmy, w przypadku sprzętu -wskazać producenta,model,typ","Jednostka miary","Liczba","X","Stawka jednostkowa","Suma","Źródło kosztów"]
["1.","Prace literackie",null,null,null,null,null,null,{"$f":"SUM(I3:I10)","v":0}]
[null,null,"Scenariusz oryginalny",null,"Odcinek",null,1,null,{"$f":"F3*G3*H3","v":0},"Producent zewnętrzny - zasoby własne oraz spółek powiązanych",null,null,null,"Odcinek"]
[null,null,"Scenariusz adaptowany",null,"Odcinek",null,1,null,{"$f":"F4*G4*H4","v":0},"Producent zewnętrzny - zasoby własne oraz spółek powiązanych",null,null,null,"Dni"]
[null,null,"Dialogi",null,"Odcinek",null,1,null,0,"Producent zewnętrzny - zasoby własne oraz spółek powiązanych",null,null,null,"Ryczałt"]
[null,null,"Tłumaczenia",null,"Odcinek",null,1,null,0,"Producent zewnętrzny - zasoby własne oraz spółek powiązanych",null,null,null,"Godz."]
[null,null,"Licencja do formatu",null,"Odcinek",null,1,null,0,"Producent zewnętrzny - zasoby własne oraz spółek powiązanych",null,null,null,"Szt."]
[null,null,null,null,null,null,1,null,0,"Producent zewnętrzny - zasoby własne oraz spółek powiązanych",null,null,null,"Miesiąc"]
[null,null,null,null,null,null,1,null,0,"Producent zewnętrzny - zasoby własne oraz spółek powiązanych",null,null,null,"Szt. / dni"]
[null,null,null,null,null,null,1,null,0,"Producent zewnętrzny - zasoby własne oraz spółek powiązanych",null,null,null,"Szt. / os."]
["2.","Pion reżyserski",null,null,null,null,null,null,{"$f":"SUM(I12:I20)","v":0}]
[null,null,"Reżyser",null,"Odcinek",null,1,null,0,"Producent zewnętrzny - zasoby własne oraz spółek powiązanych"]
[null,null,"II reżyser biuro",null,"Odcinek",null,1,null,0,"Producent zewnętrzny - zasoby własne oraz spółek powiązanych"]
[null,null,"II reżyser plan",null,"Dni",null,1,null,0,"Producent zewnętrzny - zasoby własne oraz spółek powiązanych"]
[null,null,"Reżyser castingu",null,"Odcinek",null,1,null,0,"Producent zewnętrzny - zasoby własne oraz spółek powiązanych"]
[null,null,"Asystent reżysera",null,"Odcinek",null,1,null,0,"Producent zewnętrzny - zasoby własne oraz spółek powiązanych"]
[null,null,"Script",null,"Dni",null,1,null,0,"Producent zewnętrzny - zasoby własne oraz spółek powiązanych"]
[null,null,null,null,null,null,1,null,0,"Producent zewnętrzny - zasoby własne oraz spółek powiązanych"]
[null,null,null,null,null,null,1,null,0,"Producent zewnętrzny - zasoby własne oraz spółek powiązanych"]
[null,null,null,null,null,null,1,null,0,"Producent zewnętrzny - zasoby własne oraz spółek powiązanych"]
["3.","Pion produkcji",null,null,null,null,null,null,{"$f":"SUM(I22:I35)","v":0}]
[null,null,"Producent",null,"Odcinek",null,1,null,{"$f":"F22*G22*H22","v":0},"Producent zewnętrzny - zasoby własne oraz spółek powiązanych"]
[null,null,"Kierownik produkcji",null,"Odcinek",null,1,null,{"$f":"F23*G23*H23","v":0},"Producent zewnętrzny - zasoby własne oraz spółek powiązanych"]
[null,null,"II kierownik produkcji biuro",null,"Odcinek",null,1,null,0,"Producent zewnętrzny - zasoby własne oraz spółek powiązanych"]
[null,null,"II kierownik produkcji obiekty",null,"Odcinek",null,1,null,0,"Producent zewnętrzny - zasoby własne oraz spółek powiązanych"]
[null,null,"II kierownik produkcji postprodukcja",null,"Odcinek",null,1,null,0,"Producent zewnętrzny - zasoby własne oraz spółek powiązanych"]
[null,null,"Asystent kierownika produkcji",null,"Odcinek",null,1,null,0,"Producent zewnętrzny - zasoby własne oraz spółek powiązanych"]
[null,null,"Kierownik planu",null,"Dni",null,1,null,0,"Producent zewnętrzny - zasoby własne oraz spółek powiązanych"]
[null,null,"Administrator",null,"Odcinek",null,1,null,0,"Producent zewnętrzny - zasoby własne oraz spółek powiązanych"]
[null,null,"Kasjer",null,"Odcinek",null,1,null,0,"Producent zewnętrzny - zasoby własne oraz spółek powiązanych"]
[null,null,"Sekretarka grupy zdjęciowej",null,"Odcinek",null,1,null,0,"Producent zewnętrzny - zasoby własne oraz spółek powiązanych"]
[null,null,"Opracowanie listy dialogowej",null,"Odcinek",null,1,null,0,"Producent zewnętrzny - zasoby własne oraz spółek powiązanych"]
[null,null,null,null,null,null,1,null,0,"Producent zewnętrzny - zasoby własne oraz spółek powiązanych"]
[null,null,null,null,null,null,1,null,0,"Producent zewnętrzny - zasoby własne oraz spółek powiązanych"]
[null,null,null,null,null,null,1,null,0,"Producent zewnętrzny - zasoby własne oraz spółek powiązanych"]
["4.","Pion operatorski",null,null,null,null,null,null,{"$f":"SUM(I37:I51)","v":0}]
[null,null,"Operator obrazu",null,"Dni",null,1,null,0,"Producent zewnętrzny - zasoby własne oraz spółek powiązanych"]
[null,null,"Operator kamery ",null,"Dni",null,1,null,0,"Producent zewnętrzny - zasoby własne oraz spółek powiązanych"]
[null,null,"Operator steadicamu",null,"Dni",null,1,null,0,"Producent zewnętrzny - zasoby własne oraz spółek powiązanych"]
[null,null,"Asystent kamery",null,"Dni",null,1,null,0,"Producent zewnętrzny - zasoby własne oraz spółek powiązanych"]
[null,null,"Ostrzyciel",null,"Dni",null,1,null,0,"Producent zewnętrzny - zasoby własne oraz spółek powiązanych"]
[null,null,"Operator CCU",null,"Dni",null,1,null,0,"Producent zewnętrzny - zasoby własne oraz spółek powiązanych"]
[null,null,"DIT",null,"Dni",null,1,null,0,"Producent zewnętrzny - zasoby własne oraz spółek powiązanych"]
[null,null,"Wózkarz",null,"Dni",null,1,null,0,"Producent zewnętrzny - zasoby własne oraz spółek powiązanych"]
[null,null,"Pomocnik wózkarza",null,"Dni",null,1,null,0,"Producent zewnętrzny - zasoby własne oraz spółek powiązanych"]
[null,null,"Mistrz oświetlenia",null,"Dni",null,1,null,0,"Producent zewnętrzny - zasoby własne oraz spółek powiązanych"]
[null,null,"Oświetlacz",null,"Dni",null,1,null,0,"Producent zewnętrzny - zasoby własne oraz spółek powiązanych"]
[null,null,"Fotosista",null,"Odcinek",null,1,null,0,"Producent zewnętrzny - zasoby własne oraz spółek powiązanych"]
[null,null,null,null,null,null,1,null,0,"Producent zewnętrzny - zasoby własne oraz spółek powiązanych"]
[null,null,null,null,null,null,1,null,0,"Producent zewnętrzny - zasoby własne oraz spółek powiązanych"]
[null,null,null,null,null,null,1,null,0,"Producent zewnętrzny - zasoby własne oraz spółek powiązanych"]
["5.","Pion scenografii ",null,null,null,null,null,null,{"$f":"SUM(I53:I67)","v":0}]
[null,null,"Scenograf",null,"Odcinek",null,1,null,0,"Producent zewnętrzny - zasoby własne oraz spółek powiązanych"]
[null,null,"II scenograf",null,"Dni",null,1,null,0,"Producent zewnętrzny - zasoby własne oraz spółek powiązanych"]
[null,null,"Asystent scenografa",null,"Odcinek",null,1,null,0,"Producent zewnętrzny - zasoby własne oraz spółek powiązanych"]
[null,null,"Dekorator wnętrz",null,"Odcinek",null,1,null,0,"Producent zewnętrzny - zasoby własne oraz spółek powiązanych"]
[null,null,"Rekwizytor",null,"Dni",null,1,null,0,"Producent zewnętrzny - zasoby własne oraz spółek powiązanych"]
[null,null,"Asystent rekwizytora",null,"Dni",null,1,null,0,"Producent zewnętrzny - zasoby własne oraz spółek powiązanych"]
[null,null,"Rekwizytor - plan",null,"Dni",null,1,null,0,"Producent zewnętrzny - zasoby własne oraz spółek powiązanych"]
[null,null,"Kierownik budowy dekoracji",null,"Ryczałt",null,1,null,0,"Producent zewnętrzny - zasoby własne oraz spółek powiązanych"]
[null,null,"Grafik/Plastyk",null,"Ryczałt",null,1,null,0,"Producent zewnętrzny - zasoby własne oraz spółek powiązanych"]
[null,null,"Dyżurny planu",null,"Dni",null,1,null,0,"Producent zewnętrzny - zasoby własne oraz spółek powiązanych"]
[null,null,"Pirotechnik",null,"Dni",null,1,null,0,"Producent zewnętrzny - zasoby własne oraz spółek powiązanych"]
[null,null,null,null,null,null,1,null,0,"Producent zewnętrzny - zasoby własne oraz spółek powiązanych"]
[null,null,null,null,null,null,1,null,0,"Producent zewnętrzny - zasoby własne oraz spółek powiązanych"]
[null,null,null,null,null,null,1,null,0,"Producent zewnętrzny - zasoby własne oraz spółek powiązanych"]
[null,null,null,null,null,null,1,null,0,"Producent zewnętrzny - zasoby własne oraz spółek powiązanych"]
["6.","Pion kostiumograficzny",null,null,null,null,null,null,{"$f":"SUM(I69:I76)","v":0}]
[null,null,"Kostiumograf",null,"Odcinek",null,1,null,0,"Producent zewnętrzny - zasoby własne oraz spółek powiązanych"]
[null,null,"II kostiumograf",null,"Dni",null,1,null,0,"Producent zewnętrzny - zasoby własne oraz spółek powiązanych"]
[null,null,"Garderobiana",null,"Dni",null,1,null,0,"Producent zewnętrzny - zasoby własne oraz spółek powiązanych"]
[null,null,"Asystent kostiumografa",null,"Dni",null,1,null,0,"Producent zewnętrzny - zasoby własne oraz spółek powiązanych"]
[null,null,null,null,null,null,1,null,0,"Producent zewnętrzny - zasoby własne oraz spółek powiązanych"]
[null,null,null,null,null,null,1,null,0,"Producent zewnętrzny - zasoby własne oraz spółek powiązanych"]
[null,null,null,null,null,null,1,null,0,"Producent zewnętrzny - zasoby własne oraz spółek powiązanych"]
[null,null,null,null,null,null,1,null,0,"Producent zewnętrzny - zasoby własne oraz spółek powiązanych"]
["7.","Pion charakteryzatorski",null,null,null,null,null,null,{"$f":"SUM(I78:I86)","v":0}]
[null,null,"Charakteryzator",null,"Dni",null,1,null,0,"Producent zewnętrzny - zasoby własne oraz spółek powiązanych"]
[null,null,"II charakteryzator",null,"Dni",null,1,null,0,"Producent zewnętrzny - zasoby własne oraz spółek powiązanych"]
[null,null,"Asystent charakteryzatora",null,"Dni",null,1,null,0,"Producent zewnętrzny - zasoby własne oraz spółek powiązanych"]
[null,null,"Stylista/wizażysta",null,"Dni",null,1,null,0,"Producent zewnętrzny - zasoby własne oraz spółek powiązanych"]
[null,null,"Fryzjer",null,"Dni",null,1,null,0,"Producent zewnętrzny - zasoby własne oraz spółek powiązanych"]
[null,null,null,null,null,null,1,null,0,"Producent zewnętrzny - zasoby własne oraz spółek powiązanych"]
[null,null,null,null,null,null,1,null,0,"Producent zewnętrzny - zasoby własne oraz spółek powiązanych"]
[null,null,null,null,null,null,1,null,0,"Producent zewnętrzny - zasoby własne oraz spółek powiązanych"]
[null,null,null,null,null,null,1,null,0,"Producent zewnętrzny - zasoby własne oraz spółek powiązanych"]
["8.","Pion dźwiękowy",null,null,null,null,null,null,{"$f":"SUM(I88:I94)","v":0}]
[null,null,"Operator dźwięku",null,"Dni",null,1,null,0,"Producent zewnętrzny - zasoby własne oraz spółek powiązanych"]
[null,null,"Asystent operatora dźwięku",null,"Dni",null,1,null,0,"Producent zewnętrzny - zasoby własne oraz spółek powiązanych"]
[null,null,"Mikrofoniarz",null,"Dni",null,1,null,{"$f":"F90*G90*H90","v":0},"Producent zewnętrzny - zasoby własne oraz spółek powiązanych"]
[null,null,null,null,null,null,1,null,0,"Producent zewnętrzny - zasoby własne oraz spółek powiązanych"]
[null,null,null,null,null,null,1,null,0,"Producent zewnętrzny - zasoby własne oraz spółek powiązanych"]
[null,null,null,null,null,null,1,null,0,"Producent zewnętrzny - zasoby własne oraz spółek powiązanych"]
[null,null,null,null,null,null,1,null,0,"Producent zewnętrzny - zasoby własne oraz spółek powiązanych"]
["9.","Wykonawcy i odtwórcy",null,null,null,null,null,null,{"$f":"SUM(I96:I109)","v":0}]
[null,null,"Role główne","Kwota pobrana z arkusza  \"Obsada aktorska\"","Ryczałt",1,1,{"$f":"'Obsada aktorska'!F259","v":0},0,"Producent zewnętrzny - zasoby własne oraz spółek powiązanych"]
[null,null,"Role drugoplanowe","Kwota pobrana z arkusza  \"Obsada aktorska\"","Ryczałt",1,1,{"$f":"'Obsada aktorska'!F260","v":0},0,"Producent zewnętrzny - zasoby własne oraz spółek powiązanych"]
[null,null,"Epizody",null,"Dni",null,1,null,0,"Producent zewnętrzny - zasoby własne oraz spółek powiązanych"]
[null,null,"Lektor",null,"Ryczałt",null,1,null,0,"Producent zewnętrzny - zasoby własne oraz spółek powiązanych"]
[null,null,"Statyści",null,"Dni",null,1,null,0,"Producent zewnętrzny - zasoby własne oraz spółek powiązanych"]
[null,null,"Kaskaderzy",null,"Dni",null,1,null,0,"Producent zewnętrzny - zasoby własne oraz spółek powiązanych"]
[null,null,"Dublerzy",null,"Dni",null,1,null,0,"Producent zewnętrzny - zasoby własne oraz spółek powiązanych"]
[null,null,"Tancerze",null,"Ryczałt",null,1,null,0,"Producent zewnętrzny - zasoby własne oraz spółek powiązanych"]
[null,null,"Grupy rekonstrukcyjne",null,"Ryczałt",null,1,null,0,"Producent zewnętrzny - zasoby własne oraz spółek powiązanych"]
[null,null,"Muzycy",null,"Ryczałt",null,1,null,0,"Producent zewnętrzny - zasoby własne oraz spółek powiązanych"]
[null,null,null,null,null,null,1,null,0,"Producent zewnętrzny - zasoby własne oraz spółek powiązanych"]
[null,null,null,null,null,null,1,null,0,"Producent zewnętrzny - zasoby własne oraz spółek powiązanych"]
[null,null,null,null,null,null,1,null,0,"Producent zewnętrzny - zasoby własne oraz spółek powiązanych"]
[null,null,null,null,null,null,1,null,0,"Producent zewnętrzny - zasoby własne oraz spółek powiązanych"]
["10.","Konsultacje",null,null,null,null,null,null,{"$f":"SUM(I111:I119)","v":0}]
[null,null,"Konsultant ds. zwierząt",null,"Ryczałt",null,1,null,0,"Producent zewnętrzny - zasoby własne oraz spółek powiązanych"]
[null,null,"Konsultant ds. pojazdów",null,"Ryczałt",null,1,null,0,"Producent zewnętrzny - zasoby własne oraz spółek powiązanych"]
[null,null,"Konsultant FX",null,"Ryczałt",null,1,null,0,"Producent zewnętrzny - zasoby własne oraz spółek powiązanych"]
[null,null,"Konsultant BHP",null,"Odcinek",null,1,null,0,"Producent zewnętrzny - zasoby własne oraz spółek powiązanych"]
[null,null,"Konsultant ds. kaskaderskich",null,"Odcinek",null,1,null,0,"Producent zewnętrzny - zasoby własne oraz spółek powiązanych"]
[null,null,null,null,null,null,1,null,0,"Producent zewnętrzny - zasoby własne oraz spółek powiązanych"]
[null,null,null,null,null,null,1,null,0,"Producent zewnętrzny - zasoby własne oraz spółek powiązanych"]
[null,null,null,null,null,null,1,null,0,"Producent zewnętrzny - zasoby własne oraz spółek powiązanych"]
[null,null,null,null,null,null,1,null,0,"Producent zewnętrzny - zasoby własne oraz spółek powiązanych"]
["11.","Muzyka",null,null,null,null,null,null,{"$f":"SUM(I121:I129)","v":0}]
[null,null,"Kompozytor",null,"Ryczałt",null,1,null,0,"Producent zewnętrzny - zasoby własne oraz spółek powiązanych"]
[null,null,"Nagranie muzyki (studio)",null,"Ryczałt",null,1,null,0,"Producent zewnętrzny - zasoby własne oraz spółek powiązanych"]
[null,null,"Muzycy - nagranie",null,"Ryczałt",null,1,null,0,"Producent zewnętrzny - zasoby własne oraz spółek powiązanych"]
[null,null,"Prawa do utworów / licencje muzyczne",null,"Odcinek",null,1,null,0,"Producent zewnętrzny - zasoby własne oraz spółek powiązanych"]
[null,null,"Oprawa muzyczna",null,"Odcinek",null,1,null,0,"Producent zewnętrzny - zasoby własne oraz spółek powiązanych"]
[null,null,null,null,null,null,1,null,0,"Producent zewnętrzny - zasoby własne oraz spółek powiązanych"]
[null,null,null,null,null,null,1,null,0,"Producent zewnętrzny - zasoby własne oraz spółek powiązanych"]
[null,null,null,null,null,null,1,null,0,"Producent zewnętrzny - zasoby własne oraz spółek powiązanych"]
[null,null,null,null,null,null,1,null,0,"Producent zewnętrzny - zasoby własne oraz spółek powiązanych"]
["12.","Technika zdjęciowa",null,null,null,null,null,null,{"$f":"SUM(I131:I153)","v":0}]
[null,null,"Wynajem kamer",null,"Dni",null,1,null,0,"Producent zewnętrzny - zasoby własne oraz spółek powiązanych"]
[null,null,"Osprzęt do kamer",null,"Dni",null,1,null,0,"Producent zewnętrzny - zasoby własne oraz spółek powiązanych"]
[null,null,"Optyka",null,"Dni",null,1,null,0,"Producent zewnętrzny - zasoby własne oraz spółek powiązanych"]
[null,null,"Wynajem światła",null,"Dni",null,1,null,0,"Producent zewnętrzny - zasoby własne oraz spółek powiązanych"]
[null,null,"Materiały oświetleniowe, folie",null,"Odcinek",null,1,null,0,"Producent zewnętrzny - zasoby własne oraz spółek powiązanych"]
[null,null,"Wynajem wózka",null,"Dni",null,1,null,0,"Producent zewnętrzny - zasoby własne oraz spółek powiązanych"]
[null,null,"Wynajem kranu",null,"Dni",null,1,null,0,"Producent zewnętrzny - zasoby własne oraz spółek powiązanych"]
[null,null,"Steadycam",null,"Dni",null,1,null,0,"Producent zewnętrzny - zasoby własne oraz spółek powiązanych"]
[null,null,"Podnośnik",null,"Godz.",null,1,null,0,"Producent zewnętrzny - zasoby własne oraz spółek powiązanych"]
[null,null,"Kasety zdjęciowe",null,"Szt.",null,1,null,0,"Producent zewnętrzny - zasoby własne oraz spółek powiązanych"]
[null,null,"Dyski",null,"Szt.",null,1,null,0,"Producent zewnętrzny - zasoby własne oraz spółek powiązanych"]
[null,null,"DVD",null,"Szt.",null,1,null,0,"Producent zewnętrzny - zasoby własne oraz spółek powiązanych"]
[null,null,"Sprzęt dźwiękowy",null,"Dni",null,1,null,0,"Producent zewnętrzny - zasoby własne oraz spółek powiązanych"]
[null,null,"Kasety DAT",null,"Szt.",null,1,null,0,"Producent zewnętrzny - zasoby własne oraz spółek powiązanych"]
[null,null,"Baterie",null,"Ryczałt",null,1,null,0,"Producent zewnętrzny - zasoby własne oraz spółek powiązanych"]
[null,null,"Mikroporty",null,"Dni",null,1,null,0,"Producent zewnętrzny - zasoby własne oraz spółek powiązanych"]
[null,null,"Łączność na planie",null,"Szt. / dni",null,1,null,0,"Producent zewnętrzny - zasoby własne oraz spółek powiązanych"]
[null,null,"Dron",null,"Dni",null,1,null,0,"Producent zewnętrzny - zasoby własne oraz spółek powiązanych"]
[null,null,null,null,null,null,1,null,0,"Producent zewnętrzny - zasoby własne oraz spółek powiązanych"]
[null,null,null,null,null,null,1,null,0,"Producent zewnętrzny - zasoby własne oraz spółek powiązanych"]
[null,null,null,null,null,null,1,null,0,"Producent zewnętrzny - zasoby własne oraz spółek powiązanych"]
[null,null,null,null,null,null,1,null,0,"Producent zewnętrzny - zasoby własne oraz spółek powiązanych"]
[null,null,null,null,null,null,1,null,0,"Producent zewnętrzny - zasoby własne oraz spółek powiązanych"]
["13.","Scenografia i rekwizyty",null,null,null,null,null,null,{"$f":"SUM(I155:I173)","v":0}]
[null,null,"Wynajem obiektów zdjęciowych","Kwota pobrana z arkusza  \"Wynajem obiektów zdjęciowych\"","Ryczałt",1,1,{"$f":"'Wynajem obiektów zdjęciowych'!E128","v":0},0,"Producent zewnętrzny - zasoby własne oraz spółek powiązanych"]
[null,null,"Wynajem hali ",null,"Miesiąc",null,1,null,0,"Producent zewnętrzny - zasoby własne oraz spółek powiązanych"]
[null,null,"Budowa dekoracji materiały","Kwota pobrana z arkusza  \"Budowa dekoracji\"","Ryczałt",1,1,{"$f":"'Budowa dekoracji'!D210","v":0},0,"Producent zewnętrzny - zasoby własne oraz spółek powiązanych"]
[null,null,"Budowa dekoracji wykonanie","Kwota pobrana z arkusza  \"Budowa dekoracji\"","Ryczałt",1,1,{"$f":"'Budowa dekoracji'!C210","v":0},0,"Producent zewnętrzny - zasoby własne oraz spółek powiązanych"]
[null,null,"Wypożyczenie scenografii",null,"Odcinek",null,1,null,0,"Producent zewnętrzny - zasoby własne oraz spółek powiązanych"]
[null,null,"Zakup elementów scenografii",null,"Odcinek",null,1,null,{"$f":"F160*G160*H160","v":0},"Producent zewnętrzny - zasoby własne oraz spółek powiązanych"]
[null,null,"Wynajem rekwizytów",null,"Odcinek",null,1,null,0,"Producent zewnętrzny - zasoby własne oraz spółek powiązanych"]
[null,null,"Wykonanie rekwizytów ",null,"Odcinek",null,1,null,0,"Producent zewnętrzny - zasoby własne oraz spółek powiązanych"]
[null,null,"Zakup rekwizytów",null,"Odcinek",null,1,null,0,"Producent zewnętrzny - zasoby własne oraz spółek powiązanych"]
[null,null,"Materiały pirotechniczne ",null,"Odcinek",null,1,null,0,"Producent zewnętrzny - zasoby własne oraz spółek powiązanych"]
[null,null,"Wynajem zwierząt",null,"Dni",null,1,null,0,"Producent zewnętrzny - zasoby własne oraz spółek powiązanych"]
[null,null,"Wynajem pojazdów specjalnych",null,"Dni",null,1,null,0,"Producent zewnętrzny - zasoby własne oraz spółek powiązanych"]
[null,null,"Materiały do efektów FX -green screeny",null,"Ryczałt",null,1,null,0,"Producent zewnętrzny - zasoby własne oraz spółek powiązanych"]
[null,null,"Wynajem magazynu rekwizytów",null,"Miesiąc",null,1,null,0,"Producent zewnętrzny - zasoby własne oraz spółek powiązanych"]
[null,null,null,null,null,null,1,null,0,"Producent zewnętrzny - zasoby własne oraz spółek powiązanych"]
[null,null,null,null,null,null,1,null,0,"Producent zewnętrzny - zasoby własne oraz spółek powiązanych"]
[null,null,null,null,null,null,1,null,0,"Producent zewnętrzny - zasoby własne oraz spółek powiązanych"]
[null,null,null,null,null,null,1,null,0,"Producent zewnętrzny - zasoby własne oraz spółek powiązanych"]
[null,null,null,null,null,null,1,null,0,"Producent zewnętrzny - zasoby własne oraz spółek powiązanych"]
["14.","Kostiumy materiały",null,null,null,null,null,null,{"$f":"SUM(I175:I182)","v":0}]
[null,null,"Wypożyczenie",null,"Odcinek",null,1,null,0,"Producent zewnętrzny - zasoby własne oraz spółek powiązanych"]
[null,null,"Zakup",null,"Odcinek",null,1,null,0,"Producent zewnętrzny - zasoby własne oraz spółek powiązanych"]
[null,null,"Wykonanie",null,"Odcinek",null,1,null,0,"Producent zewnętrzny - zasoby własne oraz spółek powiązanych"]
[null,null,"Pranie kostiumów",null,"Odcinek",null,1,null,0,"Producent zewnętrzny - zasoby własne oraz spółek powiązanych"]
[null,null,"Poprawki krawieckie",null,"Odcinek",null,1,null,0,"Producent zewnętrzny - zasoby własne oraz spółek powiązanych"]
[null,null,null,null,null,null,1,null,0,"Producent zewnętrzny - zasoby własne oraz spółek powiązanych"]
[null,null,null,null,null,null,1,null,0,"Producent zewnętrzny - zasoby własne oraz spółek powiązanych"]
[null,null,null,null,null,null,1,null,0,"Producent zewnętrzny - zasoby własne oraz spółek powiązanych"]
["15.","Charakteryzacja materiały ",null,null,null,null,null,null,{"$f":"SUM(I184:I189)","v":0}]
[null,null,"Materiały charakteryzatorskie",null,"Odcinek",null,1,null,0,"Producent zewnętrzny - zasoby własne oraz spółek powiązanych"]
[null,null,"Materiały do FX",null,"Odcinek",null,1,null,0,"Producent zewnętrzny - zasoby własne oraz spółek powiązanych"]
[null,null,"Wynajmy - peruki",null,"Odcinek",null,1,null,0,"Producent zewnętrzny - zasoby własne oraz spółek powiązanych"]
[null,null,null,null,null,null,1,null,0,"Producent zewnętrzny - zasoby własne oraz spółek powiązanych"]
[null,null,null,null,null,null,1,null,0,"Producent zewnętrzny - zasoby własne oraz spółek powiązanych"]
[null,null,null,null,null,null,1,null,0,"Producent zewnętrzny - zasoby własne oraz spółek powiązanych"]
["16.","Postprodukcja - montaż i udźwiękowienie",null,null,null,null,null,null,{"$f":"SUM(I191:I211)","v":0}]
[null,null,"Montażysta",null,"Odcinek",null,1,null,{"$f":"F191*G191*H191","v":0},"Producent zewnętrzny - zasoby własne oraz spółek powiązanych"]
[null,null,"Asystent montażysty",null,"Odcinek",null,1,null,0,"Producent zewnętrzny - zasoby własne oraz spółek powiązanych"]
[null,null,"Digitalizacja",null,"Odcinek",null,1,null,0,"Producent zewnętrzny - zasoby własne oraz spółek powiązanych"]
[null,null,"Montaż off-line",null,"Odcinek",null,1,null,0,"Producent zewnętrzny - zasoby własne oraz spółek powiązanych"]
[null,null,"Montaż on-line-konforming",null,"Odcinek",null,1,null,0,"Producent zewnętrzny - zasoby własne oraz spółek powiązanych"]
[null,null,"Czołówka ",null,"Ryczałt",null,1,null,0,"Producent zewnętrzny - zasoby własne oraz spółek powiązanych"]
[null,null,"Efekty komputerowe",null,"Odcinek",null,1,null,0,"Producent zewnętrzny - zasoby własne oraz spółek powiązanych"]
[null,null,"Korekcja koloru",null,"Odcinek",null,1,null,0,"Producent zewnętrzny - zasoby własne oraz spółek powiązanych"]
[null,null,"Realizator dźwięku - postprodukcja",null,"Odcinek",null,1,null,0,"Producent zewnętrzny - zasoby własne oraz spółek powiązanych"]
[null,null,"Imitator dźwięku",null,"Odcinek",null,1,null,0,"Producent zewnętrzny - zasoby własne oraz spółek powiązanych"]
[null,null,"Postsynchrony",null,"Odcinek",null,1,null,0,"Producent zewnętrzny - zasoby własne oraz spółek powiązanych"]
[null,null,"Zgranie dźwięku",null,"Odcinek",null,1,null,0,"Producent zewnętrzny - zasoby własne oraz spółek powiązanych"]
[null,null,"Dolby E",null,"Odcinek",null,1,null,0,"Producent zewnętrzny - zasoby własne oraz spółek powiązanych"]
[null,null,"Archiwizacja materiałów",null,"Odcinek",null,1,null,0,"Producent zewnętrzny - zasoby własne oraz spółek powiązanych"]
[null,null,"Materiały archiwalne -obróbka ",null,"Ryczałt",null,1,null,0,"Producent zewnętrzny - zasoby własne oraz spółek powiązanych"]
[null,null,"Materiały archiwalne - zakup praw",null,"Ryczałt",null,1,null,{"$f":"F206*G206*H206","v":0},"Producent zewnętrzny - zasoby własne oraz spółek powiązanych",null,null,null,"Szt. / dni"]
[null,null,null,null,null,null,1,null,0,"Producent zewnętrzny - zasoby własne oraz spółek powiązanych"]
[null,null,null,null,null,null,1,null,0,"Producent zewnętrzny - zasoby własne oraz spółek powiązanych"]
[null,null,null,null,null,null,1,null,0,"Producent zewnętrzny - zasoby własne oraz spółek powiązanych"]
[null,null,null,null,null,null,1,null,0,"Producent zewnętrzny - zasoby własne oraz spółek powiązanych"]
[null,null,null,null,null,null,1,null,0,"Producent zewnętrzny - zasoby własne oraz spółek powiązanych"]
["17.","Usługi obce ",null,null,null,null,null,null,{"$f":"SUM(I213:I229)","v":0}]
[null,null,"Catering",null,"Os. / dni",null,1,null,0,"Producent zewnętrzny - zasoby własne oraz spółek powiązanych"]
[null,null,"Catering statyści",null,"Os. / dni",null,1,null,0,"Producent zewnętrzny - zasoby własne oraz spółek powiązanych"]
[null,null,"Opłaty parkingowe",null,"Ryczałt",null,1,null,0,"Producent zewnętrzny - zasoby własne oraz spółek powiązanych"]
[null,null,"Opieka medyczna",null,"Dni",null,1,null,0,"Producent zewnętrzny - zasoby własne oraz spółek powiązanych"]
[null,null,"Słuzby specjalne, Straż pożarna, policja, pomoc drogowa, MPO itp.",null,"Dni",null,1,null,0,"Producent zewnętrzny - zasoby własne oraz spółek powiązanych"]
[null,null,"Pozwolenia i zgody na zajęcie terenu",null,"Ryczałt",null,1,null,0,"Producent zewnętrzny - zasoby własne oraz spółek powiązanych"]
[null,null,"Plan organizacji ruchu",null,"Ryczałt",null,1,null,0,"Producent zewnętrzny - zasoby własne oraz spółek powiązanych"]
[null,null,"Ochrona planu",null,"Dni",null,1,null,0,"Producent zewnętrzny - zasoby własne oraz spółek powiązanych"]
[null,null,"Materiały BHP",null,"Odcinek",null,1,null,0,"Producent zewnętrzny - zasoby własne oraz spółek powiązanych"]
[null,null,"Ubezpieczenie sprzętu i ekipy",null,"Ryczałt",null,1,null,0,"Producent zewnętrzny - zasoby własne oraz spółek powiązanych"]
[null,null,"Materiały dyżurnych planu",null,"Odcinek",null,1,null,0,"Producent zewnętrzny - zasoby własne oraz spółek powiązanych"]
[null,null,"Sprzątanie obiektów zdjęciowych",null,"Odcinek",null,1,null,0,"Producent zewnętrzny - zasoby własne oraz spółek powiązanych"]
[null,null,null,null,null,null,1,null,0,"Producent zewnętrzny - zasoby własne oraz spółek powiązanych"]
[null,null,null,null,null,null,1,null,0,"Producent zewnętrzny - zasoby własne oraz spółek powiązanych"]
[null,null,null,null,null,null,1,null,0,"Producent zewnętrzny - zasoby własne oraz spółek powiązanych"]
[null,null,null,null,null,null,1,null,0,"Producent zewnętrzny - zasoby własne oraz spółek powiązanych"]
[null,null,null,null,null,null,1,null,0,"Producent zewnętrzny - zasoby własne oraz spółek powiązanych"]
["18.","Koszty administracyjno - biurowe",null,null,null,null,null,null,{"$f":"SUM(I231:I238)","v":0}]
[null,null,"Wynajem pomieszczeń produkcyjnych (biuro)",null,"Miesiąc",null,1,null,0,"Producent zewnętrzny - zasoby własne oraz spółek powiązanych"]
[null,null,"Telekomunikacja",null,"Miesiąc",null,1,null,0,"Producent zewnętrzny - zasoby własne oraz spółek powiązanych"]
[null,null,"Usługi kurierskie",null,"Ryczałt",null,1,null,0,"Producent zewnętrzny - zasoby własne oraz spółek powiązanych"]
[null,null,"Materiały biurowe",null,"Odcinek",null,1,null,0,"Producent zewnętrzny - zasoby własne oraz spółek powiązanych"]
[null,null,"Ogłoszenia prasowe - castingi itp.",null,"Ryczałt",null,1,null,0,"Producent zewnętrzny - zasoby własne oraz spółek powiązanych"]
[null,null,null,null,null,null,1,null,0,"Producent zewnętrzny - zasoby własne oraz spółek powiązanych"]
[null,null,null,null,null,null,1,null,0,"Producent zewnętrzny - zasoby własne oraz spółek powiązanych"]
[null,null,null,null,null,null,1,null,0,"Producent zewnętrzny - zasoby własne oraz spółek powiązanych"]
["19.","Transport",null,null,null,null,null,null,{"$f":"SUM(I240,I248,I270)","v":0}]
["19a.","Okres przygotowawczy",null,null,null,null,null,null,{"$f":"SUM(I241:I247)","v":0}]
[null,null,"Samochód produkcyjny (dokumentacje i inne )",null,"Dni",null,1,null,{"$f":"F241*G241*H241","v":0},"Producent zewnętrzny - zasoby własne oraz spółek powiązanych"]
[null,null,"Samochód rekwizytorski ",null,"Dni",null,1,null,0,"Producent zewnętrzny - zasoby własne oraz spółek powiązanych"]
[null,null,"Samochód kostiumograficzny",null,"Dni",null,1,null,0,"Producent zewnętrzny - zasoby własne oraz spółek powiązanych"]
[null,null,"Samochód scenograficzny",null,"Dni",null,1,null,0,"Producent zewnętrzny - zasoby własne oraz spółek powiązanych"]
[null,null,null,null,null,null,1,null,0,"Producent zewnętrzny - zasoby własne oraz spółek powiązanych"]
[null,null,null,null,null,null,1,null,0,"Producent zewnętrzny - zasoby własne oraz spółek powiązanych"]
[null,null,null,null,null,null,1,null,0,"Producent zewnętrzny - zasoby własne oraz spółek powiązanych"]
["19b.","Okres zdjęciowy",null,null,null,null,null,null,{"$f":"SUM(I249:I269)","v":0}]
[null,null,"Samochód produkcyjny ",null,"Dni",null,1,null,0,"Producent zewnętrzny - zasoby własne oraz spółek powiązanych"]
[null,null,"Bus do przewozu ekipy",null,"Dni",null,1,null,0,"Producent zewnętrzny - zasoby własne oraz spółek powiązanych"]
[null,null,"Samochód kamerowy",null,"Dni",null,1,null,0,"Producent zewnętrzny - zasoby własne oraz spółek powiązanych"]
[null,null,"Samochód oświetleniowy",null,"Dni",null,1,null,0,"Producent zewnętrzny - zasoby własne oraz spółek powiązanych"]
[null,null,"Samochód do przewozu wózka i kranu",null,"Dni",null,1,null,0,"Producent zewnętrzny - zasoby własne oraz spółek powiązanych"]
[null,null,"Samochód dźwiękowy",null,"Dni",null,1,null,0,"Producent zewnętrzny - zasoby własne oraz spółek powiązanych"]
[null,null,"Samochody rekwizytorski",null,"Dni",null,1,null,0,"Producent zewnętrzny - zasoby własne oraz spółek powiązanych"]
[null,null,"Samochód dyżurnych plau",null,"Dni",null,1,null,0,"Producent zewnętrzny - zasoby własne oraz spółek powiązanych"]
[null,null,"Samochód pirotechników",null,"Dni",null,1,null,0,"Producent zewnętrzny - zasoby własne oraz spółek powiązanych"]
[null,null,"Gard./make-up ",null,"Dni",null,1,null,0,"Producent zewnętrzny - zasoby własne oraz spółek powiązanych"]
[null,null,"Camper",null,"Dni",null,1,null,0,"Producent zewnętrzny - zasoby własne oraz spółek powiązanych"]
[null,null,"Barobus",null,"Dni",null,1,null,0,"Producent zewnętrzny - zasoby własne oraz spółek powiązanych"]
[null,null,"Toalety plenerowe",null,"Dni",null,1,null,0,"Producent zewnętrzny - zasoby własne oraz spółek powiązanych"]
[null,null,"Taxi",null,"Odcinek",null,1,null,0,"Producent zewnętrzny - zasoby własne oraz spółek powiązanych"]
[null,null,"Lora",null,"Dni",null,1,null,0,"Producent zewnętrzny - zasoby własne oraz spółek powiązanych"]
[null,null,"Inne środki transportu",null,"Dni",null,1,null,0,"Producent zewnętrzny - zasoby własne oraz spółek powiązanych"]
[null,null,"Agregat",null,"Dni",null,1,null,0,"Producent zewnętrzny - zasoby własne oraz spółek powiązanych"]
[null,null,"Agregat samojezdny",null,"Dni",null,1,null,0,"Producent zewnętrzny - zasoby własne oraz spółek powiązanych"]
[null,null,null,null,null,null,1,null,0,"Producent zewnętrzny - zasoby własne oraz spółek powiązanych"]
[null,null,null,null,null,null,1,null,0,"Producent zewnętrzny - zasoby własne oraz spółek powiązanych"]
[null,null,null,null,null,null,1,null,0,"Producent zewnętrzny - zasoby własne oraz spółek powiązanych"]
["19c.","Okres likwidacji",null,null,null,null,null,null,{"$f":"SUM(I271:I276)","v":0}]
[null,null,"Samochód produkcyjny",null,"Ryczałt",null,1,null,0,"Producent zewnętrzny - zasoby własne oraz spółek powiązanych"]
[null,null,"Samochód rekwizytorski",null,"Dni",null,1,null,0,"Producent zewnętrzny - zasoby własne oraz spółek powiązanych"]
[null,null,"Inne środki transportu",null,"Dni",null,1,null,0,"Producent zewnętrzny - zasoby własne oraz spółek powiązanych"]
[null,null,null,null,null,null,1,null,0,"Producent zewnętrzny - zasoby własne oraz spółek powiązanych"]
[null,null,null,null,null,null,1,null,0,"Producent zewnętrzny - zasoby własne oraz spółek powiązanych"]
[null,null,null,null,null,null,1,null,0,"Producent zewnętrzny - zasoby własne oraz spółek powiązanych"]
["20.","Delegacje,Hotele",null,null,null,null,null,null,{"$f":"SUM(I278,I282,I286,I290)","v":0}]
["20a.","Okres przygotowawczy",null,null,null,null,null,null,{"$f":"SUM(I279:I281)","v":0}]
[null,null,"Hotele ",null,"Dni",null,1,null,{"$f":"F279*G279*H279","v":0},"Producent zewnętrzny - zasoby własne oraz spółek powiązanych"]
[null,null,"Diety",null,"Os. / dni",null,1,null,0,"Producent zewnętrzny - zasoby własne oraz spółek powiązanych"]
[null,null,"Przejazdy",null,"Szt. / os.",null,1,null,0,"Producent zewnętrzny - zasoby własne oraz spółek powiązanych"]
["20b.","Okres zdjęciowy - ekipa",null,null,null,null,null,null,{"$f":"SUM(I283:I285)","v":0}]
[null,null,"Hotele",null,"Dni",null,1,null,{"$f":"F283*G283*H283","v":0},"Producent zewnętrzny - zasoby własne oraz spółek powiązanych"]
[null,null,"Diety",null,"Os. / dni",null,1,null,0,"Producent zewnętrzny - zasoby własne oraz spółek powiązanych"]
[null,null,"Przejazdy",null,"Szt. / os.",null,1,null,0,"Producent zewnętrzny - zasoby własne oraz spółek powiązanych"]
["20c.","Okres zdjęciowy - aktorzy",null,null,null,null,null,null,{"$f":"SUM(I287:I289)","v":0}]
[null,null,"Hotele",null,"Dni",null,1,null,{"$f":"F287*G287*H287","v":0},"Producent zewnętrzny - zasoby własne oraz spółek powiązanych"]
[null,null,"Diety",null,"Os. / dni",null,1,null,0,"Producent zewnętrzny - zasoby własne oraz spółek powiązanych"]
[null,null,"Przejazdy",null,"Szt. / os.",null,1,null,0,"Producent zewnętrzny - zasoby własne oraz spółek powiązanych"]
["20d.","Ryczałty samochodowe",null,null,null,null,null,null,{"$f":"SUM(I291:I292)","v":0}]
[null,null,"Ryczałty samochodowe",null,"Ryczałt",null,1,null,{"$f":"F291*G291*H291","v":0},"Producent zewnętrzny - zasoby własne oraz spółek powiązanych"]
[null,null,"Paliwo do agregatu",null,"Dni",null,1,null,0,"Producent zewnętrzny - zasoby własne oraz spółek powiązanych"]
["21.","Promocja",null,null,null,null,null,null,{"$f":"SUM(I294:I298)","v":0}]
[null,null,"Koszty PR ",null,"Odcinek",null,1,null,{"$f":"F294*G294*H294","v":0},"Producent zewnętrzny - zasoby własne oraz spółek powiązanych"]
[null,null,"Obsługa strony internetowej",null,"Miesiąc",null,1,null,0,"Producent zewnętrzny - zasoby własne oraz spółek powiązanych"]
[null,null,"Przygotowanie making off",null,"Ryczałt",null,1,null,0,"Producent zewnętrzny - zasoby własne oraz spółek powiązanych"]
[null,null,"Ogłoszenia prasowe - promocja",null,"Ryczałt",null,1,null,0,"Producent zewnętrzny - zasoby własne oraz spółek powiązanych"]
[null,null,null,null,null,null,1,null,0,"Producent zewnętrzny - zasoby własne oraz spółek powiązanych"]
["22.","Inne zlecenia",null,null,null,null,null,null,{"$f":"SUM(I300:I305)","v":0}]
[null,null,"Wyszczególnienie (proszę dokonać wyboru obok)",null,"Godz.",null,1,null,{"$f":"F300*G300*H300","v":0},"Producent zewnętrzny - zasoby własne oraz spółek powiązanych"]
[null,null,"Wyszczególnienie (proszę dokonać wyboru obok)",null,"Dni",null,1,null,0,"Producent zewnętrzny - zasoby własne oraz spółek powiązanych"]
[null,null,null,null,null,null,1,null,0,"Producent zewnętrzny - zasoby własne oraz spółek powiązanych"]
[null,null,null,null,null,null,1,null,0,"Producent zewnętrzny - zasoby własne oraz spółek powiązanych"]
[null,null,null,null,null,null,1,null,0,"Producent zewnętrzny - zasoby własne oraz spółek powiązanych"]
[null,null,null,null,null,null,1,null,0,"Producent zewnętrzny - zasoby własne oraz spółek powiązanych"]
[]
[null,"Suma kosztów :","Producent zewnętrzny zasoby własne",null,null,null,null,null,{"$f":"SUMIFS($I$2:$I$305,$J$2:$J$305,\"Producent zewnętrzny - zasoby własne oraz spółek powiązanych\")","v":0}]
[null,null,"Koszty zewnętrzne",null,null,null,null,null,{"$f":"SUMIFS($I$2:$I$305,$J$2:$J$305,\"Koszty zewnętrzne\")","v":0}]
[]
[null,null,"RAZEM koszty bezpośrednie",null,null,null,null,null,{"$f":"SUM(I2,I11,I21,I36,I52,I68,I77,I87,I95,I110,I120,I130,I154,I174,I183,I190,I212,I230,I239,I277,I293,I299)","v":0}]

{"sheet":"Kosztorys szczeg. - zmiany TVP","index":7,"n_rows":321,"n_cols":18,"rows_kept":321,"cut":false,"hidden":true,"merged":[[315,5,315,6]]}
["Lp.","Kategoria","Nazwa","W przypadku osób -wskazać imię i nazwisko,w przypadku firm podać nazwę firmy, w przypadku sprzętu -wskazać producenta,model,typ","Jednostka miary","Liczba","X","Stawka jednostkowa","Suma","Źródło kosztów","Źródło kosztów - zmiany","Forma zatrudnienia","VAT nieodliczalny - 32,32%"]
["1.","Prace literackie",null,null,null,null,null,null,{"$f":"SUM(I3:I10)","v":0},null,null,null,null,null,null,null,"Producent zas własne","Wynajmy zewnętrzne"]
[null,null,{"$f":"'Koszty produkcji - szczegółowy'!C3","v":"Scenariusz oryginalny"},{"$f":"'Koszty produkcji - szczegółowy'!D3","v":0},{"$f":"'Koszty produkcji - szczegółowy'!E3","v":"Odcinek"},{"$f":"'Koszty produkcji - szczegółowy'!F3","v":0},{"$f":"'Koszty produkcji - szczegółowy'!G3","v":1},{"$f":"'Koszty produkcji - szczegółowy'!H3","v":0},{"$f":"'Koszty produkcji - szczegółowy'!I3","v":0},{"$f":"'Koszty produkcji - szczegółowy'!J3","v":"Producent zewnętrzny - zasoby własne oraz spółek powiązanych"},null,null,null,null,null,null,{"$f":"IF(J3=\"Producent- zasoby własne oraz spółek powiązanych\",IF(K3=\"\",I3,0),0)","v":0},{"$f":"IF(J3=\"Koszty zewnętrzne\",IF(K3=\"\",I3,0),0)","v":0}]
[null,null,{"$f":"'Koszty produkcji - szczegółowy'!C4","v":"Scenariusz adaptowany"},{"$f":"'Koszty produkcji - szczegółowy'!D4","v":0},{"$f":"'Koszty produkcji - szczegółowy'!E4","v":"Odcinek"},{"$f":"'Koszty produkcji - szczegółowy'!F4","v":0},{"$f":"'Koszty produkcji - szczegółowy'!G4","v":1},{"$f":"'Koszty produkcji - szczegółowy'!H4","v":0},{"$f":"'Koszty produkcji - szczegółowy'!I4","v":0},{"$f":"'Koszty produkcji - szczegółowy'!J4","v":"Producent zewnętrzny - zasoby własne oraz spółek powiązanych"},null,null,null,null,null,null,0,{"$f":"IF(J4=\"Koszty zewnętrzne\",IF(K4=\"\",I4,0),0)","v":0}]
[null,null,{"$f":"'Koszty produkcji - szczegółowy'!C5","v":"Dialogi"},{"$f":"'Koszty produkcji - szczegółowy'!D5","v":0},{"$f":"'Koszty produkcji - szczegółowy'!E5","v":"Odcinek"},{"$f":"'Koszty produkcji - szczegółowy'!F5","v":0},{"$f":"'Koszty produkcji - szczegółowy'!G5","v":1},{"$f":"'Koszty produkcji - szczegółowy'!H5","v":0},{"$f":"'Koszty produkcji - szczegółowy'!I5","v":0},{"$f":"'Koszty produkcji - szczegółowy'!J5","v":"Producent zewnętrzny - zasoby własne oraz spółek powiązanych"},null,null,null,null,null,null,0,0]
[null,null,{"$f":"'Koszty produkcji - szczegółowy'!C6","v":"Tłumaczenia"},{"$f":"'Koszty produkcji - szczegółowy'!D6","v":0},{"$f":"'Koszty produkcji - szczegółowy'!E6","v":"Odcinek"},{"$f":"'Koszty produkcji - szczegółowy'!F6","v":0},{"$f":"'Koszty produkcji - szczegółowy'!G6","v":1},{"$f":"'Koszty produkcji - szczegółowy'!H6","v":0},{"$f":"'Koszty produkcji - szczegółowy'!I6","v":0},{"$f":"'Koszty produkcji - szczegółowy'!J6","v":"Producent zewnętrzny - zasoby własne oraz spółek powiązanych"},null,null,null,null,null,null,0,0]
[null,null,{"$f":"'Koszty produkcji - szczegółowy'!C7","v":"Licencja do formatu"},{"$f":"'Koszty produkcji - szczegółowy'!D7","v":0},{"$f":"'Koszty produkcji - szczegółowy'!E7","v":"Odcinek"},{"$f":"'Koszty produkcji - szczegółowy'!F7","v":0},{"$f":"'Koszty produkcji - szczegółowy'!G7","v":1},{"$f":"'Koszty produkcji - szczegółowy'!H7","v":0},{"$f":"'Koszty produkcji - szczegółowy'!I7","v":0},{"$f":"'Koszty produkcji - szczegółowy'!J7","v":"Producent zewnętrzny - zasoby własne oraz spółek powiązanych"},null,null,null,null,null,null,0,0]
[null,null,{"$f":"'Koszty produkcji - szczegółowy'!C8","v":0},{"$f":"'Koszty produkcji - szczegółowy'!D8","v":0},{"$f":"'Koszty produkcji - szczegółowy'!E8","v":0},{"$f":"'Koszty produkcji - szczegółowy'!F8","v":0},{"$f":"'Koszty produkcji - szczegółowy'!G8","v":1},{"$f":"'Koszty produkcji - szczegółowy'!H8","v":0},{"$f":"'Koszty produkcji - szczegółowy'!I8","v":0},{"$f":"'Koszty produkcji - szczegółowy'!J8","v":"Producent zewnętrzny - zasoby własne oraz spółek powiązanych"},null,null,null,null,null,null,0,0]
[null,null,{"$f":"'Koszty produkcji - szczegółowy'!C9","v":0},{"$f":"'Koszty produkcji - szczegółowy'!D9","v":0},{"$f":"'Koszty produkcji - szczegółowy'!E9","v":0},{"$f":"'Koszty produkcji - szczegółowy'!F9","v":0},{"$f":"'Koszty produkcji - szczegółowy'!G9","v":1},{"$f":"'Koszty produkcji - szczegółowy'!H9","v":0},{"$f":"'Koszty produkcji - szczegółowy'!I9","v":0},{"$f":"'Koszty produkcji - szczegółowy'!J9","v":"Producent zewnętrzny - zasoby własne oraz spółek powiązanych"},null,null,null,null,null,null,0,0]
[null,null,{"$f":"'Koszty produkcji - szczegółowy'!C10","v":0},{"$f":"'Koszty produkcji - szczegółowy'!D10","v":0},{"$f":"'Koszty produkcji - szczegółowy'!E10","v":0},{"$f":"'Koszty produkcji - szczegółowy'!F10","v":0},{"$f":"'Koszty produkcji - szczegółowy'!G10","v":1},{"$f":"'Koszty produkcji - szczegółowy'!H10","v":0},{"$f":"'Koszty produkcji - szczegółowy'!I10","v":0},{"$f":"'Koszty produkcji - szczegółowy'!J10","v":"Producent zewnętrzny - zasoby własne oraz spółek powiązanych"},null,null,null,null,null,null,null,0]
["2.","Pion reżyserski",null,null,null,null,null,null,{"$f":"SUM(I12:I20)","v":0},null,null,null,null,null,null,null,{"$f":"IF(J11=\"Producent- zasoby własne oraz spółek powiązanych\",IF(K11=\"\",I11,0),0)","v":0},0]
[null,null,{"$f":"'Koszty produkcji - szczegółowy'!C12","v":"Reżyser"},{"$f":"'Koszty produkcji - szczegółowy'!D12","v":0},{"$f":"'Koszty produkcji - szczegółowy'!E12","v":"Odcinek"},{"$f":"'Koszty produkcji - szczegółowy'!F12","v":0},{"$f":"'Koszty produkcji - szczegółowy'!G12","v":1},{"$f":"'Koszty produkcji - szczegółowy'!H12","v":0},{"$f":"'Koszty produkcji - szczegółowy'!I12","v":0},{"$f":"'Koszty produkcji - szczegółowy'!J12","v":"Producent zewnętrzny - zasoby własne oraz spółek powiązanych"},null,null,null,null,null,null,0,0]
[null,null,{"$f":"'Koszty produkcji - szczegółowy'!C13","v":"II reżyser biuro"},{"$f":"'Koszty produkcji - szczegółowy'!D13","v":0},{"$f":"'Koszty produkcji - szczegółowy'!E13","v":"Odcinek"},{"$f":"'Koszty produkcji - szczegółowy'!F13","v":0},{"$f":"'Koszty produkcji - szczegółowy'!G13","v":1},{"$f":"'Koszty produkcji - szczegółowy'!H13","v":0},{"$f":"'Koszty produkcji - szczegółowy'!I13","v":0},{"$f":"'Koszty produkcji - szczegółowy'!J13","v":"Producent zewnętrzny - zasoby własne oraz spółek powiązanych"},null,null,null,null,null,null,0,0]
[null,null,{"$f":"'Koszty produkcji - szczegółowy'!C14","v":"II reżyser plan"},{"$f":"'Koszty produkcji - szczegółowy'!D14","v":0},{"$f":"'Koszty produkcji - szczegółowy'!E14","v":"Dni"},{"$f":"'Koszty produkcji - szczegółowy'!F14","v":0},{"$f":"'Koszty produkcji - szczegółowy'!G14","v":1},{"$f":"'Koszty produkcji - szczegółowy'!H14","v":0},{"$f":"'Koszty produkcji - szczegółowy'!I14","v":0},{"$f":"'Koszty produkcji - szczegółowy'!J14","v":"Producent zewnętrzny - zasoby własne oraz spółek powiązanych"},null,null,null,null,null,null,0,0]
[null,null,{"$f":"'Koszty produkcji - szczegółowy'!C15","v":"Reżyser castingu"},{"$f":"'Koszty produkcji - szczegółowy'!D15","v":0},{"$f":"'Koszty produkcji - szczegółowy'!E15","v":"Odcinek"},{"$f":"'Koszty produkcji - szczegółowy'!F15","v":0},{"$f":"'Koszty produkcji - szczegółowy'!G15","v":1},{"$f":"'Koszty produkcji - szczegółowy'!H15","v":0},{"$f":"'Koszty produkcji - szczegółowy'!I15","v":0},{"$f":"'Koszty produkcji - szczegółowy'!J15","v":"Producent zewnętrzny - zasoby własne oraz spółek powiązanych"},null,null,null,null,null,null,0,0]
[null,null,{"$f":"'Koszty produkcji - szczegółowy'!C16","v":"Asystent reżysera"},{"$f":"'Koszty produkcji - szczegółowy'!D16","v":0},{"$f":"'Koszty produkcji - szczegółowy'!E16","v":"Odcinek"},{"$f":"'Koszty produkcji - szczegółowy'!F16","v":0},{"$f":"'Koszty produkcji - szczegółowy'!G16","v":1},{"$f":"'Koszty produkcji - szczegółowy'!H16","v":0},{"$f":"'Koszty produkcji - szczegółowy'!I16","v":0},{"$f":"'Koszty produkcji - szczegółowy'!J16","v":"Producent zewnętrzny - zasoby własne oraz spółek powiązanych"},null,null,null,null,null,null,0,0]
[null,null,{"$f":"'Koszty produkcji - szczegółowy'!C17","v":"Script"},{"$f":"'Koszty produkcji - szczegółowy'!D17","v":0},{"$f":"'Koszty produkcji - szczegółowy'!E17","v":"Dni"},{"$f":"'Koszty produkcji - szczegółowy'!F17","v":0},{"$f":"'Koszty produkcji - szczegółowy'!G17","v":1},{"$f":"'Koszty produkcji - szczegółowy'!H17","v":0},{"$f":"'Koszty produkcji - szczegółowy'!I17","v":0},{"$f":"'Koszty produkcji - szczegółowy'!J17","v":"Producent zewnętrzny - zasoby własne oraz spółek powiązanych"},null,null,null,null,null,null,0,0]
[null,null,{"$f":"'Koszty produkcji - szczegółowy'!C18","v":0},{"$f":"'Koszty produkcji - szczegółowy'!D18","v":0},{"$f":"'Koszty produkcji - szczegółowy'!E18","v":0},{"$f":"'Koszty produkcji - szczegółowy'!F18","v":0},{"$f":"'Koszty produkcji - szczegółowy'!G18","v":1},{"$f":"'Koszty produkcji - szczegółowy'!H18","v":0},{"$f":"'Koszty produkcji - szczegółowy'!I18","v":0},{"$f":"'Koszty produkcji - szczegółowy'!J18","v":"Producent zewnętrzny - zasoby własne oraz spółek powiązanych"},null,null,null,null,null,null,0,0]
[null,null,{"$f":"'Koszty produkcji - szczegółowy'!C19","v":0},{"$f":"'Koszty produkcji - szczegółowy'!D19","v":0},{"$f":"'Koszty produkcji - szczegółowy'!E19","v":0},{"$f":"'Koszty produkcji - szczegółowy'!F19","v":0},{"$f":"'Koszty produkcji - szczegółowy'!G19","v":1},{"$f":"'Koszty produkcji - szczegółowy'!H19","v":0},{"$f":"'Koszty produkcji - szczegółowy'!I19","v":0},{"$f":"'Koszty produkcji - szczegółowy'!J19","v":"Producent zewnętrzny - zasoby własne oraz spółek powiązanych"},null,null,null,null,null,null,null,0]
[null,null,{"$f":"'Koszty produkcji - szczegółowy'!C20","v":0},{"$f":"'Koszty produkcji - szczegółowy'!D20","v":0},{"$f":"'Koszty produkcji - szczegółowy'!E20","v":0},{"$f":"'Koszty produkcji - szczegółowy'!F20","v":0},{"$f":"'Koszty produkcji - szczegółowy'!G20","v":1},{"$f":"'Koszty produkcji - szczegółowy'!H20","v":0},{"$f":"'Koszty produkcji - szczegółowy'!I20","v":0},{"$f":"'Koszty produkcji - szczegółowy'!J20","v":"Producent zewnętrzny - zasoby własne oraz spółek powiązanych"},null,null,null,null,null,null,null,0]
["3.","Pion produkcji",null,null,null,null,null,null,{"$f":"SUM(I22:I35)","v":0},null,null,null,null,null,null,null,{"$f":"IF(J21=\"Producent- zasoby własne oraz spółek powiązanych\",IF(K21=\"\",I21,0),0)","v":0},0]
[null,null,{"$f":"'Koszty produkcji - szczegółowy'!C22","v":"Producent"},{"$f":"'Koszty produkcji - szczegółowy'!D22","v":0},{"$f":"'Koszty produkcji - szczegółowy'!E22","v":"Odcinek"},{"$f":"'Koszty produkcji - szczegółowy'!F22","v":0},{"$f":"'Koszty produkcji - szczegółowy'!G22","v":1},{"$f":"'Koszty produkcji - szczegółowy'!H22","v":0},{"$f":"'Koszty produkcji - szczegółowy'!I22","v":0},{"$f":"'Koszty produkcji - szczegółowy'!J22","v":"Producent zewnętrzny - zasoby własne oraz spółek powiązanych"},null,null,null,null,null,null,0,0]
[null,null,{"$f":"'Koszty produkcji - szczegółowy'!C23","v":"Kierownik produkcji"},{"$f":"'Koszty produkcji - szczegółowy'!D23","v":0},{"$f":"'Koszty produkcji - szczegółowy'!E23","v":"Odcinek"},{"$f":"'Koszty produkcji - szczegółowy'!F23","v":0},{"$f":"'Koszty produkcji - szczegółowy'!G23","v":1},{"$f":"'Koszty produkcji - szczegółowy'!H23","v":0},{"$f":"'Koszty produkcji - szczegółowy'!I23","v":0},{"$f":"'Koszty produkcji - szczegółowy'!J23","v":"Producent zewnętrzny - zasoby własne oraz spółek powiązanych"},null,null,null,null,null,null,0,0]
[null,null,{"$f":"'Koszty produkcji - szczegółowy'!C24","v":"II kierownik produkcji biuro"},{"$f":"'Koszty produkcji - szczegółowy'!D24","v":0},{"$f":"'Koszty produkcji - szczegółowy'!E24","v":"Odcinek"},{"$f":"'Koszty produkcji - szczegółowy'!F24","v":0},{"$f":"'Koszty produkcji - szczegółowy'!G24","v":1},{"$f":"'Koszty produkcji - szczegółowy'!H24","v":0},{"$f":"'Koszty produkcji - szczegółowy'!I24","v":0},{"$f":"'Koszty produkcji - szczegółowy'!J24","v":"Producent zewnętrzny - zasoby własne oraz spółek powiązanych"},null,null,null,null,null,null,0,0]
[null,null,{"$f":"'Koszty produkcji - szczegółowy'!C25","v":"II kierownik produkcji obiekty"},{"$f":"'Koszty produkcji - szczegółowy'!D25","v":0},{"$f":"'Koszty produkcji - szczegółowy'!E25","v":"Odcinek"},{"$f":"'Koszty produkcji - szczegółowy'!F25","v":0},{"$f":"'Koszty produkcji - szczegółowy'!G25","v":1},{"$f":"'Koszty produkcji - szczegółowy'!H25","v":0},{"$f":"'Koszty produkcji - szczegółowy'!I25","v":0},{"$f":"'Koszty produkcji - szczegółowy'!J25","v":"Producent zewnętrzny - zasoby własne oraz spółek powiązanych"},null,null,null,null,null,null,0,0]
[null,null,{"$f":"'Koszty produkcji - szczegółowy'!C26","v":"II kierownik produkcji postprodukcja"},{"$f":"'Koszty produkcji - szczegółowy'!D26","v":0},{"$f":"'Koszty produkcji - szczegółowy'!E26","v":"Odcinek"},{"$f":"'Koszty produkcji - szczegółowy'!F26","v":0},{"$f":"'Koszty produkcji - szczegółowy'!G26","v":1},{"$f":"'Koszty produkcji - szczegółowy'!H26","v":0},{"$f":"'Koszty produkcji - szczegółowy'!I26","v":0},{"$f":"'Koszty produkcji - szczegółowy'!J26","v":"Producent zewnętrzny - zasoby własne oraz spółek powiązanych"},null,null,null,null,null,null,0,0]
[null,null,{"$f":"'Koszty produkcji - szczegółowy'!C27","v":"Asystent kierownika produkcji"},{"$f":"'Koszty produkcji - szczegółowy'!D27","v":0},{"$f":"'Koszty produkcji - szczegółowy'!E27","v":"Odcinek"},{"$f":"'Koszty produkcji - szczegółowy'!F27","v":0},{"$f":"'Koszty produkcji - szczegółowy'!G27","v":1},{"$f":"'Koszty produkcji - szczegółowy'!H27","v":0},{"$f":"'Koszty produkcji - szczegółowy'!I27","v":0},{"$f":"'Koszty produkcji - szczegółowy'!J27","v":"Producent zewnętrzny - zasoby własne oraz spółek powiązanych"},null,null,null,null,null,null,0,0]
[null,null,{"$f":"'Koszty produkcji - szczegółowy'!C28","v":"Kierownik planu"},{"$f":"'Koszty produkcji - szczegółowy'!D28","v":0},{"$f":"'Koszty produkcji - szczegółowy'!E28","v":"Dni"},{"$f":"'Koszty produkcji - szczegółowy'!F28","v":0},{"$f":"'Koszty produkcji - szczegółowy'!G28","v":1},{"$f":"'Koszty produkcji - szczegółowy'!H28","v":0},{"$f":"'Koszty produkcji - szczegółowy'!I28","v":0},{"$f":"'Koszty produkcji - szczegółowy'!J28","v":"Producent zewnętrzny - zasoby własne oraz spółek powiązanych"},null,null,null,null,null,null,0,0]
[null,null,{"$f":"'Koszty produkcji - szczegółowy'!C29","v":"Administrator"},{"$f":"'Koszty produkcji - szczegółowy'!D29","v":0},{"$f":"'Koszty produkcji - szczegółowy'!E29","v":"Odcinek"},{"$f":"'Koszty produkcji - szczegółowy'!F29","v":0},{"$f":"'Koszty produkcji - szczegółowy'!G29","v":1},{"$f":"'Koszty produkcji - szczegółowy'!H29","v":0},{"$f":"'Koszty produkcji - szczegółowy'!I29","v":0},{"$f":"'Koszty produkcji - szczegółowy'!J29","v":"Producent zewnętrzny - zasoby własne oraz spółek powiązanych"},null,null,null,null,null,null,0,0]
[null,null,{"$f":"'Koszty produkcji - szczegółowy'!C30","v":"Kasjer"},{"$f":"'Koszty produkcji - szczegółowy'!D30","v":0},{"$f":"'Koszty produkcji - szczegółowy'!E30","v":"Odcinek"},{"$f":"'Koszty produkcji - szczegółowy'!F30","v":0},{"$f":"'Koszty produkcji - szczegółowy'!G30","v":1},{"$f":"'Koszty produkcji - szczegółowy'!H30","v":0},{"$f":"'Koszty produkcji - szczegółowy'!I30","v":0},{"$f":"'Koszty produkcji - szczegółowy'!J30","v":"Producent zewnętrzny - zasoby własne oraz spółek powiązanych"},null,null,null,null,null,null,0,0]
[null,null,{"$f":"'Koszty produkcji - szczegółowy'!C31","v":"Sekretarka grupy zdjęciowej"},{"$f":"'Koszty produkcji - szczegółowy'!D31","v":0},{"$f":"'Koszty produkcji - szczegółowy'!E31","v":"Odcinek"},{"$f":"'Koszty produkcji - szczegółowy'!F31","v":0},{"$f":"'Koszty produkcji - szczegółowy'!G31","v":1},{"$f":"'Koszty produkcji - szczegółowy'!H31","v":0},{"$f":"'Koszty produkcji - szczegółowy'!I31","v":0},{"$f":"'Koszty produkcji - szczegółowy'!J31","v":"Producent zewnętrzny - zasoby własne oraz spółek powiązanych"},null,null,null,null,null,null,0,0]
[null,null,{"$f":"'Koszty produkcji - szczegółowy'!C32","v":"Opracowanie listy dialogowej"},{"$f":"'Koszty produkcji - szczegółowy'!D32","v":0},{"$f":"'Koszty produkcji - szczegółowy'!E32","v":"Odcinek"},{"$f":"'Koszty produkcji - szczegółowy'!F32","v":0},{"$f":"'Koszty produkcji - szczegółowy'!G32","v":1},{"$f":"'Koszty produkcji - szczegółowy'!H32","v":0},{"$f":"'Koszty produkcji - szczegółowy'!I32","v":0},{"$f":"'Koszty produkcji - szczegółowy'!J32","v":"Producent zewnętrzny - zasoby własne oraz spółek powiązanych"},null,null,null,null,null,null,0,0]
[null,null,{"$f":"'Koszty produkcji - szczegółowy'!C33","v":0},{"$f":"'Koszty produkcji - szczegółowy'!D33","v":0},{"$f":"'Koszty produkcji - szczegółowy'!E33","v":0},{"$f":"'Koszty produkcji - szczegółowy'!F33","v":0},{"$f":"'Koszty produkcji - szczegółowy'!G33","v":1},{"$f":"'Koszty produkcji - szczegółowy'!H33","v":0},{"$f":"'Koszty produkcji - szczegółowy'!I33","v":0},{"$f":"'Koszty produkcji - szczegółowy'!J33","v":"Producent zewnętrzny - zasoby własne oraz spółek powiązanych"},null,null,null,null,null,null,0,0]
[null,null,{"$f":"'Koszty produkcji - szczegółowy'!C34","v":0},{"$f":"'Koszty produkcji - szczegółowy'!D34","v":0},{"$f":"'Koszty produkcji - szczegółowy'!E34","v":0},{"$f":"'Koszty produkcji - szczegółowy'!F34","v":0},{"$f":"'Koszty produkcji - szczegółowy'!G34","v":1},{"$f":"'Koszty produkcji - szczegółowy'!H34","v":0},{"$f":"'Koszty produkcji - szczegółowy'!I34","v":0},{"$f":"'Koszty produkcji - szczegółowy'!J34","v":"Producent zewnętrzny - zasoby własne oraz spółek powiązanych"},null,null,null,null,null,null,null,0]
[null,null,{"$f":"'Koszty produkcji - szczegółowy'!C35","v":0},{"$f":"'Koszty produkcji - szczegółowy'!D35","v":0},{"$f":"'Koszty produkcji - szczegółowy'!E35","v":0},{"$f":"'Koszty produkcji - szczegółowy'!F35","v":0},{"$f":"'Koszty produkcji - szczegółowy'!G35","v":1},{"$f":"'Koszty produkcji - szczegółowy'!H35","v":0},{"$f":"'Koszty produkcji - szczegółowy'!I35","v":0},{"$f":"'Koszty produkcji - szczegółowy'!J35","v":"Producent zewnętrzny - zasoby własne oraz spółek powiązanych"},null,null,null,null,null,null,null,0]
["4.","Pion operatorski",null,null,null,null,null,null,{"$f":"SUM(I37:I51)","v":0},null,null,null,null,null,null,null,{"$f":"IF(J36=\"Producent- zasoby własne oraz spółek powiązanych\",IF(K36=\"\",I36,0),0)","v":0},0]
[null,null,{"$f":"'Koszty produkcji - szczegółowy'!C37","v":"Operator obrazu"},{"$f":"'Koszty produkcji - szczegółowy'!D37","v":0},{"$f":"'Koszty produkcji - szczegółowy'!E37","v":"Dni"},{"$f":"'Koszty produkcji - szczegółowy'!F37","v":0},{"$f":"'Koszty produkcji - szczegółowy'!G37","v":1},{"$f":"'Koszty produkcji - szczegółowy'!H37","v":0},{"$f":"'Koszty produkcji - szczegółowy'!I37","v":0},{"$f":"'Koszty produkcji - szczegółowy'!J37","v":"Producent zewnętrzny - zasoby własne oraz spółek powiązanych"},null,null,null,null,null,null,0,0]
[null,null,{"$f":"'Koszty produkcji - szczegółowy'!C38","v":"Operator kamery "},{"$f":"'Koszty produkcji - szczegółowy'!D38","v":0},{"$f":"'Koszty produkcji - szczegółowy'!E38","v":"Dni"},{"$f":"'Koszty produkcji - szczegółowy'!F38","v":0},{"$f":"'Koszty produkcji - szczegółowy'!G38","v":1},{"$f":"'Koszty produkcji - szczegółowy'!H38","v":0},{"$f":"'Koszty produkcji - szczegółowy'!I38","v":0},{"$f":"'Koszty produkcji - szczegółowy'!J38","v":"Producent zewnętrzny - zasoby własne oraz spółek powiązanych"},null,null,null,null,null,null,0,0]
[null,null,{"$f":"'Koszty produkcji - szczegółowy'!C39","v":"Operator steadicamu"},{"$f":"'Koszty produkcji - szczegółowy'!D39","v":0},{"$f":"'Koszty produkcji - szczegółowy'!E39","v":"Dni"},{"$f":"'Koszty produkcji - szczegółowy'!F39","v":0},{"$f":"'Koszty produkcji - szczegółowy'!G39","v":1},{"$f":"'Koszty produkcji - szczegółowy'!H39","v":0},{"$f":"'Koszty produkcji - szczegółowy'!I39","v":0},{"$f":"'Koszty produkcji - szczegółowy'!J39","v":"Producent zewnętrzny - zasoby własne oraz spółek powiązanych"},null,null,null,null,null,null,0,0]
[null,null,{"$f":"'Koszty produkcji - szczegółowy'!C40","v":"Asystent kamery"},{"$f":"'Koszty produkcji - szczegółowy'!D40","v":0},{"$f":"'Koszty produkcji - szczegółowy'!E40","v":"Dni"},{"$f":"'Koszty produkcji - szczegółowy'!F40","v":0},{"$f":"'Koszty produkcji - szczegółowy'!G40","v":1},{"$f":"'Koszty produkcji - szczegółowy'!H40","v":0},{"$f":"'Koszty produkcji - szczegółowy'!I40","v":0},{"$f":"'Koszty produkcji - szczegółowy'!J40","v":"Producent zewnętrzny - zasoby własne oraz spółek powiązanych"},null,null,null,null,null,null,0,0]
[null,null,{"$f":"'Koszty produkcji - szczegółowy'!C41","v":"Ostrzyciel"},{"$f":"'Koszty produkcji - szczegółowy'!D41","v":0},{"$f":"'Koszty produkcji - szczegółowy'!E41","v":"Dni"},{"$f":"'Koszty produkcji - szczegółowy'!F41","v":0},{"$f":"'Koszty produkcji - szczegółowy'!G41","v":1},{"$f":"'Koszty produkcji - szczegółowy'!H41","v":0},{"$f":"'Koszty produkcji - szczegółowy'!I41","v":0},{"$f":"'Koszty produkcji - szczegółowy'!J41","v":"Producent zewnętrzny - zasoby własne oraz spółek powiązanych"},null,null,null,null,null,null,0,0]
[null,null,{"$f":"'Koszty produkcji - szczegółowy'!C42","v":"Operator CCU"},{"$f":"'Koszty produkcji - szczegółowy'!D42","v":0},{"$f":"'Koszty produkcji - szczegółowy'!E42","v":"Dni"},{"$f":"'Koszty produkcji - szczegółowy'!F42","v":0},{"$f":"'Koszty produkcji - szczegółowy'!G42","v":1},{"$f":"'Koszty produkcji - szczegółowy'!H42","v":0},{"$f":"'Koszty produkcji - szczegółowy'!I42","v":0},{"$f":"'Koszty produkcji - szczegółowy'!J42","v":"Producent zewnętrzny - zasoby własne oraz spółek powiązanych"},null,null,null,null,null,null,0,0]
[null,null,{"$f":"'Koszty produkcji - szczegółowy'!C43","v":"DIT"},{"$f":"'Koszty produkcji - szczegółowy'!D43","v":0},{"$f":"'Koszty produkcji - szczegółowy'!E43","v":"Dni"},{"$f":"'Koszty produkcji - szczegółowy'!F43","v":0},{"$f":"'Koszty produkcji - szczegółowy'!G43","v":1},{"$f":"'Koszty produkcji - szczegółowy'!H43","v":0},{"$f":"'Koszty produkcji - szczegółowy'!I43","v":0},{"$f":"'Koszty produkcji - szczegółowy'!J43","v":"Producent zewnętrzny - zasoby własne oraz spółek powiązanych"},null,null,null,null,null,null,0,0]
[null,null,{"$f":"'Koszty produkcji - szczegółowy'!C44","v":"Wózkarz"},{"$f":"'Koszty produkcji - szczegółowy'!D44","v":0},{"$f":"'Koszty produkcji - szczegółowy'!E44","v":"Dni"},{"$f":"'Koszty produkcji - szczegółowy'!F44","v":0},{"$f":"'Koszty produkcji - szczegółowy'!G44","v":1},{"$f":"'Koszty produkcji - szczegółowy'!H44","v":0},{"$f":"'Koszty produkcji - szczegółowy'!I44","v":0},{"$f":"'Koszty produkcji - szczegółowy'!J44","v":"Producent zewnętrzny - zasoby własne oraz spółek powiązanych"},null,null,null,null,null,null,0,0]
[null,null,{"$f":"'Koszty produkcji - szczegółowy'!C45","v":"Pomocnik wózkarza"},{"$f":"'Koszty produkcji - szczegółowy'!D45","v":0},{"$f":"'Koszty produkcji - szczegółowy'!E45","v":"Dni"},{"$f":"'Koszty produkcji - szczegółowy'!F45","v":0},{"$f":"'Koszty produkcji - szczegółowy'!G45","v":1},{"$f":"'Koszty produkcji - szczegółowy'!H45","v":0},{"$f":"'Koszty produkcji - szczegółowy'!I45","v":0},{"$f":"'Koszty produkcji - szczegółowy'!J45","v":"Producent zewnętrzny - zasoby własne oraz spółek powiązanych"},null,null,null,null,null,null,0,0]
[null,null,{"$f":"'Koszty produkcji - szczegółowy'!C46","v":"Mistrz oświetlenia"},{"$f":"'Koszty produkcji - szczegółowy'!D46","v":0},{"$f":"'Koszty produkcji - szczegółowy'!E46","v":"Dni"},{"$f":"'Koszty produkcji - szczegółowy'!F46","v":0},{"$f":"'Koszty produkcji - szczegółowy'!G46","v":1},{"$f":"'Koszty produkcji - szczegółowy'!H46","v":0},{"$f":"'Koszty produkcji - szczegółowy'!I46","v":0},{"$f":"'Koszty produkcji - szczegółowy'!J46","v":"Producent zewnętrzny - zasoby własne oraz spółek powiązanych"},null,null,null,null,null,null,0,0]
[null,null,{"$f":"'Koszty produkcji - szczegółowy'!C47","v":"Oświetlacz"},{"$f":"'Koszty produkcji - szczegółowy'!D47","v":0},{"$f":"'Koszty produkcji - szczegółowy'!E47","v":"Dni"},{"$f":"'Koszty produkcji - szczegółowy'!F47","v":0},{"$f":"'Koszty produkcji - szczegółowy'!G47","v":1},{"$f":"'Koszty produkcji - szczegółowy'!H47","v":0},{"$f":"'Koszty produkcji - szczegółowy'!I47","v":0},{"$f":"'Koszty produkcji - szczegółowy'!J47","v":"Producent zewnętrzny - zasoby własne oraz spółek powiązanych"},null,null,null,null,null,null,0,0]
[null,null,{"$f":"'Koszty produkcji - szczegółowy'!C48","v":"Fotosista"},{"$f":"'Koszty produkcji - szczegółowy'!D48","v":0},{"$f":"'Koszty produkcji - szczegółowy'!E48","v":"Odcinek"},{"$f":"'Koszty produkcji - szczegółowy'!F48","v":0},{"$f":"'Koszty produkcji - szczegółowy'!G48","v":1},{"$f":"'Koszty produkcji - szczegółowy'!H48","v":0},{"$f":"'Koszty produkcji - szczegółowy'!I48","v":0},{"$f":"'Koszty produkcji - szczegółowy'!J48","v":"Producent zewnętrzny - zasoby własne oraz spółek powiązanych"},null,null,null,null,null,null,0,0]
[null,null,{"$f":"'Koszty produkcji - szczegółowy'!C49","v":0},{"$f":"'Koszty produkcji - szczegółowy'!D49","v":0},{"$f":"'Koszty produkcji - szczegółowy'!E49","v":0},{"$f":"'Koszty produkcji - szczegółowy'!F49","v":0},{"$f":"'Koszty produkcji - szczegółowy'!G49","v":1},{"$f":"'Koszty produkcji - szczegółowy'!H49","v":0},{"$f":"'Koszty produkcji - szczegółowy'!I49","v":0},{"$f":"'Koszty produkcji - szczegółowy'!J49","v":"Producent zewnętrzny - zasoby własne oraz spółek powiązanych"},null,null,null,null,null,null,0,0]
[null,null,{"$f":"'Koszty produkcji - szczegółowy'!C50","v":0},{"$f":"'Koszty produkcji - szczegółowy'!D50","v":0},{"$f":"'Koszty produkcji - szczegółowy'!E50","v":0},{"$f":"'Koszty produkcji - szczegółowy'!F50","v":0},{"$f":"'Koszty produkcji - szczegółowy'!G50","v":1},{"$f":"'Koszty produkcji - szczegółowy'!H50","v":0},{"$f":"'Koszty produkcji - szczegółowy'!I50","v":0},{"$f":"'Koszty produkcji - szczegółowy'!J50","v":"Producent zewnętrzny - zasoby własne oraz spółek powiązanych"},null,null,null,null,null,null,null,0]
[null,null,{"$f":"'Koszty produkcji - szczegółowy'!C51","v":0},{"$f":"'Koszty produkcji - szczegółowy'!D51","v":0},{"$f":"'Koszty produkcji - szczegółowy'!E51","v":0},{"$f":"'Koszty produkcji - szczegółowy'!F51","v":0},{"$f":"'Koszty produkcji - szczegółowy'!G51","v":1},{"$f":"'Koszty produkcji - szczegółowy'!H51","v":0},{"$f":"'Koszty produkcji - szczegółowy'!I51","v":0},{"$f":"'Koszty produkcji - szczegółowy'!J51","v":"Producent zewnętrzny - zasoby własne oraz spółek powiązanych"},null,null,null,null,null,null,null,0]
["5.","Pion scenografii ",null,null,null,null,null,null,{"$f":"SUM(I53:I67)","v":0},null,null,null,null,null,null,null,{"$f":"IF(J52=\"Producent- zasoby własne oraz spółek powiązanych\",IF(K52=\"\",I52,0),0)","v":0},0]
[null,null,{"$f":"'Koszty produkcji - szczegółowy'!C53","v":"Scenograf"},{"$f":"'Koszty produkcji - szczegółowy'!D53","v":0},{"$f":"'Koszty produkcji - szczegółowy'!E53","v":"Odcinek"},{"$f":"'Koszty produkcji - szczegółowy'!F53","v":0},{"$f":"'Koszty produkcji - szczegółowy'!G53","v":1},{"$f":"'Koszty produkcji - szczegółowy'!H53","v":0},{"$f":"'Koszty produkcji - szczegółowy'!I53","v":0},{"$f":"'Koszty produkcji - szczegółowy'!J53","v":"Producent zewnętrzny - zasoby własne oraz spółek powiązanych"},null,null,null,null,null,null,0,0]
[null,null,{"$f":"'Koszty produkcji - szczegółowy'!C54","v":"II scenograf"},{"$f":"'Koszty produkcji - szczegółowy'!D54","v":0},{"$f":"'Koszty produkcji - szczegółowy'!E54","v":"Dni"},{"$f":"'Koszty produkcji - szczegółowy'!F54","v":0},{"$f":"'Koszty produkcji - szczegółowy'!G54","v":1},{"$f":"'Koszty produkcji - szczegółowy'!H54","v":0},{"$f":"'Koszty produkcji - szczegółowy'!I54","v":0},{"$f":"'Koszty produkcji - szczegółowy'!J54","v":"Producent zewnętrzny - zasoby własne oraz spółek powiązanych"},null,null,null,null,null,null,0,0]
[null,null,{"$f":"'Koszty produkcji - szczegółowy'!C55","v":"Asystent scenografa"},{"$f":"'Koszty produkcji - szczegółowy'!D55","v":0},{"$f":"'Koszty produkcji - szczegółowy'!E55","v":"Odcinek"},{"$f":"'Koszty produkcji - szczegółowy'!F55","v":0},{"$f":"'Koszty produkcji - szczegółowy'!G55","v":1},{"$f":"'Koszty produkcji - szczegółowy'!H55","v":0},{"$f":"'Koszty produkcji - szczegółowy'!I55","v":0},{"$f":"'Koszty produkcji - szczegółowy'!J55","v":"Producent zewnętrzny - zasoby własne oraz spółek powiązanych"},null,null,null,null,null,null,0,0]
[null,null,{"$f":"'Koszty produkcji - szczegółowy'!C56","v":"Dekorator wnętrz"},{"$f":"'Koszty produkcji - szczegółowy'!D56","v":0},{"$f":"'Koszty produkcji - szczegółowy'!E56","v":"Odcinek"},{"$f":"'Koszty produkcji - szczegółowy'!F56","v":0},{"$f":"'Koszty produkcji - szczegółowy'!G56","v":1},{"$f":"'Koszty produkcji - szczegółowy'!H56","v":0},{"$f":"'Koszty produkcji - szczegółowy'!I56","v":0},{"$f":"'Koszty produkcji - szczegółowy'!J56","v":"Producent zewnętrzny - zasoby własne oraz spółek powiązanych"},null,null,null,null,null,null,0,0]
[null,null,{"$f":"'Koszty produkcji - szczegółowy'!C57","v":"Rekwizytor"},{"$f":"'Koszty produkcji - szczegółowy'!D57","v":0},{"$f":"'Koszty produkcji - szczegółowy'!E57","v":"Dni"},{"$f":"'Koszty produkcji - szczegółowy'!F57","v":0},{"$f":"'Koszty produkcji - szczegółowy'!G57","v":1},{"$f":"'Koszty produkcji - szczegółowy'!H57","v":0},{"$f":"'Koszty produkcji - szczegółowy'!I57","v":0},{"$f":"'Koszty produkcji - szczegółowy'!J57","v":"Producent zewnętrzny - zasoby własne oraz spółek powiązanych"},null,null,null,null,null,null,0,0]
[null,null,{"$f":"'Koszty produkcji - szczegółowy'!C58","v":"Asystent rekwizytora"},{"$f":"'Koszty produkcji - szczegółowy'!D58","v":0},{"$f":"'Koszty produkcji - szczegółowy'!E58","v":"Dni"},{"$f":"'Koszty produkcji - szczegółowy'!F58","v":0},{"$f":"'Koszty produkcji - szczegółowy'!G58","v":1},{"$f":"'Koszty produkcji - szczegółowy'!H58","v":0},{"$f":"'Koszty produkcji - szczegółowy'!I58","v":0},{"$f":"'Koszty produkcji - szczegółowy'!J58","v":"Producent zewnętrzny - zasoby własne oraz spółek powiązanych"},null,null,null,null,null,null,0,0]
[null,null,{"$f":"'Koszty produkcji - szczegółowy'!C59","v":"Rekwizytor - plan"},{"$f":"'Koszty produkcji - szczegółowy'!D59","v":0},{"$f":"'Koszty produkcji - szczegółowy'!E59","v":"Dni"},{"$f":"'Koszty produkcji - szczegółowy'!F59","v":0},{"$f":"'Koszty produkcji - szczegółowy'!G59","v":1},{"$f":"'Koszty produkcji - szczegółowy'!H59","v":0},{"$f":"'Koszty produkcji - szczegółowy'!I59","v":0},{"$f":"'Koszty produkcji - szczegółowy'!J59","v":"Producent zewnętrzny - zasoby własne oraz spółek powiązanych"},null,null,null,null,null,null,0,0]
[null,null,{"$f":"'Koszty produkcji - szczegółowy'!C60","v":"Kierownik budowy dekoracji"},{"$f":"'Koszty produkcji - szczegółowy'!D60","v":0},{"$f":"'Koszty produkcji - szczegółowy'!E60","v":"Ryczałt"},{"$f":"'Koszty produkcji - szczegółowy'!F60","v":0},{"$f":"'Koszty produkcji - szczegółowy'!G60","v":1},{"$f":"'Koszty produkcji - szczegółowy'!H60","v":0},{"$f":"'Koszty produkcji - szczegółowy'!I60","v":0},{"$f":"'Koszty produkcji - szczegółowy'!J60","v":"Producent zewnętrzny - zasoby własne oraz spółek powiązanych"},null,null,null,null,null,null,0,0]
[null,null,{"$f":"'Koszty produkcji - szczegółowy'!C61","v":"Grafik/Plastyk"},{"$f":"'Koszty produkcji - szczegółowy'!D61","v":0},{"$f":"'Koszty produkcji - szczegółowy'!E61","v":"Ryczałt"},{"$f":"'Koszty produkcji - szczegółowy'!F61","v":0},{"$f":"'Koszty produkcji - szczegółowy'!G61","v":1},{"$f":"'Koszty produkcji - szczegółowy'!H61","v":0},{"$f":"'Koszty produkcji - szczegółowy'!I61","v":0},{"$f":"'Koszty produkcji - szczegółowy'!J61","v":"Producent zewnętrzny - zasoby własne oraz spółek powiązanych"},null,null,null,null,null,null,0,0]
[null,null,{"$f":"'Koszty produkcji - szczegółowy'!C62","v":"Dyżurny planu"},{"$f":"'Koszty produkcji - szczegółowy'!D62","v":0},{"$f":"'Koszty produkcji - szczegółowy'!E62","v":"Dni"},{"$f":"'Koszty produkcji - szczegółowy'!F62","v":0},{"$f":"'Koszty produkcji - szczegółowy'!G62","v":1},{"$f":"'Koszty produkcji - szczegółowy'!H62","v":0},{"$f":"'Koszty produkcji - szczegółowy'!I62","v":0},{"$f":"'Koszty produkcji - szczegółowy'!J62","v":"Producent zewnętrzny - zasoby własne oraz spółek powiązanych"},null,null,null,null,null,null,0,0]
[null,null,{"$f":"'Koszty produkcji - szczegółowy'!C63","v":"Pirotechnik"},{"$f":"'Koszty produkcji - szczegółowy'!D63","v":0},{"$f":"'Koszty produkcji - szczegółowy'!E63","v":"Dni"},{"$f":"'Koszty produkcji - szczegółowy'!F63","v":0},{"$f":"'Koszty produkcji - szczegółowy'!G63","v":1},{"$f":"'Koszty produkcji - szczegółowy'!H63","v":0},{"$f":"'Koszty produkcji - szczegółowy'!I63","v":0},{"$f":"'Koszty produkcji - szczegółowy'!J63","v":"Producent zewnętrzny - zasoby własne oraz spółek powiązanych"},null,null,null,null,null,null,0,0]
[null,null,{"$f":"'Koszty produkcji - szczegółowy'!C64","v":0},{"$f":"'Koszty produkcji - szczegółowy'!D64","v":0},{"$f":"'Koszty produkcji - szczegółowy'!E64","v":0},{"$f":"'Koszty produkcji - szczegółowy'!F64","v":0},{"$f":"'Koszty produkcji - szczegółowy'!G64","v":1},{"$f":"'Koszty produkcji - szczegółowy'!H64","v":0},{"$f":"'Koszty produkcji - szczegółowy'!I64","v":0},{"$f":"'Koszty produkcji - szczegółowy'!J64","v":"Producent zewnętrzny - zasoby własne oraz spółek powiązanych"},null,null,null,null,null,null,0,0]
[null,null,{"$f":"'Koszty produkcji - szczegółowy'!C65","v":0},{"$f":"'Koszty produkcji - szczegółowy'!D65","v":0},{"$f":"'Koszty produkcji - szczegółowy'!E65","v":0},{"$f":"'Koszty produkcji - szczegółowy'!F65","v":0},{"$f":"'Koszty produkcji - szczegółowy'!G65","v":1},{"$f":"'Koszty produkcji - szczegółowy'!H65","v":0},{"$f":"'Koszty produkcji - szczegółowy'!I65","v":0},{"$f":"'Koszty produkcji - szczegółowy'!J65","v":"Producent zewnętrzny - zasoby własne oraz spółek powiązanych"},null,null,null,null,null,null,null,0]
[null,null,{"$f":"'Koszty produkcji - szczegółowy'!C66","v":0},{"$f":"'Koszty produkcji - szczegółowy'!D66","v":0},{"$f":"'Koszty produkcji - szczegółowy'!E66","v":0},{"$f":"'Koszty produkcji - szczegółowy'!F66","v":0},{"$f":"'Koszty produkcji - szczegółowy'!G66","v":1},{"$f":"'Koszty produkcji - szczegółowy'!H66","v":0},{"$f":"'Koszty produkcji - szczegółowy'!I66","v":0},{"$f":"'Koszty produkcji - szczegółowy'!J66","v":"Producent zewnętrzny - zasoby własne oraz spółek powiązanych"},null,null,null,null,null,null,null,0]
[null,null,{"$f":"'Koszty produkcji - szczegółowy'!C67","v":0},{"$f":"'Koszty produkcji - szczegółowy'!D67","v":0},{"$f":"'Koszty produkcji - szczegółowy'!E67","v":0},{"$f":"'Koszty produkcji - szczegółowy'!F67","v":0},{"$f":"'Koszty produkcji - szczegółowy'!G67","v":1},{"$f":"'Koszty produkcji - szczegółowy'!H67","v":0},{"$f":"'Koszty produkcji - szczegółowy'!I67","v":0},{"$f":"'Koszty produkcji - szczegółowy'!J67","v":"Producent zewnętrzny - zasoby własne oraz spółek powiązanych"},null,null,null,null,null,null,{"$f":"IF(J67=\"Producent- zasoby własne oraz spółek powiązanych\",IF(K67=\"\",I67,0),0)","v":0},0]
["6.","Pion kostiumograficzny",null,null,null,null,null,null,{"$f":"SUM(I69:I76)","v":0},null,null,null,null,null,null,null,0,{"$f":"IF(J68=\"Koszty zewnętrzne\",IF(K68=\"\",I68,0),0)","v":0}]
[null,null,{"$f":"'Koszty produkcji - szczegółowy'!C69","v":"Kostiumograf"},{"$f":"'Koszty produkcji - szczegółowy'!D69","v":0},{"$f":"'Koszty produkcji - szczegółowy'!E69","v":"Odcinek"},{"$f":"'Koszty produkcji - szczegółowy'!F69","v":0},{"$f":"'Koszty produkcji - szczegółowy'!G69","v":1},{"$f":"'Koszty produkcji - szczegółowy'!H69","v":0},{"$f":"'Koszty produkcji - szczegółowy'!I69","v":0},{"$f":"'Koszty produkcji - szczegółowy'!J69","v":"Producent zewnętrzny - zasoby własne oraz spółek powiązanych"},null,null,null,null,null,null,0,0]
[null,null,{"$f":"'Koszty produkcji - szczegółowy'!C70","v":"II kostiumograf"},{"$f":"'Koszty produkcji - szczegółowy'!D70","v":0},{"$f":"'Koszty produkcji - szczegółowy'!E70","v":"Dni"},{"$f":"'Koszty produkcji - szczegółowy'!F70","v":0},{"$f":"'Koszty produkcji - szczegółowy'!G70","v":1},{"$f":"'Koszty produkcji - szczegółowy'!H70","v":0},{"$f":"'Koszty produkcji - szczegółowy'!I70","v":0},{"$f":"'Koszty produkcji - szczegółowy'!J70","v":"Producent zewnętrzny - zasoby własne oraz spółek powiązanych"},null,null,null,null,null,null,0,0]
[null,null,{"$f":"'Koszty produkcji - szczegółowy'!C71","v":"Garderobiana"},{"$f":"'Koszty produkcji - szczegółowy'!D71","v":0},{"$f":"'Koszty produkcji - szczegółowy'!E71","v":"Dni"},{"$f":"'Koszty produkcji - szczegółowy'!F71","v":0},{"$f":"'Koszty produkcji - szczegółowy'!G71","v":1},{"$f":"'Koszty produkcji - szczegółowy'!H71","v":0},{"$f":"'Koszty produkcji - szczegółowy'!I71","v":0},{"$f":"'Koszty produkcji - szczegółowy'!J71","v":"Producent zewnętrzny - zasoby własne oraz spółek powiązanych"},null,null,null,null,null,null,0,0]
[null,null,{"$f":"'Koszty produkcji - szczegółowy'!C72","v":"Asystent kostiumografa"},{"$f":"'Koszty produkcji - szczegółowy'!D72","v":0},{"$f":"'Koszty produkcji - szczegółowy'!E72","v":"Dni"},{"$f":"'Koszty produkcji - szczegółowy'!F72","v":0},{"$f":"'Koszty produkcji - szczegółowy'!G72","v":1},{"$f":"'Koszty produkcji - szczegółowy'!H72","v":0},{"$f":"'Koszty produkcji - szczegółowy'!I72","v":0},{"$f":"'Koszty produkcji - szczegółowy'!J72","v":"Producent zewnętrzny - zasoby własne oraz spółek powiązanych"},null,null,null,null,null,null,0,0]
[null,null,{"$f":"'Koszty produkcji - szczegółowy'!C73","v":0},{"$f":"'Koszty produkcji - szczegółowy'!D73","v":0},{"$f":"'Koszty produkcji - szczegółowy'!E73","v":0},{"$f":"'Koszty produkcji - szczegółowy'!F73","v":0},{"$f":"'Koszty produkcji - szczegółowy'!G73","v":1},{"$f":"'Koszty produkcji - szczegółowy'!H73","v":0},{"$f":"'Koszty produkcji - szczegółowy'!I73","v":0},{"$f":"'Koszty produkcji - szczegółowy'!J73","v":"Producent zewnętrzny - zasoby własne oraz spółek powiązanych"},null,null,null,null,null,null,0,0]
[null,null,{"$f":"'Koszty produkcji - szczegółowy'!C74","v":0},{"$f":"'Koszty produkcji - szczegółowy'!D74","v":0},{"$f":"'Koszty produkcji - szczegółowy'!E74","v":0},{"$f":"'Koszty produkcji - szczegółowy'!F74","v":0},{"$f":"'Koszty produkcji - szczegółowy'!G74","v":1},{"$f":"'Koszty produkcji - szczegółowy'!H74","v":0},{"$f":"'Koszty produkcji - szczegółowy'!I74","v":0},{"$f":"'Koszty produkcji - szczegółowy'!J74","v":"Producent zewnętrzny - zasoby własne oraz spółek powiązanych"},null,null,null,null,null,null,null,0]
[null,null,{"$f":"'Koszty produkcji - szczegółowy'!C75","v":0},{"$f":"'Koszty produkcji - szczegółowy'!D75","v":0},{"$f":"'Koszty produkcji - szczegółowy'!E75","v":0},{"$f":"'Koszty produkcji - szczegółowy'!F75","v":0},{"$f":"'Koszty produkcji - szczegółowy'!G75","v":1},{"$f":"'Koszty produkcji - szczegółowy'!H75","v":0},{"$f":"'Koszty produkcji - szczegółowy'!I75","v":0},{"$f":"'Koszty produkcji - szczegółowy'!J75","v":"Producent zewnętrzny - zasoby własne oraz spółek powiązanych"},null,null,null,null,null,null,null,0]
[null,null,{"$f":"'Koszty produkcji - szczegółowy'!C76","v":0},{"$f":"'Koszty produkcji - szczegółowy'!D76","v":0},{"$f":"'Koszty produkcji - szczegółowy'!E76","v":0},{"$f":"'Koszty produkcji - szczegółowy'!F76","v":0},{"$f":"'Koszty produkcji - szczegółowy'!G76","v":1},{"$f":"'Koszty produkcji - szczegółowy'!H76","v":0},{"$f":"'Koszty produkcji - szczegółowy'!I76","v":0},{"$f":"'Koszty produkcji - szczegółowy'!J76","v":"Producent zewnętrzny - zasoby własne oraz spółek powiązanych"},null,null,null,null,null,null,{"$f":"IF(J76=\"Producent- zasoby własne oraz spółek powiązanych\",IF(K76=\"\",I76,0),0)","v":0},0]
["7.","Pion charakteryzatorski",null,null,null,null,null,null,{"$f":"SUM(I78:I86)","v":0},null,null,null,null,null,null,null,0,0]
[null,null,{"$f":"'Koszty produkcji - szczegółowy'!C78","v":"Charakteryzator"},{"$f":"'Koszty produkcji - szczegółowy'!D78","v":0},{"$f":"'Koszty produkcji - szczegółowy'!E78","v":"Dni"},{"$f":"'Koszty produkcji - szczegółowy'!F78","v":0},{"$f":"'Koszty produkcji - szczegółowy'!G78","v":1},{"$f":"'Koszty produkcji - szczegółowy'!H78","v":0},{"$f":"'Koszty produkcji - szczegółowy'!I78","v":0},{"$f":"'Koszty produkcji - szczegółowy'!J78","v":"Producent zewnętrzny - zasoby własne oraz spółek powiązanych"},null,null,null,null,null,null,0,0]
[null,null,{"$f":"'Koszty produkcji - szczegółowy'!C79","v":"II charakteryzator"},{"$f":"'Koszty produkcji - szczegółowy'!D79","v":0},{"$f":"'Koszty produkcji - szczegółowy'!E79","v":"Dni"},{"$f":"'Koszty produkcji - szczegółowy'!F79","v":0},{"$f":"'Koszty produkcji - szczegółowy'!G79","v":1},{"$f":"'Koszty produkcji - szczegółowy'!H79","v":0},{"$f":"'Koszty produkcji - szczegółowy'!I79","v":0},{"$f":"'Koszty produkcji - szczegółowy'!J79","v":"Producent zewnętrzny - zasoby własne oraz spółek powiązanych"},null,null,null,null,null,null,0,0]
[null,null,{"$f":"'Koszty produkcji - szczegółowy'!C80","v":"Asystent charakteryzatora"},{"$f":"'Koszty produkcji - szczegółowy'!D80","v":0},{"$f":"'Koszty produkcji - szczegółowy'!E80","v":"Dni"},{"$f":"'Koszty produkcji - szczegółowy'!F80","v":0},{"$f":"'Koszty produkcji - szczegółowy'!G80","v":1},{"$f":"'Koszty produkcji - szczegółowy'!H80","v":0},{"$f":"'Koszty produkcji - szczegółowy'!I80","v":0},{"$f":"'Koszty produkcji - szczegółowy'!J80","v":"Producent zewnętrzny - zasoby własne oraz spółek powiązanych"},null,null,null,null,null,null,0,0]
[null,null,{"$f":"'Koszty produkcji - szczegółowy'!C81","v":"Stylista/wizażysta"},{"$f":"'Koszty produkcji - szczegółowy'!D81","v":0},{"$f":"'Koszty produkcji - szczegółowy'!E81","v":"Dni"},{"$f":"'Koszty produkcji - szczegółowy'!F81","v":0},{"$f":"'Koszty produkcji - szczegółowy'!G81","v":1},{"$f":"'Koszty produkcji - szczegółowy'!H81","v":0},{"$f":"'Koszty produkcji - szczegółowy'!I81","v":0},{"$f":"'Koszty produkcji - szczegółowy'!J81","v":"Producent zewnętrzny - zasoby własne oraz spółek powiązanych"},null,null,null,null,null,null,0,0]
[null,null,{"$f":"'Koszty produkcji - szczegółowy'!C82","v":"Fryzjer"},{"$f":"'Koszty produkcji - szczegółowy'!D82","v":0},{"$f":"'Koszty produkcji - szczegółowy'!E82","v":"Dni"},{"$f":"'Koszty produkcji - szczegółowy'!F82","v":0},{"$f":"'Koszty produkcji - szczegółowy'!G82","v":1},{"$f":"'Koszty produkcji - szczegółowy'!H82","v":0},{"$f":"'Koszty produkcji - szczegółowy'!I82","v":0},{"$f":"'Koszty produkcji - szczegółowy'!J82","v":"Producent zewnętrzny - zasoby własne oraz spółek powiązanych"},null,null,null,null,null,null,0,0]
[null,null,{"$f":"'Koszty produkcji - szczegółowy'!C83","v":0},{"$f":"'Koszty produkcji - szczegółowy'!D83","v":0},{"$f":"'Koszty produkcji - szczegółowy'!E83","v":0},{"$f":"'Koszty produkcji - szczegółowy'!F83","v":0},{"$f":"'Koszty produkcji - szczegółowy'!G83","v":1},{"$f":"'Koszty produkcji - szczegółowy'!H83","v":0},{"$f":"'Koszty produkcji - szczegółowy'!I83","v":0},{"$f":"'Koszty produkcji - szczegółowy'!J83","v":"Producent zewnętrzny - zasoby własne oraz spółek powiązanych"},null,null,null,null,null,null,0,0]
[null,null,{"$f":"'Koszty produkcji - szczegółowy'!C84","v":0},{"$f":"'Koszty produkcji - szczegółowy'!D84","v":0},{"$f":"'Koszty produkcji - szczegółowy'!E84","v":0},{"$f":"'Koszty produkcji - szczegółowy'!F84","v":0},{"$f":"'Koszty produkcji - szczegółowy'!G84","v":1},{"$f":"'Koszty produkcji - szczegółowy'!H84","v":0},{"$f":"'Koszty produkcji - szczegółowy'!I84","v":0},{"$f":"'Koszty produkcji - szczegółowy'!J84","v":"Producent zewnętrzny - zasoby własne oraz spółek powiązanych"},null,null,null,null,null,null,null,0]
[null,null,{"$f":"'Koszty produkcji - szczegółowy'!C85","v":0},{"$f":"'Koszty produkcji - szczegółowy'!D85","v":0},{"$f":"'Koszty produkcji - szczegółowy'!E85","v":0},{"$f":"'Koszty produkcji - szczegółowy'!F85","v":0},{"$f":"'Koszty produkcji - szczegółowy'!G85","v":1},{"$f":"'Koszty produkcji - szczegółowy'!H85","v":0},{"$f":"'Koszty produkcji - szczegółowy'!I85","v":0},{"$f":"'Koszty produkcji - szczegółowy'!J85","v":"Producent zewnętrzny - zasoby własne oraz spółek powiązanych"},null,null,null,null,null,null,null,0]
[null,null,{"$f":"'Koszty produkcji - szczegółowy'!C86","v":0},{"$f":"'Koszty produkcji - szczegółowy'!D86","v":0},{"$f":"'Koszty produkcji - szczegółowy'!E86","v":0},{"$f":"'Koszty produkcji - szczegółowy'!F86","v":0},{"$f":"'Koszty produkcji - szczegółowy'!G86","v":1},{"$f":"'Koszty produkcji - szczegółowy'!H86","v":0},{"$f":"'Koszty produkcji - szczegółowy'!I86","v":0},{"$f":"'Koszty produkcji - szczegółowy'!J86","v":"Producent zewnętrzny - zasoby własne oraz spółek powiązanych"},null,null,null,null,null,null,{"$f":"IF(J86=\"Producent- zasoby własne oraz spółek powiązanych\",IF(K86=\"\",I86,0),0)","v":0},0]
["8.","Pion dźwiękowy",null,null,null,null,null,null,{"$f":"SUM(I88:I94)","v":0},null,null,null,null,null,null,null,0,0]
[null,null,{"$f":"'Koszty produkcji - szczegółowy'!C88","v":"Operator dźwięku"},{"$f":"'Koszty produkcji - szczegółowy'!D88","v":0},{"$f":"'Koszty produkcji - szczegółowy'!E88","v":"Dni"},{"$f":"'Koszty produkcji - szczegółowy'!F88","v":0},{"$f":"'Koszty produkcji - szczegółowy'!G88","v":1},{"$f":"'Koszty produkcji - szczegółowy'!H88","v":0},{"$f":"'Koszty produkcji - szczegółowy'!I88","v":0},{"$f":"'Koszty produkcji - szczegółowy'!J88","v":"Producent zewnętrzny - zasoby własne oraz spółek powiązanych"},null,null,null,null,null,null,0,0]
[null,null,{"$f":"'Koszty produkcji - szczegółowy'!C89","v":"Asystent operatora dźwięku"},{"$f":"'Koszty produkcji - szczegółowy'!D89","v":0},{"$f":"'Koszty produkcji - szczegółowy'!E89","v":"Dni"},{"$f":"'Koszty produkcji - szczegółowy'!F89","v":0},{"$f":"'Koszty produkcji - szczegółowy'!G89","v":1},{"$f":"'Koszty produkcji - szczegółowy'!H89","v":0},{"$f":"'Koszty produkcji - szczegółowy'!I89","v":0},{"$f":"'Koszty produkcji - szczegółowy'!J89","v":"Producent zewnętrzny - zasoby własne oraz spółek powiązanych"},null,null,null,null,null,null,0,0]
[null,null,{"$f":"'Koszty produkcji - szczegółowy'!C90","v":"Mikrofoniarz"},{"$f":"'Koszty produkcji - szczegółowy'!D90","v":0},{"$f":"'Koszty produkcji - szczegółowy'!E90","v":"Dni"},{"$f":"'Koszty produkcji - szczegółowy'!F90","v":0},{"$f":"'Koszty produkcji - szczegółowy'!G90","v":1},{"$f":"'Koszty produkcji - szczegółowy'!H90","v":0},{"$f":"'Koszty produkcji - szczegółowy'!I90","v":0},{"$f":"'Koszty produkcji - szczegółowy'!J90","v":"Producent zewnętrzny - zasoby własne oraz spółek powiązanych"},null,null,null,null,null,null,0,0]
[null,null,{"$f":"'Koszty produkcji - szczegółowy'!C91","v":0},{"$f":"'Koszty produkcji - szczegółowy'!D91","v":0},{"$f":"'Koszty produkcji - szczegółowy'!E91","v":0},{"$f":"'Koszty produkcji - szczegółowy'!F91","v":0},{"$f":"'Koszty produkcji - szczegółowy'!G91","v":1},{"$f":"'Koszty produkcji - szczegółowy'!H91","v":0},{"$f":"'Koszty produkcji - szczegółowy'!I91","v":0},{"$f":"'Koszty produkcji - szczegółowy'!J91","v":"Producent zewnętrzny - zasoby własne oraz spółek powiązanych"},null,null,null,null,null,null,0,0]
[null,null,{"$f":"'Koszty produkcji - szczegółowy'!C92","v":0},{"$f":"'Koszty produkcji - szczegółowy'!D92","v":0},{"$f":"'Koszty produkcji - szczegółowy'!E92","v":0},{"$f":"'Koszty produkcji - szczegółowy'!F92","v":0},{"$f":"'Koszty produkcji - szczegółowy'!G92","v":1},{"$f":"'Koszty produkcji - szczegółowy'!H92","v":0},{"$f":"'Koszty produkcji - szczegółowy'!I92","v":0},{"$f":"'Koszty produkcji - szczegółowy'!J92","v":"Producent zewnętrzny - zasoby własne oraz spółek powiązanych"},null,null,null,null,null,null,null,0]
[null,null,{"$f":"'Koszty produkcji - szczegółowy'!C93","v":0},{"$f":"'Koszty produkcji - szczegółowy'!D93","v":0},{"$f":"'Koszty produkcji - szczegółowy'!E93","v":0},{"$f":"'Koszty produkcji - szczegółowy'!F93","v":0},{"$f":"'Koszty produkcji - szczegółowy'!G93","v":1},{"$f":"'Koszty produkcji - szczegółowy'!H93","v":0},{"$f":"'Koszty produkcji - szczegółowy'!I93","v":0},{"$f":"'Koszty produkcji - szczegółowy'!J93","v":"Producent zewnętrzny - zasoby własne oraz spółek powiązanych"},null,null,null,null,null,null,null,0]
[null,null,{"$f":"'Koszty produkcji - szczegółowy'!C94","v":0},{"$f":"'Koszty produkcji - szczegółowy'!D94","v":0},{"$f":"'Koszty produkcji - szczegółowy'!E94","v":0},{"$f":"'Koszty produkcji - szczegółowy'!F94","v":0},{"$f":"'Koszty produkcji - szczegółowy'!G94","v":1},{"$f":"'Koszty produkcji - szczegółowy'!H94","v":0},{"$f":"'Koszty produkcji - szczegółowy'!I94","v":0},{"$f":"'Koszty produkcji - szczegółowy'!J94","v":"Producent zewnętrzny - zasoby własne oraz spółek powiązanych"},null,null,null,null,null,null,{"$f":"IF(J94=\"Producent- zasoby własne oraz spółek powiązanych\",IF(K94=\"\",I94,0),0)","v":0},0]
["9.","Wykonawcy i odtwórcy",null,null,null,null,null,null,{"$f":"SUM(I96:I109)","v":0},null,null,null,null,null,null,null,0,0]
[null,null,{"$f":"'Koszty produkcji - szczegółowy'!C96","v":"Role główne"},{"$f":"'Koszty produkcji - szczegółowy'!D96","v":"Kwota pobrana z arkusza  \"Obsada aktorska\""},{"$f":"'Koszty produkcji - szczegółowy'!E96","v":"Ryczałt"},{"$f":"'Koszty produkcji - szczegółowy'!F96","v":1},{"$f":"'Koszty produkcji - szczegółowy'!G96","v":1},{"$f":"'Koszty produkcji - szczegółowy'!H96","v":0},{"$f":"'Koszty produkcji - szczegółowy'!I96","v":0},{"$f":"'Koszty produkcji - szczegółowy'!J96","v":"Producent zewnętrzny - zasoby własne oraz spółek powiązanych"},null,null,null,null,null,null,0,0]
[null,null,{"$f":"'Koszty produkcji - szczegółowy'!C97","v":"Role drugoplanowe"},{"$f":"'Koszty produkcji - szczegółowy'!D97","v":"Kwota pobrana z arkusza  \"Obsada aktorska\""},{"$f":"'Koszty produkcji - szczegółowy'!E97","v":"Ryczałt"},{"$f":"'Koszty produkcji - szczegółowy'!F97","v":1},{"$f":"'Koszty produkcji - szczegółowy'!G97","v":1},{"$f":"'Koszty produkcji - szczegółowy'!H97","v":0},{"$f":"'Koszty produkcji - szczegółowy'!I97","v":0},{"$f":"'Koszty produkcji - szczegółowy'!J97","v":"Producent zewnętrzny - zasoby własne oraz spółek powiązanych"},null,null,null,null,null,null,0,0]
[null,null,{"$f":"'Koszty produkcji - szczegółowy'!C98","v":"Epizody"},{"$f":"'Koszty produkcji - szczegółowy'!D98","v":0},{"$f":"'Koszty produkcji - szczegółowy'!E98","v":"Dni"},{"$f":"'Koszty produkcji - szczegółowy'!F98","v":0},{"$f":"'Koszty produkcji - szczegółowy'!G98","v":1},{"$f":"'Koszty produkcji - szczegółowy'!H98","v":0},{"$f":"'Koszty produkcji - szczegółowy'!I98","v":0},{"$f":"'Koszty produkcji - szczegółowy'!J98","v":"Producent zewnętrzny - zasoby własne oraz spółek powiązanych"},null,null,null,null,null,null,0,0]
[null,null,{"$f":"'Koszty produkcji - szczegółowy'!C99","v":"Lektor"},{"$f":"'Koszty produkcji - szczegółowy'!D99","v":0},{"$f":"'Koszty produkcji - szczegółowy'!E99","v":"Ryczałt"},{"$f":"'Koszty produkcji - szczegółowy'!F99","v":0},{"$f":"'Koszty produkcji - szczegółowy'!G99","v":1},{"$f":"'Koszty produkcji - szczegółowy'!H99","v":0},{"$f":"'Koszty produkcji - szczegółowy'!I99","v":0},{"$f":"'Koszty produkcji - szczegółowy'!J99","v":"Producent zewnętrzny - zasoby własne oraz spółek powiązanych"},null,null,null,null,null,null,0,0]
[null,null,{"$f":"'Koszty produkcji - szczegółowy'!C100","v":"Statyści"},{"$f":"'Koszty produkcji - szczegółowy'!D100","v":0},{"$f":"'Koszty produkcji - szczegółowy'!E100","v":"Dni"},{"$f":"'Koszty produkcji - szczegółowy'!F100","v":0},{"$f":"'Koszty produkcji - szczegółowy'!G100","v":1},{"$f":"'Koszty produkcji - szczegółowy'!H100","v":0},{"$f":"'Koszty produkcji - szczegółowy'!I100","v":0},{"$f":"'Koszty produkcji - szczegółowy'!J100","v":"Producent zewnętrzny - zasoby własne oraz spółek powiązanych"},null,null,null,null,null,null,0,0]
[null,null,{"$f":"'Koszty produkcji - szczegółowy'!C101","v":"Kaskaderzy"},{"$f":"'Koszty produkcji - szczegółowy'!D101","v":0},{"$f":"'Koszty produkcji - szczegółowy'!E101","v":"Dni"},{"$f":"'Koszty produkcji - szczegółowy'!F101","v":0},{"$f":"'Koszty produkcji - szczegółowy'!G101","v":1},{"$f":"'Koszty produkcji - szczegółowy'!H101","v":0},{"$f":"'Koszty produkcji - szczegółowy'!I101","v":0},{"$f":"'Koszty produkcji - szczegółowy'!J101","v":"Producent zewnętrzny - zasoby własne oraz spółek powiązanych"},null,null,null,null,null,null,0,0]
[null,null,{"$f":"'Koszty produkcji - szczegółowy'!C102","v":"Dublerzy"},{"$f":"'Koszty produkcji - szczegółowy'!D102","v":0},{"$f":"'Koszty produkcji - szczegółowy'!E102","v":"Dni"},{"$f":"'Koszty produkcji - szczegółowy'!F102","v":0},{"$f":"'Koszty produkcji - szczegółowy'!G102","v":1},{"$f":"'Koszty produkcji - szczegółowy'!H102","v":0},{"$f":"'Koszty produkcji - szczegółowy'!I102","v":0},{"$f":"'Koszty produkcji - szczegółowy'!J102","v":"Producent zewnętrzny - zasoby własne oraz spółek powiązanych"},null,null,null,null,null,null,0,0]
[null,null,{"$f":"'Koszty produkcji - szczegółowy'!C103","v":"Tancerze"},{"$f":"'Koszty produkcji - szczegółowy'!D103","v":0},{"$f":"'Koszty produkcji - szczegółowy'!E103","v":"Ryczałt"},{"$f":"'Koszty produkcji - szczegółowy'!F103","v":0},{"$f":"'Koszty produkcji - szczegółowy'!G103","v":1},{"$f":"'Koszty produkcji - szczegółowy'!H103","v":0},{"$f":"'Koszty produkcji - szczegółowy'!I103","v":0},{"$f":"'Koszty produkcji - szczegółowy'!J103","v":"Producent zewnętrzny - zasoby własne oraz spółek powiązanych"},null,null,null,null,null,null,0,0]
[null,null,{"$f":"'Koszty produkcji - szczegółowy'!C104","v":"Grupy rekonstrukcyjne"},{"$f":"'Koszty produkcji - szczegółowy'!D104","v":0},{"$f":"'Koszty produkcji - szczegółowy'!E104","v":"Ryczałt"},{"$f":"'Koszty produkcji - szczegółowy'!F104","v":0},{"$f":"'Koszty produkcji - szczegółowy'!G104","v":1},{"$f":"'Koszty produkcji - szczegółowy'!H104","v":0},{"$f":"'Koszty produkcji - szczegółowy'!I104","v":0},{"$f":"'Koszty produkcji - szczegółowy'!J104","v":"Producent zewnętrzny - zasoby własne oraz spółek powiązanych"},null,null,null,null,null,null,0,0]
[null,null,{"$f":"'Koszty produkcji - szczegółowy'!C105","v":"Muzycy"},{"$f":"'Koszty produkcji - szczegółowy'!D105","v":0},{"$f":"'Koszty produkcji - szczegółowy'!E105","v":"Ryczałt"},{"$f":"'Koszty produkcji - szczegółowy'!F105","v":0},{"$f":"'Koszty produkcji - szczegółowy'!G105","v":1},{"$f":"'Koszty produkcji - szczegółowy'!H105","v":0},{"$f":"'Koszty produkcji - szczegółowy'!I105","v":0},{"$f":"'Koszty produkcji - szczegółowy'!J105","v":"Producent zewnętrzny - zasoby własne oraz spółek powiązanych"},null,null,null,null,null,null,0,0]
[null,null,{"$f":"'Koszty produkcji - szczegółowy'!C106","v":0},{"$f":"'Koszty produkcji - szczegółowy'!D106","v":0},{"$f":"'Koszty produkcji - szczegółowy'!E106","v":0},{"$f":"'Koszty produkcji - szczegółowy'!F106","v":0},{"$f":"'Koszty produkcji - szczegółowy'!G106","v":1},{"$f":"'Koszty produkcji - szczegółowy'!H106","v":0},{"$f":"'Koszty produkcji - szczegółowy'!I106","v":0},{"$f":"'Koszty produkcji - szczegółowy'!J106","v":"Producent zewnętrzny - zasoby własne oraz spółek powiązanych"},null,null,null,null,null,null,0,0]
[null,null,{"$f":"'Koszty produkcji - szczegółowy'!C107","v":0},{"$f":"'Koszty produkcji - szczegółowy'!D107","v":0},{"$f":"'Koszty produkcji - szczegółowy'!E107","v":0},{"$f":"'Koszty produkcji - szczegółowy'!F107","v":0},{"$f":"'Koszty produkcji - szczegółowy'!G107","v":1},{"$f":"'Koszty produkcji - szczegółowy'!H107","v":0},{"$f":"'Koszty produkcji - szczegółowy'!I107","v":0},{"$f":"'Koszty produkcji - szczegółowy'!J107","v":"Producent zewnętrzny - zasoby własne oraz spółek powiązanych"},null,null,null,null,null,null,null,0]
[null,null,{"$f":"'Koszty produkcji - szczegółowy'!C108","v":0},{"$f":"'Koszty produkcji - szczegółowy'!D108","v":0},{"$f":"'Koszty produkcji - szczegółowy'!E108","v":0},{"$f":"'Koszty produkcji - szczegółowy'!F108","v":0},{"$f":"'Koszty produkcji - szczegółowy'!G108","v":1},{"$f":"'Koszty produkcji - szczegółowy'!H108","v":0},{"$f":"'Koszty produkcji - szczegółowy'!I108","v":0},{"$f":"'Koszty produkcji - szczegółowy'!J108","v":"Producent zewnętrzny - zasoby własne oraz spółek powiązanych"},null,null,null,null,null,null,null,0]
[null,null,{"$f":"'Koszty produkcji - szczegółowy'!C109","v":0},{"$f":"'Koszty produkcji - szczegółowy'!D109","v":0},{"$f":"'Koszty produkcji - szczegółowy'!E109","v":0},{"$f":"'Koszty produkcji - szczegółowy'!F109","v":0},{"$f":"'Koszty produkcji - szczegółowy'!G109","v":1},{"$f":"'Koszty produkcji - szczegółowy'!H109","v":0},{"$f":"'Koszty produkcji - szczegółowy'!I109","v":0},{"$f":"'Koszty produkcji - szczegółowy'!J109","v":"Producent zewnętrzny - zasoby własne oraz spółek powiązanych"},null,null,null,null,null,null,{"$f":"IF(J109=\"Producent- zasoby własne oraz spółek powiązanych\",IF(K109=\"\",I109,0),0)","v":0},0]
["10.","Konsultacje",null,null,null,null,null,null,{"$f":"SUM(I111:I119)","v":0},null,null,null,null,null,null,null,0,0]
[null,null,{"$f":"'Koszty produkcji - szczegółowy'!C111","v":"Konsultant ds. zwierząt"},{"$f":"'Koszty produkcji - szczegółowy'!D111","v":0},{"$f":"'Koszty produkcji - szczegółowy'!E111","v":"Ryczałt"},{"$f":"'Koszty produkcji - szczegółowy'!F111","v":0},{"$f":"'Koszty produkcji - szczegółowy'!G111","v":1},{"$f":"'Koszty produkcji - szczegółowy'!H111","v":0},{"$f":"'Koszty produkcji - szczegółowy'!I111","v":0},{"$f":"'Koszty produkcji - szczegółowy'!J111","v":"Producent zewnętrzny - zasoby własne oraz spółek powiązanych"},null,null,null,null,null,null,0,0]
[null,null,{"$f":"'Koszty produkcji - szczegółowy'!C112","v":"Konsultant ds. pojazdów"},{"$f":"'Koszty produkcji - szczegółowy'!D112","v":0},{"$f":"'Koszty produkcji - szczegółowy'!E112","v":"Ryczałt"},{"$f":"'Koszty produkcji - szczegółowy'!F112","v":0},{"$f":"'Koszty produkcji - szczegółowy'!G112","v":1},{"$f":"'Koszty produkcji - szczegółowy'!H112","v":0},{"$f":"'Koszty produkcji - szczegółowy'!I112","v":0},{"$f":"'Koszty produkcji - szczegółowy'!J112","v":"Producent zewnętrzny - zasoby własne oraz spółek powiązanych"},null,null,null,null,null,null,0,0]
[null,null,{"$f":"'Koszty produkcji - szczegółowy'!C113","v":"Konsultant FX"},{"$f":"'Koszty produkcji - szczegółowy'!D113","v":0},{"$f":"'Koszty produkcji - szczegółowy'!E113","v":"Ryczałt"},{"$f":"'Koszty produkcji - szczegółowy'!F113","v":0},{"$f":"'Koszty produkcji - szczegółowy'!G113","v":1},{"$f":"'Koszty produkcji - szczegółowy'!H113","v":0},{"$f":"'Koszty produkcji - szczegółowy'!I113","v":0},{"$f":"'Koszty produkcji - szczegółowy'!J113","v":"Producent zewnętrzny - zasoby własne oraz spółek powiązanych"},null,null,null,null,null,null,0,0]
[null,null,{"$f":"'Koszty produkcji - szczegółowy'!C114","v":"Konsultant BHP"},{"$f":"'Koszty produkcji - szczegółowy'!D114","v":0},{"$f":"'Koszty produkcji - szczegółowy'!E114","v":"Odcinek"},{"$f":"'Koszty produkcji - szczegółowy'!F114","v":0},{"$f":"'Koszty produkcji - szczegółowy'!G114","v":1},{"$f":"'Koszty produkcji - szczegółowy'!H114","v":0},{"$f":"'Koszty produkcji - szczegółowy'!I114","v":0},{"$f":"'Koszty produkcji - szczegółowy'!J114","v":"Producent zewnętrzny - zasoby własne oraz spółek powiązanych"},null,null,null,null,null,null,0,0]
[null,null,{"$f":"'Koszty produkcji - szczegółowy'!C115","v":"Konsultant ds. kaskaderskich"},{"$f":"'Koszty produkcji - szczegółowy'!D115","v":0},{"$f":"'Koszty produkcji - szczegółowy'!E115","v":"Odcinek"},{"$f":"'Koszty produkcji - szczegółowy'!F115","v":0},{"$f":"'Koszty produkcji - szczegółowy'!G115","v":1},{"$f":"'Koszty produkcji - szczegółowy'!H115","v":0},{"$f":"'Koszty produkcji - szczegółowy'!I115","v":0},{"$f":"'Koszty produkcji - szczegółowy'!J115","v":"Producent zewnętrzny - zasoby własne oraz spółek powiązanych"},null,null,null,null,null,null,0,0]
[null,null,{"$f":"'Koszty produkcji - szczegółowy'!C116","v":0},{"$f":"'Koszty produkcji - szczegółowy'!D116","v":0},{"$f":"'Koszty produkcji - szczegółowy'!E116","v":0},{"$f":"'Koszty produkcji - szczegółowy'!F116","v":0},{"$f":"'Koszty produkcji - szczegółowy'!G116","v":1},{"$f":"'Koszty produkcji - szczegółowy'!H116","v":0},{"$f":"'Koszty produkcji - szczegółowy'!I116","v":0},{"$f":"'Koszty produkcji - szczegółowy'!J116","v":"Producent zewnętrzny - zasoby własne oraz spółek powiązanych"},null,null,null,null,null,null,0,0]
[null,null,{"$f":"'Koszty produkcji - szczegółowy'!C117","v":0},{"$f":"'Koszty produkcji - szczegółowy'!D117","v":0},{"$f":"'Koszty produkcji - szczegółowy'!E117","v":0},{"$f":"'Koszty produkcji - szczegółowy'!F117","v":0},{"$f":"'Koszty produkcji - szczegółowy'!G117","v":1},{"$f":"'Koszty produkcji - szczegółowy'!H117","v":0},{"$f":"'Koszty produkcji - szczegółowy'!I117","v":0},{"$f":"'Koszty produkcji - szczegółowy'!J117","v":"Producent zewnętrzny - zasoby własne oraz spółek powiązanych"},null,null,null,null,null,null,null,0]
[null,null,{"$f":"'Koszty produkcji - szczegółowy'!C118","v":0},{"$f":"'Koszty produkcji - szczegółowy'!D118","v":0},{"$f":"'Koszty produkcji - szczegółowy'!E118","v":0},{"$f":"'Koszty produkcji - szczegółowy'!F118","v":0},{"$f":"'Koszty produkcji - szczegółowy'!G118","v":1},{"$f":"'Koszty produkcji - szczegółowy'!H118","v":0},{"$f":"'Koszty produkcji - szczegółowy'!I118","v":0},{"$f":"'Koszty produkcji - szczegółowy'!J118","v":"Producent zewnętrzny - zasoby własne oraz spółek powiązanych"},null,null,null,null,null,null,null,0]
[null,null,{"$f":"'Koszty produkcji - szczegółowy'!C119","v":0},{"$f":"'Koszty produkcji - szczegółowy'!D119","v":0},{"$f":"'Koszty produkcji - szczegółowy'!E119","v":0},{"$f":"'Koszty produkcji - szczegółowy'!F119","v":0},{"$f":"'Koszty produkcji - szczegółowy'!G119","v":1},{"$f":"'Koszty produkcji - szczegółowy'!H119","v":0},{"$f":"'Koszty produkcji - szczegółowy'!I119","v":0},{"$f":"'Koszty produkcji - szczegółowy'!J119","v":"Producent zewnętrzny - zasoby własne oraz spółek powiązanych"},null,null,null,null,null,null,{"$f":"IF(J119=\"Producent- zasoby własne oraz spółek powiązanych\",IF(K119=\"\",I119,0),0)","v":0},0]
["11.","Muzyka",null,null,null,null,null,null,{"$f":"SUM(I121:I129)","v":0},null,null,null,null,null,null,null,0,0]
[null,null,{"$f":"'Koszty produkcji - szczegółowy'!C121","v":"Kompozytor"},{"$f":"'Koszty produkcji - szczegółowy'!D121","v":0},{"$f":"'Koszty produkcji - szczegółowy'!E121","v":"Ryczałt"},{"$f":"'Koszty produkcji - szczegółowy'!F121","v":0},{"$f":"'Koszty produkcji - szczegółowy'!G121","v":1},{"$f":"'Koszty produkcji - szczegółowy'!H121","v":0},{"$f":"'Koszty produkcji - szczegółowy'!I121","v":0},{"$f":"'Koszty produkcji - szczegółowy'!J121","v":"Producent zewnętrzny - zasoby własne oraz spółek powiązanych"},null,null,null,null,null,null,0,0]
[null,null,{"$f":"'Koszty produkcji - szczegółowy'!C122","v":"Nagranie muzyki (studio)"},{"$f":"'Koszty produkcji - szczegółowy'!D122","v":0},{"$f":"'Koszty produkcji - szczegółowy'!E122","v":"Ryczałt"},{"$f":"'Koszty produkcji - szczegółowy'!F122","v":0},{"$f":"'Koszty produkcji - szczegółowy'!G122","v":1},{"$f":"'Koszty produkcji - szczegółowy'!H122","v":0},{"$f":"'Koszty produkcji - szczegółowy'!I122","v":0},{"$f":"'Koszty produkcji - szczegółowy'!J122","v":"Producent zewnętrzny - zasoby własne oraz spółek powiązanych"},null,null,null,null,null,null,0,0]
[null,null,{"$f":"'Koszty produkcji - szczegółowy'!C123","v":"Muzycy - nagranie"},{"$f":"'Koszty produkcji - szczegółowy'!D123","v":0},{"$f":"'Koszty produkcji - szczegółowy'!E123","v":"Ryczałt"},{"$f":"'Koszty produkcji - szczegółowy'!F123","v":0},{"$f":"'Koszty produkcji - szczegółowy'!G123","v":1},{"$f":"'Koszty produkcji - szczegółowy'!H123","v":0},{"$f":"'Koszty produkcji - szczegółowy'!I123","v":0},{"$f":"'Koszty produkcji - szczegółowy'!J123","v":"Producent zewnętrzny - zasoby własne oraz spółek powiązanych"},null,null,null,null,null,null,0,0]
[null,null,{"$f":"'Koszty produkcji - szczegółowy'!C124","v":"Prawa do utworów / licencje muzyczne"},{"$f":"'Koszty produkcji - szczegółowy'!D124","v":0},{"$f":"'Koszty produkcji - szczegółowy'!E124","v":"Odcinek"},{"$f":"'Koszty produkcji - szczegółowy'!F124","v":0},{"$f":"'Koszty produkcji - szczegółowy'!G124","v":1},{"$f":"'Koszty produkcji - szczegółowy'!H124","v":0},{"$f":"'Koszty produkcji - szczegółowy'!I124","v":0},{"$f":"'Koszty produkcji - szczegółowy'!J124","v":"Producent zewnętrzny - zasoby własne oraz spółek powiązanych"},null,null,null,null,null,null,0,0]
[null,null,{"$f":"'Koszty produkcji - szczegółowy'!C125","v":"Oprawa muzyczna"},{"$f":"'Koszty produkcji - szczegółowy'!D125","v":0},{"$f":"'Koszty produkcji - szczegółowy'!E125","v":"Odcinek"},{"$f":"'Koszty produkcji - szczegółowy'!F125","v":0},{"$f":"'Koszty produkcji - szczegółowy'!G125","v":1},{"$f":"'Koszty produkcji - szczegółowy'!H125","v":0},{"$f":"'Koszty produkcji - szczegółowy'!I125","v":0},{"$f":"'Koszty produkcji - szczegółowy'!J125","v":"Producent zewnętrzny - zasoby własne oraz spółek powiązanych"},null,null,null,null,null,null,0,0]
[null,null,{"$f":"'Koszty produkcji - szczegółowy'!C126","v":0},{"$f":"'Koszty produkcji - szczegółowy'!D126","v":0},{"$f":"'Koszty produkcji - szczegółowy'!E126","v":0},{"$f":"'Koszty produkcji - szczegółowy'!F126","v":0},{"$f":"'Koszty produkcji - szczegółowy'!G126","v":1},{"$f":"'Koszty produkcji - szczegółowy'!H126","v":0},{"$f":"'Koszty produkcji - szczegółowy'!I126","v":0},{"$f":"'Koszty produkcji - szczegółowy'!J126","v":"Producent zewnętrzny - zasoby własne oraz spółek powiązanych"},null,null,null,null,null,null,0,0]
[null,null,{"$f":"'Koszty produkcji - szczegółowy'!C127","v":0},{"$f":"'Koszty produkcji - szczegółowy'!D127","v":0},{"$f":"'Koszty produkcji - szczegółowy'!E127","v":0},{"$f":"'Koszty produkcji - szczegółowy'!F127","v":0},{"$f":"'Koszty produkcji - szczegółowy'!G127","v":1},{"$f":"'Koszty produkcji - szczegółowy'!H127","v":0},{"$f":"'Koszty produkcji - szczegółowy'!I127","v":0},{"$f":"'Koszty produkcji - szczegółowy'!J127","v":"Producent zewnętrzny - zasoby własne oraz spółek powiązanych"},null,null,null,null,null,null,null,0]
[null,null,{"$f":"'Koszty produkcji - szczegółowy'!C128","v":0},{"$f":"'Koszty produkcji - szczegółowy'!D128","v":0},{"$f":"'Koszty produkcji - szczegółowy'!E128","v":0},{"$f":"'Koszty produkcji - szczegółowy'!F128","v":0},{"$f":"'Koszty produkcji - szczegółowy'!G128","v":1},{"$f":"'Koszty produkcji - szczegółowy'!H128","v":0},{"$f":"'Koszty produkcji - szczegółowy'!I128","v":0},{"$f":"'Koszty produkcji - szczegółowy'!J128","v":"Producent zewnętrzny - zasoby własne oraz spółek powiązanych"},null,null,null,null,null,null,null,0]
[null,null,{"$f":"'Koszty produkcji - szczegółowy'!C129","v":0},{"$f":"'Koszty produkcji - szczegółowy'!D129","v":0},{"$f":"'Koszty produkcji - szczegółowy'!E129","v":0},{"$f":"'Koszty produkcji - szczegółowy'!F129","v":0},{"$f":"'Koszty produkcji - szczegółowy'!G129","v":1},{"$f":"'Koszty produkcji - szczegółowy'!H129","v":0},{"$f":"'Koszty produkcji - szczegółowy'!I129","v":0},{"$f":"'Koszty produkcji - szczegółowy'!J129","v":"Producent zewnętrzny - zasoby własne oraz spółek powiązanych"},null,null,null,null,null,null,{"$f":"IF(J129=\"Producent- zasoby własne oraz spółek powiązanych\",IF(K129=\"\",I129,0),0)","v":0},0]
["12.","Technika zdjęciowa",null,null,null,null,null,null,{"$f":"SUM(I131:I153)","v":0},null,null,null,null,null,null,null,0,0]
[null,null,{"$f":"'Koszty produkcji - szczegółowy'!C131","v":"Wynajem kamer"},{"$f":"'Koszty produkcji - szczegółowy'!D131","v":0},{"$f":"'Koszty produkcji - szczegółowy'!E131","v":"Dni"},{"$f":"'Koszty produkcji - szczegółowy'!F131","v":0},{"$f":"'Koszty produkcji - szczegółowy'!G131","v":1},{"$f":"'Koszty produkcji - szczegółowy'!H131","v":0},{"$f":"'Koszty produkcji - szczegółowy'!I131","v":0},{"$f":"'Koszty produkcji - szczegółowy'!J131","v":"Producent zewnętrzny - zasoby własne oraz spółek powiązanych"},null,null,null,null,null,null,0,0]
[null,null,{"$f":"'Koszty produkcji - szczegółowy'!C132","v":"Osprzęt do kamer"},{"$f":"'Koszty produkcji - szczegółowy'!D132","v":0},{"$f":"'Koszty produkcji - szczegółowy'!E132","v":"Dni"},{"$f":"'Koszty produkcji - szczegółowy'!F132","v":0},{"$f":"'Koszty produkcji - szczegółowy'!G132","v":1},{"$f":"'Koszty produkcji - szczegółowy'!H132","v":0},{"$f":"'Koszty produkcji - szczegółowy'!I132","v":0},{"$f":"'Koszty produkcji - szczegółowy'!J132","v":"Producent zewnętrzny - zasoby własne oraz spółek powiązanych"},null,null,null,null,null,null,0,{"$f":"IF(J132=\"Koszty zewnętrzne\",IF(K132=\"\",I132,0),0)","v":0}]
[null,null,{"$f":"'Koszty produkcji - szczegółowy'!C133","v":"Optyka"},{"$f":"'Koszty produkcji - szczegółowy'!D133","v":0},{"$f":"'Koszty produkcji - szczegółowy'!E133","v":"Dni"},{"$f":"'Koszty produkcji - szczegółowy'!F133","v":0},{"$f":"'Koszty produkcji - szczegółowy'!G133","v":1},{"$f":"'Koszty produkcji - szczegółowy'!H133","v":0},{"$f":"'Koszty produkcji - szczegółowy'!I133","v":0},{"$f":"'Koszty produkcji - szczegółowy'!J133","v":"Producent zewnętrzny - zasoby własne oraz spółek powiązanych"},null,null,null,null,null,null,0,0]
[null,null,{"$f":"'Koszty produkcji - szczegółowy'!C134","v":"Wynajem światła"},{"$f":"'Koszty produkcji - szczegółowy'!D134","v":0},{"$f":"'Koszty produkcji - szczegółowy'!E134","v":"Dni"},{"$f":"'Koszty produkcji - szczegółowy'!F134","v":0},{"$f":"'Koszty produkcji - szczegółowy'!G134","v":1},{"$f":"'Koszty produkcji - szczegółowy'!H134","v":0},{"$f":"'Koszty produkcji - szczegółowy'!I134","v":0},{"$f":"'Koszty produkcji - szczegółowy'!J134","v":"Producent zewnętrzny - zasoby własne oraz spółek powiązanych"},null,null,null,null,null,null,0,0]
[null,null,{"$f":"'Koszty produkcji - szczegółowy'!C135","v":"Materiały oświetleniowe, folie"},{"$f":"'Koszty produkcji - szczegółowy'!D135","v":0},{"$f":"'Koszty produkcji - szczegółowy'!E135","v":"Odcinek"},{"$f":"'Koszty produkcji - szczegółowy'!F135","v":0},{"$f":"'Koszty produkcji - szczegółowy'!G135","v":1},{"$f":"'Koszty produkcji - szczegółowy'!H135","v":0},{"$f":"'Koszty produkcji - szczegółowy'!I135","v":0},{"$f":"'Koszty produkcji - szczegółowy'!J135","v":"Producent zewnętrzny - zasoby własne oraz spółek powiązanych"},null,null,null,null,null,null,0,0]
[null,null,{"$f":"'Koszty produkcji - szczegółowy'!C136","v":"Wynajem wózka"},{"$f":"'Koszty produkcji - szczegółowy'!D136","v":0},{"$f":"'Koszty produkcji - szczegółowy'!E136","v":"Dni"},{"$f":"'Koszty produkcji - szczegółowy'!F136","v":0},{"$f":"'Koszty produkcji - szczegółowy'!G136","v":1},{"$f":"'Koszty produkcji - szczegółowy'!H136","v":0},{"$f":"'Koszty produkcji - szczegółowy'!I136","v":0},{"$f":"'Koszty produkcji - szczegółowy'!J136","v":"Producent zewnętrzny - zasoby własne oraz spółek powiązanych"},null,null,null,null,null,null,0,0]
[null,null,{"$f":"'Koszty produkcji - szczegółowy'!C137","v":"Wynajem kranu"},{"$f":"'Koszty produkcji - szczegółowy'!D137","v":0},{"$f":"'Koszty produkcji - szczegółowy'!E137","v":"Dni"},{"$f":"'Koszty produkcji - szczegółowy'!F137","v":0},{"$f":"'Koszty produkcji - szczegółowy'!G137","v":1},{"$f":"'Koszty produkcji - szczegółowy'!H137","v":0},{"$f":"'Koszty produkcji - szczegółowy'!I137","v":0},{"$f":"'Koszty produkcji - szczegółowy'!J137","v":"Producent zewnętrzny - zasoby własne oraz spółek powiązanych"},null,null,null,null,null,null,0,0]
[null,null,{"$f":"'Koszty produkcji - szczegółowy'!C138","v":"Steadycam"},{"$f":"'Koszty produkcji - szczegółowy'!D138","v":0},{"$f":"'Koszty produkcji - szczegółowy'!E138","v":"Dni"},{"$f":"'Koszty produkcji - szczegółowy'!F138","v":0},{"$f":"'Koszty produkcji - szczegółowy'!G138","v":1},{"$f":"'Koszty produkcji - szczegółowy'!H138","v":0},{"$f":"'Koszty produkcji - szczegółowy'!I138","v":0},{"$f":"'Koszty produkcji - szczegółowy'!J138","v":"Producent zewnętrzny - zasoby własne oraz spółek powiązanych"},null,null,null,null,null,null,0,0]
[null,null,{"$f":"'Koszty produkcji - szczegółowy'!C139","v":"Podnośnik"},{"$f":"'Koszty produkcji - szczegółowy'!D139","v":0},{"$f":"'Koszty produkcji - szczegółowy'!E139","v":"Godz."},{"$f":"'Koszty produkcji - szczegółowy'!F139","v":0},{"$f":"'Koszty produkcji - szczegółowy'!G139","v":1},{"$f":"'Koszty produkcji - szczegółowy'!H139","v":0},{"$f":"'Koszty produkcji - szczegółowy'!I139","v":0},{"$f":"'Koszty produkcji - szczegółowy'!J139","v":"Producent zewnętrzny - zasoby własne oraz spółek powiązanych"},null,null,null,null,null,null,0,0]
[null,null,{"$f":"'Koszty produkcji - szczegółowy'!C140","v":"Kasety zdjęciowe"},{"$f":"'Koszty produkcji - szczegółowy'!D140","v":0},{"$f":"'Koszty produkcji - szczegółowy'!E140","v":"Szt."},{"$f":"'Koszty produkcji - szczegółowy'!F140","v":0},{"$f":"'Koszty produkcji - szczegółowy'!G140","v":1},{"$f":"'Koszty produkcji - szczegółowy'!H140","v":0},{"$f":"'Koszty produkcji - szczegółowy'!I140","v":0},{"$f":"'Koszty produkcji - szczegółowy'!J140","v":"Producent zewnętrzny - zasoby własne oraz spółek powiązanych"},null,null,null,null,null,null,0,0]
[null,null,{"$f":"'Koszty produkcji - szczegółowy'!C141","v":"Dyski"},{"$f":"'Koszty produkcji - szczegółowy'!D141","v":0},{"$f":"'Koszty produkcji - szczegółowy'!E141","v":"Szt."},{"$f":"'Koszty produkcji - szczegółowy'!F141","v":0},{"$f":"'Koszty produkcji - szczegółowy'!G141","v":1},{"$f":"'Koszty produkcji - szczegółowy'!H141","v":0},{"$f":"'Koszty produkcji - szczegółowy'!I141","v":0},{"$f":"'Koszty produkcji - szczegółowy'!J141","v":"Producent zewnętrzny - zasoby własne oraz spółek powiązanych"},null,null,null,null,null,null,0,0]
[null,null,{"$f":"'Koszty produkcji - szczegółowy'!C142","v":"DVD"},{"$f":"'Koszty produkcji - szczegółowy'!D142","v":0},{"$f":"'Koszty produkcji - szczegółowy'!E142","v":"Szt."},{"$f":"'Koszty produkcji - szczegółowy'!F142","v":0},{"$f":"'Koszty produkcji - szczegółowy'!G142","v":1},{"$f":"'Koszty produkcji - szczegółowy'!H142","v":0},{"$f":"'Koszty produkcji - szczegółowy'!I142","v":0},{"$f":"'Koszty produkcji - szczegółowy'!J142","v":"Producent zewnętrzny - zasoby własne oraz spółek powiązanych"},null,null,null,null,null,null,0,0]
[null,null,{"$f":"'Koszty produkcji - szczegółowy'!C143","v":"Sprzęt dźwiękowy"},{"$f":"'Koszty produkcji - szczegółowy'!D143","v":0},{"$f":"'Koszty produkcji - szczegółowy'!E143","v":"Dni"},{"$f":"'Koszty produkcji - szczegółowy'!F143","v":0},{"$f":"'Koszty produkcji - szczegółowy'!G143","v":1},{"$f":"'Koszty produkcji - szczegółowy'!H143","v":0},{"$f":"'Koszty produkcji - szczegółowy'!I143","v":0},{"$f":"'Koszty produkcji - szczegółowy'!J143","v":"Producent zewnętrzny - zasoby własne oraz spółek powiązanych"},null,null,null,null,null,null,0,0]
[null,null,{"$f":"'Koszty produkcji - szczegółowy'!C144","v":"Kasety DAT"},{"$f":"'Koszty produkcji - szczegółowy'!D144","v":0},{"$f":"'Koszty produkcji - szczegółowy'!E144","v":"Szt."},{"$f":"'Koszty produkcji - szczegółowy'!F144","v":0},{"$f":"'Koszty produkcji - szczegółowy'!G144","v":1},{"$f":"'Koszty produkcji - szczegółowy'!H144","v":0},{"$f":"'Koszty produkcji - szczegółowy'!I144","v":0},{"$f":"'Koszty produkcji - szczegółowy'!J144","v":"Producent zewnętrzny - zasoby własne oraz spółek powiązanych"},null,null,null,null,null,null,0,0]
[null,null,{"$f":"'Koszty produkcji - szczegółowy'!C145","v":"Baterie"},{"$f":"'Koszty produkcji - szczegółowy'!D145","v":0},{"$f":"'Koszty produkcji - szczegółowy'!E145","v":"Ryczałt"},{"$f":"'Koszty produkcji - szczegółowy'!F145","v":0},{"$f":"'Koszty produkcji - szczegółowy'!G145","v":1},{"$f":"'Koszty produkcji - szczegółowy'!H145","v":0},{"$f":"'Koszty produkcji - szczegółowy'!I145","v":0},{"$f":"'Koszty produkcji - szczegółowy'!J145","v":"Producent zewnętrzny - zasoby własne oraz spółek powiązanych"},null,null,null,null,null,null,0,0]
[null,null,{"$f":"'Koszty produkcji - szczegółowy'!C146","v":"Mikroporty"},{"$f":"'Koszty produkcji - szczegółowy'!D146","v":0},{"$f":"'Koszty produkcji - szczegółowy'!E146","v":"Dni"},{"$f":"'Koszty produkcji - szczegółowy'!F146","v":0},{"$f":"'Koszty produkcji - szczegółowy'!G146","v":1},{"$f":"'Koszty produkcji - szczegółowy'!H146","v":0},{"$f":"'Koszty produkcji - szczegółowy'!I146","v":0},{"$f":"'Koszty produkcji - szczegółowy'!J146","v":"Producent zewnętrzny - zasoby własne oraz spółek powiązanych"},null,null,null,null,null,null,0,0]
[null,null,{"$f":"'Koszty produkcji - szczegółowy'!C147","v":"Łączność na planie"},{"$f":"'Koszty produkcji - szczegółowy'!D147","v":0},{"$f":"'Koszty produkcji - szczegółowy'!E147","v":"Szt. / dni"},{"$f":"'Koszty produkcji - szczegółowy'!F147","v":0},{"$f":"'Koszty produkcji - szczegółowy'!G147","v":1},{"$f":"'Koszty produkcji - szczegółowy'!H147","v":0},{"$f":"'Koszty produkcji - szczegółowy'!I147","v":0},{"$f":"'Koszty produkcji - szczegółowy'!J147","v":"Producent zewnętrzny - zasoby własne oraz spółek powiązanych"},null,null,null,null,null,null,0,0]
[null,null,{"$f":"'Koszty produkcji - szczegółowy'!C148","v":"Dron"},{"$f":"'Koszty produkcji - szczegółowy'!D148","v":0},{"$f":"'Koszty produkcji - szczegółowy'!E148","v":"Dni"},{"$f":"'Koszty produkcji - szczegółowy'!F148","v":0},{"$f":"'Koszty produkcji - szczegółowy'!G148","v":1},{"$f":"'Koszty produkcji - szczegółowy'!H148","v":0},{"$f":"'Koszty produkcji - szczegółowy'!I148","v":0},{"$f":"'Koszty produkcji - szczegółowy'!J148","v":"Producent zewnętrzny - zasoby własne oraz spółek powiązanych"},null,null,null,null,null,null,0,0]
[null,null,{"$f":"'Koszty produkcji - szczegółowy'!C149","v":0},{"$f":"'Koszty produkcji - szczegółowy'!D149","v":0},{"$f":"'Koszty produkcji - szczegółowy'!E149","v":0},{"$f":"'Koszty produkcji - szczegółowy'!F149","v":0},{"$f":"'Koszty produkcji - szczegółowy'!G149","v":1},{"$f":"'Koszty produkcji - szczegółowy'!H149","v":0},{"$f":"'Koszty produkcji - szczegółowy'!I149","v":0},{"$f":"'Koszty produkcji - szczegółowy'!J149","v":"Producent zewnętrzny - zasoby własne oraz spółek powiązanych"},null,null,null,null,null,null,0,0]
[null,null,{"$f":"'Koszty produkcji - szczegółowy'!C150","v":0},{"$f":"'Koszty produkcji - szczegółowy'!D150","v":0},{"$f":"'Koszty produkcji - szczegółowy'!E150","v":0},{"$f":"'Koszty produkcji - szczegółowy'!F150","v":0},{"$f":"'Koszty produkcji - szczegółowy'!G150","v":1},{"$f":"'Koszty produkcji - szczegółowy'!H150","v":0},{"$f":"'Koszty produkcji - szczegółowy'!I150","v":0},{"$f":"'Koszty produkcji - szczegółowy'!J150","v":"Producent zewnętrzny - zasoby własne oraz spółek powiązanych"},null,null,null,null,null,null,null,0]
[null,null,{"$f":"'Koszty produkcji - szczegółowy'!C151","v":0},{"$f":"'Koszty produkcji - szczegółowy'!D151","v":0},{"$f":"'Koszty produkcji - szczegółowy'!E151","v":0},{"$f":"'Koszty produkcji - szczegółowy'!F151","v":0},{"$f":"'Koszty produkcji - szczegółowy'!G151","v":1},{"$f":"'Koszty produkcji - szczegółowy'!H151","v":0},{"$f":"'Koszty produkcji - szczegółowy'!I151","v":0},{"$f":"'Koszty produkcji - szczegółowy'!J151","v":"Producent zewnętrzny - zasoby własne oraz spółek powiązanych"},null,null,null,null,null,null,null,0]
[null,null,{"$f":"'Koszty produkcji - szczegółowy'!C152","v":0},{"$f":"'Koszty produkcji - szczegółowy'!D152","v":0},{"$f":"'Koszty produkcji - szczegółowy'!E152","v":0},{"$f":"'Koszty produkcji - szczegółowy'!F152","v":0},{"$f":"'Koszty produkcji - szczegółowy'!G152","v":1},{"$f":"'Koszty produkcji - szczegółowy'!H152","v":0},{"$f":"'Koszty produkcji - szczegółowy'!I152","v":0},{"$f":"'Koszty produkcji - szczegółowy'!J152","v":"Producent zewnętrzny - zasoby własne oraz spółek powiązanych"},null,null,null,null,null,null,{"$f":"IF(J152=\"Producent- zasoby własne oraz spółek powiązanych\",IF(K152=\"\",I152,0),0)","v":0},0]
[null,null,{"$f":"'Koszty produkcji - szczegółowy'!C153","v":0},{"$f":"'Koszty produkcji - szczegółowy'!D153","v":0},{"$f":"'Koszty produkcji - szczegółowy'!E153","v":0},{"$f":"'Koszty produkcji - szczegółowy'!F153","v":0},{"$f":"'Koszty produkcji - szczegółowy'!G153","v":1},{"$f":"'Koszty produkcji - szczegółowy'!H153","v":0},{"$f":"'Koszty produkcji - szczegółowy'!I153","v":0},{"$f":"'Koszty produkcji - szczegółowy'!J153","v":"Producent zewnętrzny - zasoby własne oraz spółek powiązanych"},null,null,null,null,null,null,0,0]
["13.","Scenografia i rekwizyty",null,null,null,null,null,null,{"$f":"SUM(I155:I173)","v":0},null,null,null,null,null,null,null,0,0]
[null,null,{"$f":"'Koszty produkcji - szczegółowy'!C155","v":"Wynajem obiektów zdjęciowych"},{"$f":"'Koszty produkcji - szczegółowy'!D155","v":"Kwota pobrana z arkusza  \"Wynajem obiektów zdjęciowych\""},{"$f":"'Koszty produkcji - szczegółowy'!E155","v":"Ryczałt"},{"$f":"'Koszty produkcji - szczegółowy'!F155","v":1},{"$f":"'Koszty produkcji - szczegółowy'!G155","v":1},{"$f":"'Koszty produkcji - szczegółowy'!H155","v":0},{"$f":"'Koszty produkcji - szczegółowy'!I155","v":0},{"$f":"'Koszty produkcji - szczegółowy'!J155","v":"Producent zewnętrzny - zasoby własne oraz spółek powiązanych"},null,null,null,null,null,null,0,0]
[null,null,{"$f":"'Koszty produkcji - szczegółowy'!C156","v":"Wynajem hali "},{"$f":"'Koszty produkcji - szczegółowy'!D156","v":0},{"$f":"'Koszty produkcji - szczegółowy'!E156","v":"Miesiąc"},{"$f":"'Koszty produkcji - szczegółowy'!F156","v":0},{"$f":"'Koszty produkcji - szczegółowy'!G156","v":1},{"$f":"'Koszty produkcji - szczegółowy'!H156","v":0},{"$f":"'Koszty produkcji - szczegółowy'!I156","v":0},{"$f":"'Koszty produkcji - szczegółowy'!J156","v":"Producent zewnętrzny - zasoby własne oraz spółek powiązanych"},null,null,null,null,null,null,0,0]
[null,null,{"$f":"'Koszty produkcji - szczegółowy'!C157","v":"Budowa dekoracji materiały"},{"$f":"'Koszty produkcji - szczegółowy'!D157","v":"Kwota pobrana z arkusza  \"Budowa dekoracji\""},{"$f":"'Koszty produkcji - szczegółowy'!E157","v":"Ryczałt"},{"$f":"'Koszty produkcji - szczegółowy'!F157","v":1},{"$f":"'Koszty produkcji - szczegółowy'!G157","v":1},{"$f":"'Koszty produkcji - szczegółowy'!H157","v":0},{"$f":"'Koszty produkcji - szczegółowy'!I157","v":0},{"$f":"'Koszty produkcji - szczegółowy'!J157","v":"Producent zewnętrzny - zasoby własne oraz spółek powiązanych"},null,null,null,null,null,null,0,0]
[null,null,{"$f":"'Koszty produkcji - szczegółowy'!C158","v":"Budowa dekoracji wykonanie"},{"$f":"'Koszty produkcji - szczegółowy'!D158","v":"Kwota pobrana z arkusza  \"Budowa dekoracji\""},{"$f":"'Koszty produkcji - szczegółowy'!E158","v":"Ryczałt"},{"$f":"'Koszty produkcji - szczegółowy'!F158","v":1},{"$f":"'Koszty produkcji - szczegółowy'!G158","v":1},{"$f":"'Koszty produkcji - szczegółowy'!H158","v":0},{"$f":"'Koszty produkcji - szczegółowy'!I158","v":0},{"$f":"'Koszty produkcji - szczegółowy'!J158","v":"Producent zewnętrzny - zasoby własne oraz spółek powiązanych"},null,null,null,null,null,null,0,0]
[null,null,{"$f":"'Koszty produkcji - szczegółowy'!C159","v":"Wypożyczenie scenografii"},{"$f":"'Koszty produkcji - szczegółowy'!D159","v":0},{"$f":"'Koszty produkcji - szczegółowy'!E159","v":"Odcinek"},{"$f":"'Koszty produkcji - szczegółowy'!F159","v":0},{"$f":"'Koszty produkcji - szczegółowy'!G159","v":1},{"$f":"'Koszty produkcji - szczegółowy'!H159","v":0},{"$f":"'Koszty produkcji - szczegółowy'!I159","v":0},{"$f":"'Koszty produkcji - szczegółowy'!J159","v":"Producent zewnętrzny - zasoby własne oraz spółek powiązanych"},null,null,null,null,null,null,0,0]
[null,null,{"$f":"'Koszty produkcji - szczegółowy'!C160","v":"Zakup elementów scenografii"},{"$f":"'Koszty produkcji - szczegółowy'!D160","v":0},{"$f":"'Koszty produkcji - szczegółowy'!E160","v":"Odcinek"},{"$f":"'Koszty produkcji - szczegółowy'!F160","v":0},{"$f":"'Koszty produkcji - szczegółowy'!G160","v":1},{"$f":"'Koszty produkcji - szczegółowy'!H160","v":0},{"$f":"'Koszty produkcji - szczegółowy'!I160","v":0},{"$f":"'Koszty produkcji - szczegółowy'!J160","v":"Producent zewnętrzny - zasoby własne oraz spółek powiązanych"},null,null,null,null,null,null,0,0]
[null,null,{"$f":"'Koszty produkcji - szczegółowy'!C161","v":"Wynajem rekwizytów"},{"$f":"'Koszty produkcji - szczegółowy'!D161","v":0},{"$f":"'Koszty produkcji - szczegółowy'!E161","v":"Odcinek"},{"$f":"'Koszty produkcji - szczegółowy'!F161","v":0},{"$f":"'Koszty produkcji - szczegółowy'!G161","v":1},{"$f":"'Koszty produkcji - szczegółowy'!H161","v":0},{"$f":"'Koszty produkcji - szczegółowy'!I161","v":0},{"$f":"'Koszty produkcji - szczegółowy'!J161","v":"Producent zewnętrzny - zasoby własne oraz spółek powiązanych"},null,null,null,null,null,null,0,0]
[null,null,{"$f":"'Koszty produkcji - szczegółowy'!C162","v":"Wykonanie rekwizytów "},{"$f":"'Koszty produkcji - szczegółowy'!D162","v":0},{"$f":"'Koszty produkcji - szczegółowy'!E162","v":"Odcinek"},{"$f":"'Koszty produkcji - szczegółowy'!F162","v":0},{"$f":"'Koszty produkcji - szczegółowy'!G162","v":1},{"$f":"'Koszty produkcji - szczegółowy'!H162","v":0},{"$f":"'Koszty produkcji - szczegółowy'!I162","v":0},{"$f":"'Koszty produkcji - szczegółowy'!J162","v":"Producent zewnętrzny - zasoby własne oraz spółek powiązanych"},null,null,null,null,null,null,0,0]
[null,null,{"$f":"'Koszty produkcji - szczegółowy'!C163","v":"Zakup rekwizytów"},{"$f":"'Koszty produkcji - szczegółowy'!D163","v":0},{"$f":"'Koszty produkcji - szczegółowy'!E163","v":"Odcinek"},{"$f":"'Koszty produkcji - szczegółowy'!F163","v":0},{"$f":"'Koszty produkcji - szczegółowy'!G163","v":1},{"$f":"'Koszty produkcji - szczegółowy'!H163","v":0},{"$f":"'Koszty produkcji - szczegółowy'!I163","v":0},{"$f":"'Koszty produkcji - szczegółowy'!J163","v":"Producent zewnętrzny - zasoby własne oraz spółek powiązanych"},null,null,null,null,null,null,0,0]
[null,null,{"$f":"'Koszty produkcji - szczegółowy'!C164","v":"Materiały pirotechniczne "},{"$f":"'Koszty produkcji - szczegółowy'!D164","v":0},{"$f":"'Koszty produkcji - szczegółowy'!E164","v":"Odcinek"},{"$f":"'Koszty produkcji - szczegółowy'!F164","v":0},{"$f":"'Koszty produkcji - szczegółowy'!G164","v":1},{"$f":"'Koszty produkcji - szczegółowy'!H164","v":0},{"$f":"'Koszty produkcji - szczegółowy'!I164","v":0},{"$f":"'Koszty produkcji - szczegółowy'!J164","v":"Producent zewnętrzny - zasoby własne oraz spółek powiązanych"},null,null,null,null,null,null,0,0]
[null,null,{"$f":"'Koszty produkcji - szczegółowy'!C165","v":"Wynajem zwierząt"},{"$f":"'Koszty produkcji - szczegółowy'!D165","v":0},{"$f":"'Koszty produkcji - szczegółowy'!E165","v":"Dni"},{"$f":"'Koszty produkcji - szczegółowy'!F165","v":0},{"$f":"'Koszty produkcji - szczegółowy'!G165","v":1},{"$f":"'Koszty produkcji - szczegółowy'!H165","v":0},{"$f":"'Koszty produkcji - szczegółowy'!I165","v":0},{"$f":"'Koszty produkcji - szczegółowy'!J165","v":"Producent zewnętrzny - zasoby własne oraz spółek powiązanych"},null,null,null,null,null,null,0,0]
[null,null,{"$f":"'Koszty produkcji - szczegółowy'!C166","v":"Wynajem pojazdów specjalnych"},{"$f":"'Koszty produkcji - szczegółowy'!D166","v":0},{"$f":"'Koszty produkcji - szczegółowy'!E166","v":"Dni"},{"$f":"'Koszty produkcji - szczegółowy'!F166","v":0},{"$f":"'Koszty produkcji - szczegółowy'!G166","v":1},{"$f":"'Koszty produkcji - szczegółowy'!H166","v":0},{"$f":"'Koszty produkcji - szczegółowy'!I166","v":0},{"$f":"'Koszty produkcji - szczegółowy'!J166","v":"Producent zewnętrzny - zasoby własne oraz spółek powiązanych"},null,null,null,null,null,null,0,0]
[null,null,{"$f":"'Koszty produkcji - szczegółowy'!C167","v":"Materiały do efektów FX -green screeny"},{"$f":"'Koszty produkcji - szczegółowy'!D167","v":0},{"$f":"'Koszty produkcji - szczegółowy'!E167","v":"Ryczałt"},{"$f":"'Koszty produkcji - szczegółowy'!F167","v":0},{"$f":"'Koszty produkcji - szczegółowy'!G167","v":1},{"$f":"'Koszty produkcji - szczegółowy'!H167","v":0},{"$f":"'Koszty produkcji - szczegółowy'!I167","v":0},{"$f":"'Koszty produkcji - szczegółowy'!J167","v":"Producent zewnętrzny - zasoby własne oraz spółek powiązanych"},null,null,null,null,null,null,0,0]
[null,null,{"$f":"'Koszty produkcji - szczegółowy'!C168","v":"Wynajem magazynu rekwizytów"},{"$f":"'Koszty produkcji - szczegółowy'!D168","v":0},{"$f":"'Koszty produkcji - szczegółowy'!E168","v":"Miesiąc"},{"$f":"'Koszty produkcji - szczegółowy'!F168","v":0},{"$f":"'Koszty produkcji - szczegółowy'!G168","v":1},{"$f":"'Koszty produkcji - szczegółowy'!H168","v":0},{"$f":"'Koszty produkcji - szczegółowy'!I168","v":0},{"$f":"'Koszty produkcji - szczegółowy'!J168","v":"Producent zewnętrzny - zasoby własne oraz spółek powiązanych"},null,null,null,null,null,null,0,0]
[null,null,{"$f":"'Koszty produkcji - szczegółowy'!C169","v":0},{"$f":"'Koszty produkcji - szczegółowy'!D169","v":0},{"$f":"'Koszty produkcji - szczegółowy'!E169","v":0},{"$f":"'Koszty produkcji - szczegółowy'!F169","v":0},{"$f":"'Koszty produkcji - szczegółowy'!G169","v":1},{"$f":"'Koszty produkcji - szczegółowy'!H169","v":0},{"$f":"'Koszty produkcji - szczegółowy'!I169","v":0},{"$f":"'Koszty produkcji - szczegółowy'!J169","v":"Producent zewnętrzny - zasoby własne oraz spółek powiązanych"},null,null,null,null,null,null,0,0]
[null,null,{"$f":"'Koszty produkcji - szczegółowy'!C170","v":0},{"$f":"'Koszty produkcji - szczegółowy'!D170","v":0},{"$f":"'Koszty produkcji - szczegółowy'!E170","v":0},{"$f":"'Koszty produkcji - szczegółowy'!F170","v":0},{"$f":"'Koszty produkcji - szczegółowy'!G170","v":1},{"$f":"'Koszty produkcji - szczegółowy'!H170","v":0},{"$f":"'Koszty produkcji - szczegółowy'!I170","v":0},{"$f":"'Koszty produkcji - szczegółowy'!J170","v":"Producent zewnętrzny - zasoby własne oraz spółek powiązanych"},null,null,null,null,null,null,null,0]
[null,null,{"$f":"'Koszty produkcji - szczegółowy'!C171","v":0},{"$f":"'Koszty produkcji - szczegółowy'!D171","v":0},{"$f":"'Koszty produkcji - szczegółowy'!E171","v":0},{"$f":"'Koszty produkcji - szczegółowy'!F171","v":0},{"$f":"'Koszty produkcji - szczegółowy'!G171","v":1},{"$f":"'Koszty produkcji - szczegółowy'!H171","v":0},{"$f":"'Koszty produkcji - szczegółowy'!I171","v":0},{"$f":"'Koszty produkcji - szczegółowy'!J171","v":"Producent zewnętrzny - zasoby własne oraz spółek powiązanych"},null,null,null,null,null,null,null,0]
[null,null,{"$f":"'Koszty produkcji - szczegółowy'!C172","v":0},{"$f":"'Koszty produkcji - szczegółowy'!D172","v":0},{"$f":"'Koszty produkcji - szczegółowy'!E172","v":0},{"$f":"'Koszty produkcji - szczegółowy'!F172","v":0},{"$f":"'Koszty produkcji - szczegółowy'!G172","v":1},{"$f":"'Koszty produkcji - szczegółowy'!H172","v":0},{"$f":"'Koszty produkcji - szczegółowy'!I172","v":0},{"$f":"'Koszty produkcji - szczegółowy'!J172","v":"Producent zewnętrzny - zasoby własne oraz spółek powiązanych"},null,null,null,null,null,null,{"$f":"IF(J172=\"Producent- zasoby własne oraz spółek powiązanych\",IF(K172=\"\",I172,0),0)","v":0},0]
[null,null,{"$f":"'Koszty produkcji - szczegółowy'!C173","v":0},{"$f":"'Koszty produkcji - szczegółowy'!D173","v":0},{"$f":"'Koszty produkcji - szczegółowy'!E173","v":0},{"$f":"'Koszty produkcji - szczegółowy'!F173","v":0},{"$f":"'Koszty produkcji - szczegółowy'!G173","v":1},{"$f":"'Koszty produkcji - szczegółowy'!H173","v":0},{"$f":"'Koszty produkcji - szczegółowy'!I173","v":0},{"$f":"'Koszty produkcji - szczegółowy'!J173","v":"Producent zewnętrzny - zasoby własne oraz spółek powiązanych"},null,null,null,null,null,null,0,0]
["14.","Kostiumy materiały",null,null,null,null,null,null,{"$f":"SUM(I175:I182)","v":0},null,null,null,null,null,null,null,0,0]
[null,null,{"$f":"'Koszty produkcji - szczegółowy'!C175","v":"Wypożyczenie"},{"$f":"'Koszty produkcji - szczegółowy'!D175","v":0},{"$f":"'Koszty produkcji - szczegółowy'!E175","v":"Odcinek"},{"$f":"'Koszty produkcji - szczegółowy'!F175","v":0},{"$f":"'Koszty produkcji - szczegółowy'!G175","v":1},{"$f":"'Koszty produkcji - szczegółowy'!H175","v":0},{"$f":"'Koszty produkcji - szczegółowy'!I175","v":0},{"$f":"'Koszty produkcji - szczegółowy'!J175","v":"Producent zewnętrzny - zasoby własne oraz spółek powiązanych"},null,null,null,null,null,null,0,0]
[null,null,{"$f":"'Koszty produkcji - szczegółowy'!C176","v":"Zakup"},{"$f":"'Koszty produkcji - szczegółowy'!D176","v":0},{"$f":"'Koszty produkcji - szczegółowy'!E176","v":"Odcinek"},{"$f":"'Koszty produkcji - szczegółowy'!F176","v":0},{"$f":"'Koszty produkcji - szczegółowy'!G176","v":1},{"$f":"'Koszty produkcji - szczegółowy'!H176","v":0},{"$f":"'Koszty produkcji - szczegółowy'!I176","v":0},{"$f":"'Koszty produkcji - szczegółowy'!J176","v":"Producent zewnętrzny - zasoby własne oraz spółek powiązanych"},null,null,null,null,null,null,0,0]
[null,null,{"$f":"'Koszty produkcji - szczegółowy'!C177","v":"Wykonanie"},{"$f":"'Koszty produkcji - szczegółowy'!D177","v":0},{"$f":"'Koszty produkcji - szczegółowy'!E177","v":"Odcinek"},{"$f":"'Koszty produkcji - szczegółowy'!F177","v":0},{"$f":"'Koszty produkcji - szczegółowy'!G177","v":1},{"$f":"'Koszty produkcji - szczegółowy'!H177","v":0},{"$f":"'Koszty produkcji - szczegółowy'!I177","v":0},{"$f":"'Koszty produkcji - szczegółowy'!J177","v":"Producent zewnętrzny - zasoby własne oraz spółek powiązanych"},null,null,null,null,null,null,0,0]
[null,null,{"$f":"'Koszty produkcji - szczegółowy'!C178","v":"Pranie kostiumów"},{"$f":"'Koszty produkcji - szczegółowy'!D178","v":0},{"$f":"'Koszty produkcji - szczegółowy'!E178","v":"Odcinek"},{"$f":"'Koszty produkcji - szczegółowy'!F178","v":0},{"$f":"'Koszty produkcji - szczegółowy'!G178","v":1},{"$f":"'Koszty produkcji - szczegółowy'!H178","v":0},{"$f":"'Koszty produkcji - szczegółowy'!I178","v":0},{"$f":"'Koszty produkcji - szczegółowy'!J178","v":"Producent zewnętrzny - zasoby własne oraz spółek powiązanych"},null,null,null,null,null,null,0,0]
[null,null,{"$f":"'Koszty produkcji - szczegółowy'!C179","v":"Poprawki krawieckie"},{"$f":"'Koszty produkcji - szczegółowy'!D179","v":0},{"$f":"'Koszty produkcji - szczegółowy'!E179","v":"Odcinek"},{"$f":"'Koszty produkcji - szczegółowy'!F179","v":0},{"$f":"'Koszty produkcji - szczegółowy'!G179","v":1},{"$f":"'Koszty produkcji - szczegółowy'!H179","v":0},{"$f":"'Koszty produkcji - szczegółowy'!I179","v":0},{"$f":"'Koszty produkcji - szczegółowy'!J179","v":"Producent zewnętrzny - zasoby własne oraz spółek powiązanych"},null,null,null,null,null,null,0,0]
[null,null,{"$f":"'Koszty produkcji - szczegółowy'!C180","v":0},{"$f":"'Koszty produkcji - szczegółowy'!D180","v":0},{"$f":"'Koszty produkcji - szczegółowy'!E180","v":0},{"$f":"'Koszty produkcji - szczegółowy'!F180","v":0},{"$f":"'Koszty produkcji - szczegółowy'!G180","v":1},{"$f":"'Koszty produkcji - szczegółowy'!H180","v":0},{"$f":"'Koszty produkcji - szczegółowy'!I180","v":0},{"$f":"'Koszty produkcji - szczegółowy'!J180","v":"Producent zewnętrzny - zasoby własne oraz spółek powiązanych"},null,null,null,null,null,null,0,0]
[null,null,{"$f":"'Koszty produkcji - szczegółowy'!C181","v":0},{"$f":"'Koszty produkcji - szczegółowy'!D181","v":0},{"$f":"'Koszty produkcji - szczegółowy'!E181","v":0},{"$f":"'Koszty produkcji - szczegółowy'!F181","v":0},{"$f":"'Koszty produkcji - szczegółowy'!G181","v":1},{"$f":"'Koszty produkcji - szczegółowy'!H181","v":0},{"$f":"'Koszty produkcji - szczegółowy'!I181","v":0},{"$f":"'Koszty produkcji - szczegółowy'!J181","v":"Producent zewnętrzny - zasoby własne oraz spółek powiązanych"},null,null,null,null,null,null,null,0]
[null,null,{"$f":"'Koszty produkcji - szczegółowy'!C182","v":0},{"$f":"'Koszty produkcji - szczegółowy'!D182","v":0},{"$f":"'Koszty produkcji - szczegółowy'!E182","v":0},{"$f":"'Koszty produkcji - szczegółowy'!F182","v":0},{"$f":"'Koszty produkcji - szczegółowy'!G182","v":1},{"$f":"'Koszty produkcji - szczegółowy'!H182","v":0},{"$f":"'Koszty produkcji - szczegółowy'!I182","v":0},{"$f":"'Koszty produkcji - szczegółowy'!J182","v":"Producent zewnętrzny - zasoby własne oraz spółek powiązanych"},null,null,null,null,null,null,null,0]
["15.","Charakteryzacja materiały ",null,null,null,null,null,null,{"$f":"SUM(I184:I189)","v":0},null,null,null,null,null,null,null,{"$f":"IF(J183=\"Producent- zasoby własne oraz spółek powiązanych\",IF(K183=\"\",I183,0),0)","v":0},0]
[null,null,{"$f":"'Koszty produkcji - szczegółowy'!C184","v":"Materiały charakteryzatorskie"},{"$f":"'Koszty produkcji - szczegółowy'!D184","v":0},{"$f":"'Koszty produkcji - szczegółowy'!E184","v":"Odcinek"},{"$f":"'Koszty produkcji - szczegółowy'!F184","v":0},{"$f":"'Koszty produkcji - szczegółowy'!G184","v":1},{"$f":"'Koszty produkcji - szczegółowy'!H184","v":0},{"$f":"'Koszty produkcji - szczegółowy'!I184","v":0},{"$f":"'Koszty produkcji - szczegółowy'!J184","v":"Producent zewnętrzny - zasoby własne oraz spółek powiązanych"},null,null,null,null,null,null,{"$f":"IF(J184=\"Producent- zasoby własne oraz spółek powiązanych\",IF(K184=\"\",I184,0),0)","v":0},0]
[null,null,{"$f":"'Koszty produkcji - szczegółowy'!C185","v":"Materiały do FX"},{"$f":"'Koszty produkcji - szczegółowy'!D185","v":0},{"$f":"'Koszty produkcji - szczegółowy'!E185","v":"Odcinek"},{"$f":"'Koszty produkcji - szczegółowy'!F185","v":0},{"$f":"'Koszty produkcji - szczegółowy'!G185","v":1},{"$f":"'Koszty produkcji - szczegółowy'!H185","v":0},{"$f":"'Koszty produkcji - szczegółowy'!I185","v":0},{"$f":"'Koszty produkcji - szczegółowy'!J185","v":"Producent zewnętrzny - zasoby własne oraz spółek powiązanych"},null,null,null,null,null,null,{"$f":"IF(J185=\"Producent- zasoby własne oraz spółek powiązanych\",IF(K185=\"\",I185,0),0)","v":0},0]
[null,null,{"$f":"'Koszty produkcji - szczegółowy'!C186","v":"Wynajmy - peruki"},{"$f":"'Koszty produkcji - szczegółowy'!D186","v":0},{"$f":"'Koszty produkcji - szczegółowy'!E186","v":"Odcinek"},{"$f":"'Koszty produkcji - szczegółowy'!F186","v":0},{"$f":"'Koszty produkcji - szczegółowy'!G186","v":1},{"$f":"'Koszty produkcji - szczegółowy'!H186","v":0},{"$f":"'Koszty produkcji - szczegółowy'!I186","v":0},{"$f":"'Koszty produkcji - szczegółowy'!J186","v":"Producent zewnętrzny - zasoby własne oraz spółek powiązanych"},null,null,null,null,null,null,{"$f":"IF(J186=\"Producent- zasoby własne oraz spółek powiązanych\",IF(K186=\"\",I186,0),0)","v":0},0]
[null,null,{"$f":"'Koszty produkcji - szczegółowy'!C187","v":0},{"$f":"'Koszty produkcji - szczegółowy'!D187","v":0},{"$f":"'Koszty produkcji - szczegółowy'!E187","v":0},{"$f":"'Koszty produkcji - szczegółowy'!F187","v":0},{"$f":"'Koszty produkcji - szczegółowy'!G187","v":1},{"$f":"'Koszty produkcji - szczegółowy'!H187","v":0},{"$f":"'Koszty produkcji - szczegółowy'!I187","v":0},{"$f":"'Koszty produkcji - szczegółowy'!J187","v":"Producent zewnętrzny - zasoby własne oraz spółek powiązanych"},null,null,null,null,null,null,{"$f":"IF(J187=\"Producent- zasoby własne oraz spółek powiązanych\",IF(K187=\"\",I187,0),0)","v":0},0]
[null,null,{"$f":"'Koszty produkcji - szczegółowy'!C188","v":0},{"$f":"'Koszty produkcji - szczegółowy'!D188","v":0},{"$f":"'Koszty produkcji - szczegółowy'!E188","v":0},{"$f":"'Koszty produkcji - szczegółowy'!F188","v":0},{"$f":"'Koszty produkcji - szczegółowy'!G188","v":1},{"$f":"'Koszty produkcji - szczegółowy'!H188","v":0},{"$f":"'Koszty produkcji - szczegółowy'!I188","v":0},{"$f":"'Koszty produkcji - szczegółowy'!J188","v":"Producent zewnętrzny - zasoby własne oraz spółek powiązanych"},null,null,null,null,null,null,null,0]
[null,null,{"$f":"'Koszty produkcji - szczegółowy'!C189","v":0},{"$f":"'Koszty produkcji - szczegółowy'!D189","v":0},{"$f":"'Koszty produkcji - szczegółowy'!E189","v":0},{"$f":"'Koszty produkcji - szczegółowy'!F189","v":0},{"$f":"'Koszty produkcji - szczegółowy'!G189","v":1},{"$f":"'Koszty produkcji - szczegółowy'!H189","v":0},{"$f":"'Koszty produkcji - szczegółowy'!I189","v":0},{"$f":"'Koszty produkcji - szczegółowy'!J189","v":"Producent zewnętrzny - zasoby własne oraz spółek powiązanych"},null,null,null,null,null,null,null,0]
["16.","Postprodukcja - montaż i udźwiekowienie",null,null,null,null,null,null,{"$f":"SUM(I191:I211)","v":0},null,null,null,null,null,null,null,{"$f":"IF(J190=\"Producent- zasoby własne oraz spółek powiązanych\",IF(K190=\"\",I190,0),0)","v":0},0]
[null,null,{"$f":"'Koszty produkcji - szczegółowy'!C191","v":"Montażysta"},{"$f":"'Koszty produkcji - szczegółowy'!D191","v":0},{"$f":"'Koszty produkcji - szczegółowy'!E191","v":"Odcinek"},{"$f":"'Koszty produkcji - szczegółowy'!F191","v":0},{"$f":"'Koszty produkcji - szczegółowy'!G191","v":1},{"$f":"'Koszty produkcji - szczegółowy'!H191","v":0},{"$f":"'Koszty produkcji - szczegółowy'!I191","v":0},{"$f":"'Koszty produkcji - szczegółowy'!J191","v":"Producent zewnętrzny - zasoby własne oraz spółek powiązanych"},null,null,null,null,null,null,0,0]
[null,null,{"$f":"'Koszty produkcji - szczegółowy'!C192","v":"Asystent montażysty"},{"$f":"'Koszty produkcji - szczegółowy'!D192","v":0},{"$f":"'Koszty produkcji - szczegółowy'!E192","v":"Odcinek"},{"$f":"'Koszty produkcji - szczegółowy'!F192","v":0},{"$f":"'Koszty produkcji - szczegółowy'!G192","v":1},{"$f":"'Koszty produkcji - szczegółowy'!H192","v":0},{"$f":"'Koszty produkcji - szczegółowy'!I192","v":0},{"$f":"'Koszty produkcji - szczegółowy'!J192","v":"Producent zewnętrzny - zasoby własne oraz spółek powiązanych"},null,null,null,null,null,null,0,0]
[null,null,{"$f":"'Koszty produkcji - szczegółowy'!C193","v":"Digitalizacja"},{"$f":"'Koszty produkcji - szczegółowy'!D193","v":0},{"$f":"'Koszty produkcji - szczegółowy'!E193","v":"Odcinek"},{"$f":"'Koszty produkcji - szczegółowy'!F193","v":0},{"$f":"'Koszty produkcji - szczegółowy'!G193","v":1},{"$f":"'Koszty produkcji - szczegółowy'!H193","v":0},{"$f":"'Koszty produkcji - szczegółowy'!I193","v":0},{"$f":"'Koszty produkcji - szczegółowy'!J193","v":"Producent zewnętrzny - zasoby własne oraz spółek powiązanych"},null,null,null,null,null,null,0,0]
[null,null,{"$f":"'Koszty produkcji - szczegółowy'!C194","v":"Montaż off-line"},{"$f":"'Koszty produkcji - szczegółowy'!D194","v":0},{"$f":"'Koszty produkcji - szczegółowy'!E194","v":"Odcinek"},{"$f":"'Koszty produkcji - szczegółowy'!F194","v":0},{"$f":"'Koszty produkcji - szczegółowy'!G194","v":1},{"$f":"'Koszty produkcji - szczegółowy'!H194","v":0},{"$f":"'Koszty produkcji - szczegółowy'!I194","v":0},{"$f":"'Koszty produkcji - szczegółowy'!J194","v":"Producent zewnętrzny - zasoby własne oraz spółek powiązanych"},null,null,null,null,null,null,0,0]
[null,null,{"$f":"'Koszty produkcji - szczegółowy'!C195","v":"Montaż on-line-konforming"},{"$f":"'Koszty produkcji - szczegółowy'!D195","v":0},{"$f":"'Koszty produkcji - szczegółowy'!E195","v":"Odcinek"},{"$f":"'Koszty produkcji - szczegółowy'!F195","v":0},{"$f":"'Koszty produkcji - szczegółowy'!G195","v":1},{"$f":"'Koszty produkcji - szczegółowy'!H195","v":0},{"$f":"'Koszty produkcji - szczegółowy'!I195","v":0},{"$f":"'Koszty produkcji - szczegółowy'!J195","v":"Producent zewnętrzny - zasoby własne oraz spółek powiązanych"},null,null,null,null,null,null,0,0]
[null,null,{"$f":"'Koszty produkcji - szczegółowy'!C196","v":"Czołówka "},{"$f":"'Koszty produkcji - szczegółowy'!D196","v":0},{"$f":"'Koszty produkcji - szczegółowy'!E196","v":"Ryczałt"},{"$f":"'Koszty produkcji - szczegółowy'!F196","v":0},{"$f":"'Koszty produkcji - szczegółowy'!G196","v":1},{"$f":"'Koszty produkcji - szczegółowy'!H196","v":0},{"$f":"'Koszty produkcji - szczegółowy'!I196","v":0},{"$f":"'Koszty produkcji - szczegółowy'!J196","v":"Producent zewnętrzny - zasoby własne oraz spółek powiązanych"},null,null,null,null,null,null,0,{"$f":"IF(J196=\"Koszty zewnętrzne\",IF(K196=\"\",I196,0),0)","v":0}]
[null,null,{"$f":"'Koszty produkcji - szczegółowy'!C197","v":"Efekty komputerowe"},{"$f":"'Koszty produkcji - szczegółowy'!D197","v":0},{"$f":"'Koszty produkcji - szczegółowy'!E197","v":"Odcinek"},{"$f":"'Koszty produkcji - szczegółowy'!F197","v":0},{"$f":"'Koszty produkcji - szczegółowy'!G197","v":1},{"$f":"'Koszty produkcji - szczegółowy'!H197","v":0},{"$f":"'Koszty produkcji - szczegółowy'!I197","v":0},{"$f":"'Koszty produkcji - szczegółowy'!J197","v":"Producent zewnętrzny - zasoby własne oraz spółek powiązanych"},null,null,null,null,null,null,0,0]
[null,"Obróbka obrazu",{"$f":"'Koszty produkcji - szczegółowy'!C198","v":"Korekcja koloru"},{"$f":"'Koszty produkcji - szczegółowy'!D198","v":0},{"$f":"'Koszty produkcji - szczegółowy'!E198","v":"Odcinek"},{"$f":"'Koszty produkcji - szczegółowy'!F198","v":0},{"$f":"'Koszty produkcji - szczegółowy'!G198","v":1},{"$f":"'Koszty produkcji - szczegółowy'!H198","v":0},{"$f":"'Koszty produkcji - szczegółowy'!I198","v":0},{"$f":"'Koszty produkcji - szczegółowy'!J198","v":"Producent zewnętrzny - zasoby własne oraz spółek powiązanych"},null,null,null,null,null,null,0,0]
[null,"Obróbka obrazu",{"$f":"'Koszty produkcji - szczegółowy'!C199","v":"Realizator dźwięku - postprodukcja"},{"$f":"'Koszty produkcji - szczegółowy'!D199","v":0},{"$f":"'Koszty produkcji - szczegółowy'!E199","v":"Odcinek"},{"$f":"'Koszty produkcji - szczegółowy'!F199","v":0},{"$f":"'Koszty produkcji - szczegółowy'!G199","v":1},{"$f":"'Koszty produkcji - szczegółowy'!H199","v":0},{"$f":"'Koszty produkcji - szczegółowy'!I199","v":0},{"$f":"'Koszty produkcji - szczegółowy'!J199","v":"Producent zewnętrzny - zasoby własne oraz spółek powiązanych"},null,null,null,null,null,null,0,0]
[null,"Montaż",{"$f":"'Koszty produkcji - szczegółowy'!C200","v":"Imitator dźwięku"},{"$f":"'Koszty produkcji - szczegółowy'!D200","v":0},{"$f":"'Koszty produkcji - szczegółowy'!E200","v":"Odcinek"},{"$f":"'Koszty produkcji - szczegółowy'!F200","v":0},{"$f":"'Koszty produkcji - szczegółowy'!G200","v":1},{"$f":"'Koszty produkcji - szczegółowy'!H200","v":0},{"$f":"'Koszty produkcji - szczegółowy'!I200","v":0},{"$f":"'Koszty produkcji - szczegółowy'!J200","v":"Producent zewnętrzny - zasoby własne oraz spółek powiązanych"},null,null,null,null,null,null,0,0]
[null,"Udźwiękowienie",{"$f":"'Koszty produkcji - szczegółowy'!C201","v":"Postsynchrony"},{"$f":"'Koszty produkcji - szczegółowy'!D201","v":0},{"$f":"'Koszty produkcji - szczegółowy'!E201","v":"Odcinek"},{"$f":"'Koszty produkcji - szczegółowy'!F201","v":0},{"$f":"'Koszty produkcji - szczegółowy'!G201","v":1},{"$f":"'Koszty produkcji - szczegółowy'!H201","v":0},{"$f":"'Koszty produkcji - szczegółowy'!I201","v":0},{"$f":"'Koszty produkcji - szczegółowy'!J201","v":"Producent zewnętrzny - zasoby własne oraz spółek powiązanych"},null,null,null,null,null,null,0,0]
[null,"Udźwiękowienie",{"$f":"'Koszty produkcji - szczegółowy'!C202","v":"Zgranie dźwięku"},{"$f":"'Koszty produkcji - szczegółowy'!D202","v":0},{"$f":"'Koszty produkcji - szczegółowy'!E202","v":"Odcinek"},{"$f":"'Koszty produkcji - szczegółowy'!F202","v":0},{"$f":"'Koszty produkcji - szczegółowy'!G202","v":1},{"$f":"'Koszty produkcji - szczegółowy'!H202","v":0},{"$f":"'Koszty produkcji - szczegółowy'!I202","v":0},{"$f":"'Koszty produkcji - szczegółowy'!J202","v":"Producent zewnętrzny - zasoby własne oraz spółek powiązanych"},null,null,null,null,null,null,0,0]
[null,"Udźwiękowienie",{"$f":"'Koszty produkcji - szczegółowy'!C203","v":"Dolby E"},{"$f":"'Koszty produkcji - szczegółowy'!D203","v":0},{"$f":"'Koszty produkcji - szczegółowy'!E203","v":"Odcinek"},{"$f":"'Koszty produkcji - szczegółowy'!F203","v":0},{"$f":"'Koszty produkcji - szczegółowy'!G203","v":1},{"$f":"'Koszty produkcji - szczegółowy'!H203","v":0},{"$f":"'Koszty produkcji - szczegółowy'!I203","v":0},{"$f":"'Koszty produkcji - szczegółowy'!J203","v":"Producent zewnętrzny - zasoby własne oraz spółek powiązanych"},null,null,null,null,null,null,0,0]
[null,null,{"$f":"'Koszty produkcji - szczegółowy'!C204","v":"Archiwizacja materiałów"},{"$f":"'Koszty produkcji - szczegółowy'!D204","v":0},{"$f":"'Koszty produkcji - szczegółowy'!E204","v":"Odcinek"},{"$f":"'Koszty produkcji - szczegółowy'!F204","v":0},{"$f":"'Koszty produkcji - szczegółowy'!G204","v":1},{"$f":"'Koszty produkcji - szczegółowy'!H204","v":0},{"$f":"'Koszty produkcji - szczegółowy'!I204","v":0},{"$f":"'Koszty produkcji - szczegółowy'!J204","v":"Producent zewnętrzny - zasoby własne oraz spółek powiązanych"},null,null,null,null,null,null,0,0]
[null,null,{"$f":"'Koszty produkcji - szczegółowy'!C205","v":"Materiały archiwalne -obróbka "},{"$f":"'Koszty produkcji - szczegółowy'!D205","v":0},{"$f":"'Koszty produkcji - szczegółowy'!E205","v":"Ryczałt"},{"$f":"'Koszty produkcji - szczegółowy'!F205","v":0},{"$f":"'Koszty produkcji - szczegółowy'!G205","v":1},{"$f":"'Koszty produkcji - szczegółowy'!H205","v":0},{"$f":"'Koszty produkcji - szczegółowy'!I205","v":0},{"$f":"'Koszty produkcji - szczegółowy'!J205","v":"Producent zewnętrzny - zasoby własne oraz spółek powiązanych"},null,null,null,null,null,null,0,0]
[null,null,{"$f":"'Koszty produkcji - szczegółowy'!C206","v":"Materiały archiwalne - zakup praw"},{"$f":"'Koszty produkcji - szczegółowy'!D206","v":0},{"$f":"'Koszty produkcji - szczegółowy'!E206","v":"Ryczałt"},{"$f":"'Koszty produkcji - szczegółowy'!F206","v":0},{"$f":"'Koszty produkcji - szczegółowy'!G206","v":1},{"$f":"'Koszty produkcji - szczegółowy'!H206","v":0},{"$f":"'Koszty produkcji - szczegółowy'!I206","v":0},{"$f":"'Koszty produkcji - szczegółowy'!J206","v":"Producent zewnętrzny - zasoby własne oraz spółek powiązanych"},null,null,null,null,null,null,0,0]
[null,null,{"$f":"'Koszty produkcji - szczegółowy'!C207","v":0},{"$f":"'Koszty produkcji - szczegółowy'!D207","v":0},{"$f":"'Koszty produkcji - szczegółowy'!E207","v":0},{"$f":"'Koszty produkcji - szczegółowy'!F207","v":0},{"$f":"'Koszty produkcji - szczegółowy'!G207","v":1},{"$f":"'Koszty produkcji - szczegółowy'!H207","v":0},{"$f":"'Koszty produkcji - szczegółowy'!I207","v":0},{"$f":"'Koszty produkcji - szczegółowy'!J207","v":"Producent zewnętrzny - zasoby własne oraz spółek powiązanych"},null,null,null,null,null,null,null,0]
[null,null,{"$f":"'Koszty produkcji - szczegółowy'!C208","v":0},{"$f":"'Koszty produkcji - szczegółowy'!D208","v":0},{"$f":"'Koszty produkcji - szczegółowy'!E208","v":0},{"$f":"'Koszty produkcji - szczegółowy'!F208","v":0},{"$f":"'Koszty produkcji - szczegółowy'!G208","v":1},{"$f":"'Koszty produkcji - szczegółowy'!H208","v":0},{"$f":"'Koszty produkcji - szczegółowy'!I208","v":0},{"$f":"'Koszty produkcji - szczegółowy'!J208","v":"Producent zewnętrzny - zasoby własne oraz spółek powiązanych"},null,null,null,null,null,null,null,0]
[null,null,{"$f":"'Koszty produkcji - szczegółowy'!C209","v":0},{"$f":"'Koszty produkcji - szczegółowy'!D209","v":0},{"$f":"'Koszty produkcji - szczegółowy'!E209","v":0},{"$f":"'Koszty produkcji - szczegółowy'!F209","v":0},{"$f":"'Koszty produkcji - szczegółowy'!G209","v":1},{"$f":"'Koszty produkcji - szczegółowy'!H209","v":0},{"$f":"'Koszty produkcji - szczegółowy'!I209","v":0},{"$f":"'Koszty produkcji - szczegółowy'!J209","v":"Producent zewnętrzny - zasoby własne oraz spółek powiązanych"},null,null,null,null,null,null,{"$f":"IF(J209=\"Producent- zasoby własne oraz spółek powiązanych\",IF(K209=\"\",I209,0),0)","v":0},0]
[null,null,{"$f":"'Koszty produkcji - szczegółowy'!C210","v":0},{"$f":"'Koszty produkcji - szczegółowy'!D210","v":0},{"$f":"'Koszty produkcji - szczegółowy'!E210","v":0},{"$f":"'Koszty produkcji - szczegółowy'!F210","v":0},{"$f":"'Koszty produkcji - szczegółowy'!G210","v":1},{"$f":"'Koszty produkcji - szczegółowy'!H210","v":0},{"$f":"'Koszty produkcji - szczegółowy'!I210","v":0},{"$f":"'Koszty produkcji - szczegółowy'!J210","v":"Producent zewnętrzny - zasoby własne oraz spółek powiązanych"},null,null,null,null,null,null,null,0]
[null,null,{"$f":"'Koszty produkcji - szczegółowy'!C211","v":0},{"$f":"'Koszty produkcji - szczegółowy'!D211","v":0},{"$f":"'Koszty produkcji - szczegółowy'!E211","v":0},{"$f":"'Koszty produkcji - szczegółowy'!F211","v":0},{"$f":"'Koszty produkcji - szczegółowy'!G211","v":1},{"$f":"'Koszty produkcji - szczegółowy'!H211","v":0},{"$f":"'Koszty produkcji - szczegółowy'!I211","v":0},{"$f":"'Koszty produkcji - szczegółowy'!J211","v":"Producent zewnętrzny - zasoby własne oraz spółek powiązanych"},null,null,null,null,null,null,{"$f":"IF(J211=\"Producent- zasoby własne oraz spółek powiązanych\",IF(K211=\"\",I211,0),0)","v":0},0]
["17.","Usługi obce ",null,null,null,null,null,null,{"$f":"SUM(I213:I229)","v":0},null,null,null,null,null,null,null,0,0]
[null,null,{"$f":"'Koszty produkcji - szczegółowy'!C213","v":"Catering"},{"$f":"'Koszty produkcji - szczegółowy'!D213","v":0},{"$f":"'Koszty produkcji - szczegółowy'!E213","v":"Os. / dni"},{"$f":"'Koszty produkcji - szczegółowy'!F213","v":0},{"$f":"'Koszty produkcji - szczegółowy'!G213","v":1},{"$f":"'Koszty produkcji - szczegółowy'!H213","v":0},{"$f":"'Koszty produkcji - szczegółowy'!I213","v":0},{"$f":"'Koszty produkcji - szczegółowy'!J213","v":"Producent zewnętrzny - zasoby własne oraz spółek powiązanych"},null,null,null,null,null,null,0,0]
[null,null,{"$f":"'Koszty produkcji - szczegółowy'!C214","v":"Catering statyści"},{"$f":"'Koszty produkcji - szczegółowy'!D214","v":0},{"$f":"'Koszty produkcji - szczegółowy'!E214","v":"Os. / dni"},{"$f":"'Koszty produkcji - szczegółowy'!F214","v":0},{"$f":"'Koszty produkcji - szczegółowy'!G214","v":1},{"$f":"'Koszty produkcji - szczegółowy'!H214","v":0},{"$f":"'Koszty produkcji - szczegółowy'!I214","v":0},{"$f":"'Koszty produkcji - szczegółowy'!J214","v":"Producent zewnętrzny - zasoby własne oraz spółek powiązanych"},null,null,null,null,null,null,0,0]
[null,null,{"$f":"'Koszty produkcji - szczegółowy'!C215","v":"Opłaty parkingowe"},{"$f":"'Koszty produkcji - szczegółowy'!D215","v":0},{"$f":"'Koszty produkcji - szczegółowy'!E215","v":"Ryczałt"},{"$f":"'Koszty produkcji - szczegółowy'!F215","v":0},{"$f":"'Koszty produkcji - szczegółowy'!G215","v":1},{"$f":"'Koszty produkcji - szczegółowy'!H215","v":0},{"$f":"'Koszty produkcji - szczegółowy'!I215","v":0},{"$f":"'Koszty produkcji - szczegółowy'!J215","v":"Producent zewnętrzny - zasoby własne oraz spółek powiązanych"},null,null,null,null,null,null,0,0]
[null,null,{"$f":"'Koszty produkcji - szczegółowy'!C216","v":"Opieka medyczna"},{"$f":"'Koszty produkcji - szczegółowy'!D216","v":0},{"$f":"'Koszty produkcji - szczegółowy'!E216","v":"Dni"},{"$f":"'Koszty produkcji - szczegółowy'!F216","v":0},{"$f":"'Koszty produkcji - szczegółowy'!G216","v":1},{"$f":"'Koszty produkcji - szczegółowy'!H216","v":0},{"$f":"'Koszty produkcji - szczegółowy'!I216","v":0},{"$f":"'Koszty produkcji - szczegółowy'!J216","v":"Producent zewnętrzny - zasoby własne oraz spółek powiązanych"},null,null,null,null,null,null,0,0]
[null,null,{"$f":"'Koszty produkcji - szczegółowy'!C217","v":"Słuzby specjalne, Straż pożarna, policja, pomoc drogowa, MPO itp."},{"$f":"'Koszty produkcji - szczegółowy'!D217","v":0},{"$f":"'Koszty produkcji - szczegółowy'!E217","v":"Dni"},{"$f":"'Koszty produkcji - szczegółowy'!F217","v":0},{"$f":"'Koszty produkcji - szczegółowy'!G217","v":1},{"$f":"'Koszty produkcji - szczegółowy'!H217","v":0},{"$f":"'Koszty produkcji - szczegółowy'!I217","v":0},{"$f":"'Koszty produkcji - szczegółowy'!J217","v":"Producent zewnętrzny - zasoby własne oraz spółek powiązanych"},null,null,null,null,null,null,0,0]
[null,null,{"$f":"'Koszty produkcji - szczegółowy'!C218","v":"Pozwolenia i zgody na zajęcie terenu"},{"$f":"'Koszty produkcji - szczegółowy'!D218","v":0},{"$f":"'Koszty produkcji - szczegółowy'!E218","v":"Ryczałt"},{"$f":"'Koszty produkcji - szczegółowy'!F218","v":0},{"$f":"'Koszty produkcji - szczegółowy'!G218","v":1},{"$f":"'Koszty produkcji - szczegółowy'!H218","v":0},{"$f":"'Koszty produkcji - szczegółowy'!I218","v":0},{"$f":"'Koszty produkcji - szczegółowy'!J218","v":"Producent zewnętrzny - zasoby własne oraz spółek powiązanych"},null,null,null,null,null,null,0,0]
[null,null,{"$f":"'Koszty produkcji - szczegółowy'!C219","v":"Plan organizacji ruchu"},{"$f":"'Koszty produkcji - szczegółowy'!D219","v":0},{"$f":"'Koszty produkcji - szczegółowy'!E219","v":"Ryczałt"},{"$f":"'Koszty produkcji - szczegółowy'!F219","v":0},{"$f":"'Koszty produkcji - szczegółowy'!G219","v":1},{"$f":"'Koszty produkcji - szczegółowy'!H219","v":0},{"$f":"'Koszty produkcji - szczegółowy'!I219","v":0},{"$f":"'Koszty produkcji - szczegółowy'!J219","v":"Producent zewnętrzny - zasoby własne oraz spółek powiązanych"},null,null,null,null,null,null,0,0]
[null,null,{"$f":"'Koszty produkcji - szczegółowy'!C220","v":"Ochrona planu"},{"$f":"'Koszty produkcji - szczegółowy'!D220","v":0},{"$f":"'Koszty produkcji - szczegółowy'!E220","v":"Dni"},{"$f":"'Koszty produkcji - szczegółowy'!F220","v":0},{"$f":"'Koszty produkcji - szczegółowy'!G220","v":1},{"$f":"'Koszty produkcji - szczegółowy'!H220","v":0},{"$f":"'Koszty produkcji - szczegółowy'!I220","v":0},{"$f":"'Koszty produkcji - szczegółowy'!J220","v":"Producent zewnętrzny - zasoby własne oraz spółek powiązanych"},null,null,null,null,null,null,0,0]
[null,null,{"$f":"'Koszty produkcji - szczegółowy'!C221","v":"Materiały BHP"},{"$f":"'Koszty produkcji - szczegółowy'!D221","v":0},{"$f":"'Koszty produkcji - szczegółowy'!E221","v":"Odcinek"},{"$f":"'Koszty produkcji - szczegółowy'!F221","v":0},{"$f":"'Koszty produkcji - szczegółowy'!G221","v":1},{"$f":"'Koszty produkcji - szczegółowy'!H221","v":0},{"$f":"'Koszty produkcji - szczegółowy'!I221","v":0},{"$f":"'Koszty produkcji - szczegółowy'!J221","v":"Producent zewnętrzny - zasoby własne oraz spółek powiązanych"},null,null,null,null,null,null,0,0]
[null,null,{"$f":"'Koszty produkcji - szczegółowy'!C222","v":"Ubezpieczenie sprzętu i ekipy"},{"$f":"'Koszty produkcji - szczegółowy'!D222","v":0},{"$f":"'Koszty produkcji - szczegółowy'!E222","v":"Ryczałt"},{"$f":"'Koszty produkcji - szczegółowy'!F222","v":0},{"$f":"'Koszty produkcji - szczegółowy'!G222","v":1},{"$f":"'Koszty produkcji - szczegółowy'!H222","v":0},{"$f":"'Koszty produkcji - szczegółowy'!I222","v":0},{"$f":"'Koszty produkcji - szczegółowy'!J222","v":"Producent zewnętrzny - zasoby własne oraz spółek powiązanych"},null,null,null,null,null,null,0,0]
[null,null,{"$f":"'Koszty produkcji - szczegółowy'!C223","v":"Materiały dyżurnych planu"},{"$f":"'Koszty produkcji - szczegółowy'!D223","v":0},{"$f":"'Koszty produkcji - szczegółowy'!E223","v":"Odcinek"},{"$f":"'Koszty produkcji - szczegółowy'!F223","v":0},{"$f":"'Koszty produkcji - szczegółowy'!G223","v":1},{"$f":"'Koszty produkcji - szczegółowy'!H223","v":0},{"$f":"'Koszty produkcji - szczegółowy'!I223","v":0},{"$f":"'Koszty produkcji - szczegółowy'!J223","v":"Producent zewnętrzny - zasoby własne oraz spółek powiązanych"},null,null,null,null,null,null,0,0]
[null,null,{"$f":"'Koszty produkcji - szczegółowy'!C224","v":"Sprzątanie obiektów zdjęciowych"},{"$f":"'Koszty produkcji - szczegółowy'!D224","v":0},{"$f":"'Koszty produkcji - szczegółowy'!E224","v":"Odcinek"},{"$f":"'Koszty produkcji - szczegółowy'!F224","v":0},{"$f":"'Koszty produkcji - szczegółowy'!G224","v":1},{"$f":"'Koszty produkcji - szczegółowy'!H224","v":0},{"$f":"'Koszty produkcji - szczegółowy'!I224","v":0},{"$f":"'Koszty produkcji - szczegółowy'!J224","v":"Producent zewnętrzny - zasoby własne oraz spółek powiązanych"},null,null,null,null,null,null,0,0]
[null,null,{"$f":"'Koszty produkcji - szczegółowy'!C225","v":0},{"$f":"'Koszty produkcji - szczegółowy'!D225","v":0},{"$f":"'Koszty produkcji - szczegółowy'!E225","v":0},{"$f":"'Koszty produkcji - szczegółowy'!F225","v":0},{"$f":"'Koszty produkcji - szczegółowy'!G225","v":1},{"$f":"'Koszty produkcji - szczegółowy'!H225","v":0},{"$f":"'Koszty produkcji - szczegółowy'!I225","v":0},{"$f":"'Koszty produkcji - szczegółowy'!J225","v":"Producent zewnętrzny - zasoby własne oraz spółek powiązanych"},null,null,null,null,null,null,0,0]
[null,null,{"$f":"'Koszty produkcji - szczegółowy'!C226","v":0},{"$f":"'Koszty produkcji - szczegółowy'!D226","v":0},{"$f":"'Koszty produkcji - szczegółowy'!E226","v":0},{"$f":"'Koszty produkcji - szczegółowy'!F226","v":0},{"$f":"'Koszty produkcji - szczegółowy'!G226","v":1},{"$f":"'Koszty produkcji - szczegółowy'!H226","v":0},{"$f":"'Koszty produkcji - szczegółowy'!I226","v":0},{"$f":"'Koszty produkcji - szczegółowy'!J226","v":"Producent zewnętrzny - zasoby własne oraz spółek powiązanych"},null,null,null,null,null,null,null,0]
[null,null,{"$f":"'Koszty produkcji - szczegółowy'!C227","v":0},{"$f":"'Koszty produkcji - szczegółowy'!D227","v":0},{"$f":"'Koszty produkcji - szczegółowy'!E227","v":0},{"$f":"'Koszty produkcji - szczegółowy'!F227","v":0},{"$f":"'Koszty produkcji - szczegółowy'!G227","v":1},{"$f":"'Koszty produkcji - szczegółowy'!H227","v":0},{"$f":"'Koszty produkcji - szczegółowy'!I227","v":0},{"$f":"'Koszty produkcji - szczegółowy'!J227","v":"Producent zewnętrzny - zasoby własne oraz spółek powiązanych"},null,null,null,null,null,null,null,0]
[null,null,{"$f":"'Koszty produkcji - szczegółowy'!C228","v":0},{"$f":"'Koszty produkcji - szczegółowy'!D228","v":0},{"$f":"'Koszty produkcji - szczegółowy'!E228","v":0},{"$f":"'Koszty produkcji - szczegółowy'!F228","v":0},{"$f":"'Koszty produkcji - szczegółowy'!G228","v":1},{"$f":"'Koszty produkcji - szczegółowy'!H228","v":0},{"$f":"'Koszty produkcji - szczegółowy'!I228","v":0},{"$f":"'Koszty produkcji - szczegółowy'!J228","v":"Producent zewnętrzny - zasoby własne oraz spółek powiązanych"},null,null,null,null,null,null,{"$f":"IF(J228=\"Producent- zasoby własne oraz spółek powiązanych\",IF(K228=\"\",I228,0),0)","v":0},0]
[null,null,{"$f":"'Koszty produkcji - szczegółowy'!C229","v":0},{"$f":"'Koszty produkcji - szczegółowy'!D229","v":0},{"$f":"'Koszty produkcji - szczegółowy'!E229","v":0},{"$f":"'Koszty produkcji - szczegółowy'!F229","v":0},{"$f":"'Koszty produkcji - szczegółowy'!G229","v":1},{"$f":"'Koszty produkcji - szczegółowy'!H229","v":0},{"$f":"'Koszty produkcji - szczegółowy'!I229","v":0},{"$f":"'Koszty produkcji - szczegółowy'!J229","v":"Producent zewnętrzny - zasoby własne oraz spółek powiązanych"},null,null,null,null,null,null,0,0]
["18.","Koszty administracyjno - biurowe",null,null,null,null,null,null,{"$f":"SUM(I231:I238)","v":0},null,null,null,null,null,null,null,0,0]
[null,null,{"$f":"'Koszty produkcji - szczegółowy'!C231","v":"Wynajem pomieszczeń produkcyjnych (biuro)"},{"$f":"'Koszty produkcji - szczegółowy'!D231","v":0},{"$f":"'Koszty produkcji - szczegółowy'!E231","v":"Miesiąc"},{"$f":"'Koszty produkcji - szczegółowy'!F231","v":0},{"$f":"'Koszty produkcji - szczegółowy'!G231","v":1},{"$f":"'Koszty produkcji - szczegółowy'!H231","v":0},{"$f":"'Koszty produkcji - szczegółowy'!I231","v":0},{"$f":"'Koszty produkcji - szczegółowy'!J231","v":"Producent zewnętrzny - zasoby własne oraz spółek powiązanych"},null,null,null,null,null,null,0,0]
[null,null,{"$f":"'Koszty produkcji - szczegółowy'!C232","v":"Telekomunikacja"},{"$f":"'Koszty produkcji - szczegółowy'!D232","v":0},{"$f":"'Koszty produkcji - szczegółowy'!E232","v":"Miesiąc"},{"$f":"'Koszty produkcji - szczegółowy'!F232","v":0},{"$f":"'Koszty produkcji - szczegółowy'!G232","v":1},{"$f":"'Koszty produkcji - szczegółowy'!H232","v":0},{"$f":"'Koszty produkcji - szczegółowy'!I232","v":0},{"$f":"'Koszty produkcji - szczegółowy'!J232","v":"Producent zewnętrzny - zasoby własne oraz spółek powiązanych"},null,null,null,null,null,null,0,0]
[null,null,{"$f":"'Koszty produkcji - szczegółowy'!C233","v":"Usługi kurierskie"},{"$f":"'Koszty produkcji - szczegółowy'!D233","v":0},{"$f":"'Koszty produkcji - szczegółowy'!E233","v":"Ryczałt"},{"$f":"'Koszty produkcji - szczegółowy'!F233","v":0},{"$f":"'Koszty produkcji - szczegółowy'!G233","v":1},{"$f":"'Koszty produkcji - szczegółowy'!H233","v":0},{"$f":"'Koszty produkcji - szczegółowy'!I233","v":0},{"$f":"'Koszty produkcji - szczegółowy'!J233","v":"Producent zewnętrzny - zasoby własne oraz spółek powiązanych"},null,null,null,null,null,null,0,0]
[null,null,{"$f":"'Koszty produkcji - szczegółowy'!C234","v":"Materiały biurowe"},{"$f":"'Koszty produkcji - szczegółowy'!D234","v":0},{"$f":"'Koszty produkcji - szczegółowy'!E234","v":"Odcinek"},{"$f":"'Koszty produkcji - szczegółowy'!F234","v":0},{"$f":"'Koszty produkcji - szczegółowy'!G234","v":1},{"$f":"'Koszty produkcji - szczegółowy'!H234","v":0},{"$f":"'Koszty produkcji - szczegółowy'!I234","v":0},{"$f":"'Koszty produkcji - szczegółowy'!J234","v":"Producent zewnętrzny - zasoby własne oraz spółek powiązanych"},null,null,null,null,null,null,0,0]
[null,null,{"$f":"'Koszty produkcji - szczegółowy'!C235","v":"Ogłoszenia prasowe - castingi itp."},{"$f":"'Koszty produkcji - szczegółowy'!D235","v":0},{"$f":"'Koszty produkcji - szczegółowy'!E235","v":"Ryczałt"},{"$f":"'Koszty produkcji - szczegółowy'!F235","v":0},{"$f":"'Koszty produkcji - szczegółowy'!G235","v":1},{"$f":"'Koszty produkcji - szczegółowy'!H235","v":0},{"$f":"'Koszty produkcji - szczegółowy'!I235","v":0},{"$f":"'Koszty produkcji - szczegółowy'!J235","v":"Producent zewnętrzny - zasoby własne oraz spółek powiązanych"},null,null,null,null,null,null,0,0]
[null,null,{"$f":"'Koszty produkcji - szczegółowy'!C236","v":0},{"$f":"'Koszty produkcji - szczegółowy'!D236","v":0},{"$f":"'Koszty produkcji - szczegółowy'!E236","v":0},{"$f":"'Koszty produkcji - szczegółowy'!F236","v":0},{"$f":"'Koszty produkcji - szczegółowy'!G236","v":1},{"$f":"'Koszty produkcji - szczegółowy'!H236","v":0},{"$f":"'Koszty produkcji - szczegółowy'!I236","v":0},{"$f":"'Koszty produkcji - szczegółowy'!J236","v":"Producent zewnętrzny - zasoby własne oraz spółek powiązanych"},null,null,null,null,null,null,0,0]
[null,null,{"$f":"'Koszty produkcji - szczegółowy'!C237","v":0},{"$f":"'Koszty produkcji - szczegółowy'!D237","v":0},{"$f":"'Koszty produkcji - szczegółowy'!E237","v":0},{"$f":"'Koszty produkcji - szczegółowy'!F237","v":0},{"$f":"'Koszty produkcji - szczegółowy'!G237","v":1},{"$f":"'Koszty produkcji - szczegółowy'!H237","v":0},{"$f":"'Koszty produkcji - szczegółowy'!I237","v":0},{"$f":"'Koszty produkcji - szczegółowy'!J237","v":"Producent zewnętrzny - zasoby własne oraz spółek powiązanych"},null,null,null,null,null,null,null,0]
[null,null,{"$f":"'Koszty produkcji - szczegółowy'!C238","v":0},{"$f":"'Koszty produkcji - szczegółowy'!D238","v":0},{"$f":"'Koszty produkcji - szczegółowy'!E238","v":0},{"$f":"'Koszty produkcji - szczegółowy'!F238","v":0},{"$f":"'Koszty produkcji - szczegółowy'!G238","v":1},{"$f":"'Koszty produkcji - szczegółowy'!H238","v":0},{"$f":"'Koszty produkcji - szczegółowy'!I238","v":0},{"$f":"'Koszty produkcji - szczegółowy'!J238","v":"Producent zewnętrzny - zasoby własne oraz spółek powiązanych"},null,null,null,null,null,null,null,0]
["19.","Transport",null,null,null,null,null,null,{"$f":"SUM(I240,I248,I270)","v":0},null,null,null,null,null,null,null,{"$f":"IF(J239=\"Producent- zasoby własne oraz spółek powiązanych\",IF(K239=\"\",I239,0),0)","v":0},0]
["19a."," Okres przygotowawczy",null,null,null,null,null,null,{"$f":"SUM(I241:I247)","v":0},null,null,null,null,null,null,null,0,0]
[null,null,{"$f":"'Koszty produkcji - szczegółowy'!C241","v":"Samochód produkcyjny (dokumentacje i inne )"},{"$f":"'Koszty produkcji - szczegółowy'!D241","v":0},{"$f":"'Koszty produkcji - szczegółowy'!E241","v":"Dni"},{"$f":"'Koszty produkcji - szczegółowy'!F241","v":0},{"$f":"'Koszty produkcji - szczegółowy'!G241","v":1},{"$f":"'Koszty produkcji - szczegółowy'!H241","v":0},{"$f":"'Koszty produkcji - szczegółowy'!I241","v":0},{"$f":"'Koszty produkcji - szczegółowy'!J241","v":"Producent zewnętrzny - zasoby własne oraz spółek powiązanych"},null,null,null,null,null,null,0,0]
[null,null,{"$f":"'Koszty produkcji - szczegółowy'!C242","v":"Samochód rekwizytorski "},{"$f":"'Koszty produkcji - szczegółowy'!D242","v":0},{"$f":"'Koszty produkcji - szczegółowy'!E242","v":"Dni"},{"$f":"'Koszty produkcji - szczegółowy'!F242","v":0},{"$f":"'Koszty produkcji - szczegółowy'!G242","v":1},{"$f":"'Koszty produkcji - szczegółowy'!H242","v":0},{"$f":"'Koszty produkcji - szczegółowy'!I242","v":0},{"$f":"'Koszty produkcji - szczegółowy'!J242","v":"Producent zewnętrzny - zasoby własne oraz spółek powiązanych"},null,null,null,null,null,null,0,0]
[null,null,{"$f":"'Koszty produkcji - szczegółowy'!C243","v":"Samochód kostiumograficzny"},{"$f":"'Koszty produkcji - szczegółowy'!D243","v":0},{"$f":"'Koszty produkcji - szczegółowy'!E243","v":"Dni"},{"$f":"'Koszty produkcji - szczegółowy'!F243","v":0},{"$f":"'Koszty produkcji - szczegółowy'!G243","v":1},{"$f":"'Koszty produkcji - szczegółowy'!H243","v":0},{"$f":"'Koszty produkcji - szczegółowy'!I243","v":0},{"$f":"'Koszty produkcji - szczegółowy'!J243","v":"Producent zewnętrzny - zasoby własne oraz spółek powiązanych"},null,null,null,null,null,null,0,0]
[null,null,{"$f":"'Koszty produkcji - szczegółowy'!C244","v":"Samochód scenograficzny"},{"$f":"'Koszty produkcji - szczegółowy'!D244","v":0},{"$f":"'Koszty produkcji - szczegółowy'!E244","v":"Dni"},{"$f":"'Koszty produkcji - szczegółowy'!F244","v":0},{"$f":"'Koszty produkcji - szczegółowy'!G244","v":1},{"$f":"'Koszty produkcji - szczegółowy'!H244","v":0},{"$f":"'Koszty produkcji - szczegółowy'!I244","v":0},{"$f":"'Koszty produkcji - szczegółowy'!J244","v":"Producent zewnętrzny - zasoby własne oraz spółek powiązanych"},null,null,null,null,null,null,0,0]
[null,null,{"$f":"'Koszty produkcji - szczegółowy'!C245","v":0},{"$f":"'Koszty produkcji - szczegółowy'!D245","v":0},{"$f":"'Koszty produkcji - szczegółowy'!E245","v":0},{"$f":"'Koszty produkcji - szczegółowy'!F245","v":0},{"$f":"'Koszty produkcji - szczegółowy'!G245","v":1},{"$f":"'Koszty produkcji - szczegółowy'!H245","v":0},{"$f":"'Koszty produkcji - szczegółowy'!I245","v":0},{"$f":"'Koszty produkcji - szczegółowy'!J245","v":"Producent zewnętrzny - zasoby własne oraz spółek powiązanych"},null,null,null,null,null,null,0,0]
[null,null,{"$f":"'Koszty produkcji - szczegółowy'!C246","v":0},{"$f":"'Koszty produkcji - szczegółowy'!D246","v":0},{"$f":"'Koszty produkcji - szczegółowy'!E246","v":0},{"$f":"'Koszty produkcji - szczegółowy'!F246","v":0},{"$f":"'Koszty produkcji - szczegółowy'!G246","v":1},{"$f":"'Koszty produkcji - szczegółowy'!H246","v":0},{"$f":"'Koszty produkcji - szczegółowy'!I246","v":0},{"$f":"'Koszty produkcji - szczegółowy'!J246","v":"Producent zewnętrzny - zasoby własne oraz spółek powiązanych"},null,null,null,null,null,null,null,0]
[null,null,{"$f":"'Koszty produkcji - szczegółowy'!C247","v":0},{"$f":"'Koszty produkcji - szczegółowy'!D247","v":0},{"$f":"'Koszty produkcji - szczegółowy'!E247","v":0},{"$f":"'Koszty produkcji - szczegółowy'!F247","v":0},{"$f":"'Koszty produkcji - szczegółowy'!G247","v":1},{"$f":"'Koszty produkcji - szczegółowy'!H247","v":0},{"$f":"'Koszty produkcji - szczegółowy'!I247","v":0},{"$f":"'Koszty produkcji - szczegółowy'!J247","v":"Producent zewnętrzny - zasoby własne oraz spółek powiązanych"},null,null,null,null,null,null,null,0]
["19b.","Okres zdjęciowy",null,null,null,null,null,null,{"$f":"SUM(I249:I269)","v":0},null,null,null,null,null,null,null,{"$f":"IF(J248=\"Producent- zasoby własne oraz spółek powiązanych\",IF(K248=\"\",I248,0),0)","v":0},0]
[null,null,{"$f":"'Koszty produkcji - szczegółowy'!C249","v":"Samochód produkcyjny "},{"$f":"'Koszty produkcji - szczegółowy'!D249","v":0},{"$f":"'Koszty produkcji - szczegółowy'!E249","v":"Dni"},{"$f":"'Koszty produkcji - szczegółowy'!F249","v":0},{"$f":"'Koszty produkcji - szczegółowy'!G249","v":1},{"$f":"'Koszty produkcji - szczegółowy'!H249","v":0},{"$f":"'Koszty produkcji - szczegółowy'!I249","v":0},{"$f":"'Koszty produkcji - szczegółowy'!J249","v":"Producent zewnętrzny - zasoby własne oraz spółek powiązanych"},null,null,null,null,null,null,0,0]
[null,null,{"$f":"'Koszty produkcji - szczegółowy'!C250","v":"Bus do przewozu ekipy"},{"$f":"'Koszty produkcji - szczegółowy'!D250","v":0},{"$f":"'Koszty produkcji - szczegółowy'!E250","v":"Dni"},{"$f":"'Koszty produkcji - szczegółowy'!F250","v":0},{"$f":"'Koszty produkcji - szczegółowy'!G250","v":1},{"$f":"'Koszty produkcji - szczegółowy'!H250","v":0},{"$f":"'Koszty produkcji - szczegółowy'!I250","v":0},{"$f":"'Koszty produkcji - szczegółowy'!J250","v":"Producent zewnętrzny - zasoby własne oraz spółek powiązanych"},null,null,null,null,null,null,0,0]
[null,null,{"$f":"'Koszty produkcji - szczegółowy'!C251","v":"Samochód kamerowy"},{"$f":"'Koszty produkcji - szczegółowy'!D251","v":0},{"$f":"'Koszty produkcji - szczegółowy'!E251","v":"Dni"},{"$f":"'Koszty produkcji - szczegółowy'!F251","v":0},{"$f":"'Koszty produkcji - szczegółowy'!G251","v":1},{"$f":"'Koszty produkcji - szczegółowy'!H251","v":0},{"$f":"'Koszty produkcji - szczegółowy'!I251","v":0},{"$f":"'Koszty produkcji - szczegółowy'!J251","v":"Producent zewnętrzny - zasoby własne oraz spółek powiązanych"},null,null,null,null,null,null,0,0]
[null,null,{"$f":"'Koszty produkcji - szczegółowy'!C252","v":"Samochód oświetleniowy"},{"$f":"'Koszty produkcji - szczegółowy'!D252","v":0},{"$f":"'Koszty produkcji - szczegółowy'!E252","v":"Dni"},{"$f":"'Koszty produkcji - szczegółowy'!F252","v":0},{"$f":"'Koszty produkcji - szczegółowy'!G252","v":1},{"$f":"'Koszty produkcji - szczegółowy'!H252","v":0},{"$f":"'Koszty produkcji - szczegółowy'!I252","v":0},{"$f":"'Koszty produkcji - szczegółowy'!J252","v":"Producent zewnętrzny - zasoby własne oraz spółek powiązanych"},null,null,null,null,null,null,0,0]
[null,null,{"$f":"'Koszty produkcji - szczegółowy'!C253","v":"Samochód do przewozu wózka i kranu"},{"$f":"'Koszty produkcji - szczegółowy'!D253","v":0},{"$f":"'Koszty produkcji - szczegółowy'!E253","v":"Dni"},{"$f":"'Koszty produkcji - szczegółowy'!F253","v":0},{"$f":"'Koszty produkcji - szczegółowy'!G253","v":1},{"$f":"'Koszty produkcji - szczegółowy'!H253","v":0},{"$f":"'Koszty produkcji - szczegółowy'!I253","v":0},{"$f":"'Koszty produkcji - szczegółowy'!J253","v":"Producent zewnętrzny - zasoby własne oraz spółek powiązanych"},null,null,null,null,null,null,0,0]
[null,null,{"$f":"'Koszty produkcji - szczegółowy'!C254","v":"Samochód dźwiękowy"},{"$f":"'Koszty produkcji - szczegółowy'!D254","v":0},{"$f":"'Koszty produkcji - szczegółowy'!E254","v":"Dni"},{"$f":"'Koszty produkcji - szczegółowy'!F254","v":0},{"$f":"'Koszty produkcji - szczegółowy'!G254","v":1},{"$f":"'Koszty produkcji - szczegółowy'!H254","v":0},{"$f":"'Koszty produkcji - szczegółowy'!I254","v":0},{"$f":"'Koszty produkcji - szczegółowy'!J254","v":"Producent zewnętrzny - zasoby własne oraz spółek powiązanych"},null,null,null,null,null,null,0,0]
[null,null,{"$f":"'Koszty produkcji - szczegółowy'!C255","v":"Samochody rekwizytorski"},{"$f":"'Koszty produkcji - szczegółowy'!D255","v":0},{"$f":"'Koszty produkcji - szczegółowy'!E255","v":"Dni"},{"$f":"'Koszty produkcji - szczegółowy'!F255","v":0},{"$f":"'Koszty produkcji - szczegółowy'!G255","v":1},{"$f":"'Koszty produkcji - szczegółowy'!H255","v":0},{"$f":"'Koszty produkcji - szczegółowy'!I255","v":0},{"$f":"'Koszty produkcji - szczegółowy'!J255","v":"Producent zewnętrzny - zasoby własne oraz spółek powiązanych"},null,null,null,null,null,null,0,0]
[null,null,{"$f":"'Koszty produkcji - szczegółowy'!C256","v":"Samochód dyżurnych plau"},{"$f":"'Koszty produkcji - szczegółowy'!D256","v":0},{"$f":"'Koszty produkcji - szczegółowy'!E256","v":"Dni"},{"$f":"'Koszty produkcji - szczegółowy'!F256","v":0},{"$f":"'Koszty produkcji - szczegółowy'!G256","v":1},{"$f":"'Koszty produkcji - szczegółowy'!H256","v":0},{"$f":"'Koszty produkcji - szczegółowy'!I256","v":0},{"$f":"'Koszty produkcji - szczegółowy'!J256","v":"Producent zewnętrzny - zasoby własne oraz spółek powiązanych"},null,null,null,null,null,null,0,0]
[null,null,{"$f":"'Koszty produkcji - szczegółowy'!C257","v":"Samochód pirotechników"},{"$f":"'Koszty produkcji - szczegółowy'!D257","v":0},{"$f":"'Koszty produkcji - szczegółowy'!E257","v":"Dni"},{"$f":"'Koszty produkcji - szczegółowy'!F257","v":0},{"$f":"'Koszty produkcji - szczegółowy'!G257","v":1},{"$f":"'Koszty produkcji - szczegółowy'!H257","v":0},{"$f":"'Koszty produkcji - szczegółowy'!I257","v":0},{"$f":"'Koszty produkcji - szczegółowy'!J257","v":"Producent zewnętrzny - zasoby własne oraz spółek powiązanych"},null,null,null,null,null,null,0,0]
[null,null,{"$f":"'Koszty produkcji - szczegółowy'!C258","v":"Gard./make-up "},{"$f":"'Koszty produkcji - szczegółowy'!D258","v":0},{"$f":"'Koszty produkcji - szczegółowy'!E258","v":"Dni"},{"$f":"'Koszty produkcji - szczegółowy'!F258","v":0},{"$f":"'Koszty produkcji - szczegółowy'!G258","v":1},{"$f":"'Koszty produkcji - szczegółowy'!H258","v":0},{"$f":"'Koszty produkcji - szczegółowy'!I258","v":0},{"$f":"'Koszty produkcji - szczegółowy'!J258","v":"Producent zewnętrzny - zasoby własne oraz spółek powiązanych"},null,null,null,null,null,null,0,0]
[null,null,{"$f":"'Koszty produkcji - szczegółowy'!C259","v":"Camper"},{"$f":"'Koszty produkcji - szczegółowy'!D259","v":0},{"$f":"'Koszty produkcji - szczegółowy'!E259","v":"Dni"},{"$f":"'Koszty produkcji - szczegółowy'!F259","v":0},{"$f":"'Koszty produkcji - szczegółowy'!G259","v":1},{"$f":"'Koszty produkcji - szczegółowy'!H259","v":0},{"$f":"'Koszty produkcji - szczegółowy'!I259","v":0},{"$f":"'Koszty produkcji - szczegółowy'!J259","v":"Producent zewnętrzny - zasoby własne oraz spółek powiązanych"},null,null,null,null,null,null,0,0]
[null,null,{"$f":"'Koszty produkcji - szczegółowy'!C260","v":"Barobus"},{"$f":"'Koszty produkcji - szczegółowy'!D260","v":0},{"$f":"'Koszty produkcji - szczegółowy'!E260","v":"Dni"},{"$f":"'Koszty produkcji - szczegółowy'!F260","v":0},{"$f":"'Koszty produkcji - szczegółowy'!G260","v":1},{"$f":"'Koszty produkcji - szczegółowy'!H260","v":0},{"$f":"'Koszty produkcji - szczegółowy'!I260","v":0},{"$f":"'Koszty produkcji - szczegółowy'!J260","v":"Producent zewnętrzny - zasoby własne oraz spółek powiązanych"},null,null,null,null,null,null,0,{"$f":"IF(J260=\"Koszty zewnętrzne\",IF(K260=\"\",I260,0),0)","v":0}]
[null,null,{"$f":"'Koszty produkcji - szczegółowy'!C261","v":"Toalety plenerowe"},{"$f":"'Koszty produkcji - szczegółowy'!D261","v":0},{"$f":"'Koszty produkcji - szczegółowy'!E261","v":"Dni"},{"$f":"'Koszty produkcji - szczegółowy'!F261","v":0},{"$f":"'Koszty produkcji - szczegółowy'!G261","v":1},{"$f":"'Koszty produkcji - szczegółowy'!H261","v":0},{"$f":"'Koszty produkcji - szczegółowy'!I261","v":0},{"$f":"'Koszty produkcji - szczegółowy'!J261","v":"Producent zewnętrzny - zasoby własne oraz spółek powiązanych"},null,null,null,null,null,null,0,0]
[null,null,{"$f":"'Koszty produkcji - szczegółowy'!C262","v":"Taxi"},{"$f":"'Koszty produkcji - szczegółowy'!D262","v":0},{"$f":"'Koszty produkcji - szczegółowy'!E262","v":"Odcinek"},{"$f":"'Koszty produkcji - szczegółowy'!F262","v":0},{"$f":"'Koszty produkcji - szczegółowy'!G262","v":1},{"$f":"'Koszty produkcji - szczegółowy'!H262","v":0},{"$f":"'Koszty produkcji - szczegółowy'!I262","v":0},{"$f":"'Koszty produkcji - szczegółowy'!J262","v":"Producent zewnętrzny - zasoby własne oraz spółek powiązanych"},null,null,null,null,null,null,0,0]
[null,null,{"$f":"'Koszty produkcji - szczegółowy'!C263","v":"Lora"},{"$f":"'Koszty produkcji - szczegółowy'!D263","v":0},{"$f":"'Koszty produkcji - szczegółowy'!E263","v":"Dni"},{"$f":"'Koszty produkcji - szczegółowy'!F263","v":0},{"$f":"'Koszty produkcji - szczegółowy'!G263","v":1},{"$f":"'Koszty produkcji - szczegółowy'!H263","v":0},{"$f":"'Koszty produkcji - szczegółowy'!I263","v":0},{"$f":"'Koszty produkcji - szczegółowy'!J263","v":"Producent zewnętrzny - zasoby własne oraz spółek powiązanych"},null,null,null,null,null,null,0,0]
[null,null,{"$f":"'Koszty produkcji - szczegółowy'!C264","v":"Inne środki transportu"},{"$f":"'Koszty produkcji - szczegółowy'!D264","v":0},{"$f":"'Koszty produkcji - szczegółowy'!E264","v":"Dni"},{"$f":"'Koszty produkcji - szczegółowy'!F264","v":0},{"$f":"'Koszty produkcji - szczegółowy'!G264","v":1},{"$f":"'Koszty produkcji - szczegółowy'!H264","v":0},{"$f":"'Koszty produkcji - szczegółowy'!I264","v":0},{"$f":"'Koszty produkcji - szczegółowy'!J264","v":"Producent zewnętrzny - zasoby własne oraz spółek powiązanych"},null,null,null,null,null,null,0,0]
[null,null,{"$f":"'Koszty produkcji - szczegółowy'!C265","v":"Agregat"},{"$f":"'Koszty produkcji - szczegółowy'!D265","v":0},{"$f":"'Koszty produkcji - szczegółowy'!E265","v":"Dni"},{"$f":"'Koszty produkcji - szczegółowy'!F265","v":0},{"$f":"'Koszty produkcji - szczegółowy'!G265","v":1},{"$f":"'Koszty produkcji - szczegółowy'!H265","v":0},{"$f":"'Koszty produkcji - szczegółowy'!I265","v":0},{"$f":"'Koszty produkcji - szczegółowy'!J265","v":"Producent zewnętrzny - zasoby własne oraz spółek powiązanych"},null,null,null,null,null,null,0,0]
[null,null,{"$f":"'Koszty produkcji - szczegółowy'!C266","v":"Agregat samojezdny"},{"$f":"'Koszty produkcji - szczegółowy'!D266","v":0},{"$f":"'Koszty produkcji - szczegółowy'!E266","v":"Dni"},{"$f":"'Koszty produkcji - szczegółowy'!F266","v":0},{"$f":"'Koszty produkcji - szczegółowy'!G266","v":1},{"$f":"'Koszty produkcji - szczegółowy'!H266","v":0},{"$f":"'Koszty produkcji - szczegółowy'!I266","v":0},{"$f":"'Koszty produkcji - szczegółowy'!J266","v":"Producent zewnętrzny - zasoby własne oraz spółek powiązanych"},null,null,null,null,null,null,0,0]
[null,null,{"$f":"'Koszty produkcji - szczegółowy'!C267","v":0},{"$f":"'Koszty produkcji - szczegółowy'!D267","v":0},{"$f":"'Koszty produkcji - szczegółowy'!E267","v":0},{"$f":"'Koszty produkcji - szczegółowy'!F267","v":0},{"$f":"'Koszty produkcji - szczegółowy'!G267","v":1},{"$f":"'Koszty produkcji - szczegółowy'!H267","v":0},{"$f":"'Koszty produkcji - szczegółowy'!I267","v":0},{"$f":"'Koszty produkcji - szczegółowy'!J267","v":"Producent zewnętrzny - zasoby własne oraz spółek powiązanych"},null,null,null,null,null,null,0,0]
[null,null,{"$f":"'Koszty produkcji - szczegółowy'!C268","v":0},{"$f":"'Koszty produkcji - szczegółowy'!D268","v":0},{"$f":"'Koszty produkcji - szczegółowy'!E268","v":0},{"$f":"'Koszty produkcji - szczegółowy'!F268","v":0},{"$f":"'Koszty produkcji - szczegółowy'!G268","v":1},{"$f":"'Koszty produkcji - szczegółowy'!H268","v":0},{"$f":"'Koszty produkcji - szczegółowy'!I268","v":0},{"$f":"'Koszty produkcji - szczegółowy'!J268","v":"Producent zewnętrzny - zasoby własne oraz spółek powiązanych"},null,null,null,null,null,null,null,0]
[null,null,{"$f":"'Koszty produkcji - szczegółowy'!C269","v":0},{"$f":"'Koszty produkcji - szczegółowy'!D269","v":0},{"$f":"'Koszty produkcji - szczegółowy'!E269","v":0},{"$f":"'Koszty produkcji - szczegółowy'!F269","v":0},{"$f":"'Koszty produkcji - szczegółowy'!G269","v":1},{"$f":"'Koszty produkcji - szczegółowy'!H269","v":0},{"$f":"'Koszty produkcji - szczegółowy'!I269","v":0},{"$f":"'Koszty produkcji - szczegółowy'!J269","v":"Producent zewnętrzny - zasoby własne oraz spółek powiązanych"},null,null,null,null,null,null,null,0]
["19c.","Okres likwidacji",null,null,null,null,null,null,{"$f":"SUM(I271:I276)","v":0},null,null,null,null,null,null,null,{"$f":"IF(J270=\"Producent- zasoby własne oraz spółek powiązanych\",IF(K270=\"\",I270,0),0)","v":0},0]
[null,null,{"$f":"'Koszty produkcji - szczegółowy'!C271","v":"Samochód produkcyjny"},{"$f":"'Koszty produkcji - szczegółowy'!D271","v":0},{"$f":"'Koszty produkcji - szczegółowy'!E271","v":"Ryczałt"},{"$f":"'Koszty produkcji - szczegółowy'!F271","v":0},{"$f":"'Koszty produkcji - szczegółowy'!G271","v":1},{"$f":"'Koszty produkcji - szczegółowy'!H271","v":0},{"$f":"'Koszty produkcji - szczegółowy'!I271","v":0},{"$f":"'Koszty produkcji - szczegółowy'!J271","v":"Producent zewnętrzny - zasoby własne oraz spółek powiązanych"},null,null,null,null,null,null,{"$f":"IF(J271=\"Producent- zasoby własne oraz spółek powiązanych\",IF(K271=\"\",I271,0),0)","v":0},0]
[null,null,{"$f":"'Koszty produkcji - szczegółowy'!C272","v":"Samochód rekwizytorski"},{"$f":"'Koszty produkcji - szczegółowy'!D272","v":0},{"$f":"'Koszty produkcji - szczegółowy'!E272","v":"Dni"},{"$f":"'Koszty produkcji - szczegółowy'!F272","v":0},{"$f":"'Koszty produkcji - szczegółowy'!G272","v":1},{"$f":"'Koszty produkcji - szczegółowy'!H272","v":0},{"$f":"'Koszty produkcji - szczegółowy'!I272","v":0},{"$f":"'Koszty produkcji - szczegółowy'!J272","v":"Producent zewnętrzny - zasoby własne oraz spółek powiązanych"},null,null,null,null,null,null,{"$f":"IF(J272=\"Producent- zasoby własne oraz spółek powiązanych\",IF(K272=\"\",I272,0),0)","v":0},0]
[null,null,{"$f":"'Koszty produkcji - szczegółowy'!C273","v":"Inne środki transportu"},{"$f":"'Koszty produkcji - szczegółowy'!D273","v":0},{"$f":"'Koszty produkcji - szczegółowy'!E273","v":"Dni"},{"$f":"'Koszty produkcji - szczegółowy'!F273","v":0},{"$f":"'Koszty produkcji - szczegółowy'!G273","v":1},{"$f":"'Koszty produkcji - szczegółowy'!H273","v":0},{"$f":"'Koszty produkcji - szczegółowy'!I273","v":0},{"$f":"'Koszty produkcji - szczegółowy'!J273","v":"Producent zewnętrzny - zasoby własne oraz spółek powiązanych"},null,null,null,null,null,null,{"$f":"IF(J273=\"Producent- zasoby własne oraz spółek powiązanych\",IF(K273=\"\",I273,0),0)","v":0},0]
[null,null,{"$f":"'Koszty produkcji - szczegółowy'!C274","v":0},{"$f":"'Koszty produkcji - szczegółowy'!D274","v":0},{"$f":"'Koszty produkcji - szczegółowy'!E274","v":0},{"$f":"'Koszty produkcji - szczegółowy'!F274","v":0},{"$f":"'Koszty produkcji - szczegółowy'!G274","v":1},{"$f":"'Koszty produkcji - szczegółowy'!H274","v":0},{"$f":"'Koszty produkcji - szczegółowy'!I274","v":0},{"$f":"'Koszty produkcji - szczegółowy'!J274","v":"Producent zewnętrzny - zasoby własne oraz spółek powiązanych"},null,null,null,null,null,null,{"$f":"IF(J274=\"Producent- zasoby własne oraz spółek powiązanych\",IF(K274=\"\",I274,0),0)","v":0},0]
[null,null,{"$f":"'Koszty produkcji - szczegółowy'!C275","v":0},{"$f":"'Koszty produkcji - szczegółowy'!D275","v":0},{"$f":"'Koszty produkcji - szczegółowy'!E275","v":0},{"$f":"'Koszty produkcji - szczegółowy'!F275","v":0},{"$f":"'Koszty produkcji - szczegółowy'!G275","v":1},{"$f":"'Koszty produkcji - szczegółowy'!H275","v":0},{"$f":"'Koszty produkcji - szczegółowy'!I275","v":0},{"$f":"'Koszty produkcji - szczegółowy'!J275","v":"Producent zewnętrzny - zasoby własne oraz spółek powiązanych"},null,null,null,null,null,null,null,0]
[null,null,{"$f":"'Koszty produkcji - szczegółowy'!C276","v":0},{"$f":"'Koszty produkcji - szczegółowy'!D276","v":0},{"$f":"'Koszty produkcji - szczegółowy'!E276","v":0},{"$f":"'Koszty produkcji - szczegółowy'!F276","v":0},{"$f":"'Koszty produkcji - szczegółowy'!G276","v":1},{"$f":"'Koszty produkcji - szczegółowy'!H276","v":0},{"$f":"'Koszty produkcji - szczegółowy'!I276","v":0},{"$f":"'Koszty produkcji - szczegółowy'!J276","v":"Producent zewnętrzny - zasoby własne oraz spółek powiązanych"},null,null,null,null,null,null,null,0]
["20.","Delegacje,Hotele",null,null,null,null,null,null,{"$f":"SUM(I278,I282,I286,I290)","v":0},null,null,null,null,null,null,null,{"$f":"IF(J277=\"Producent- zasoby własne oraz spółek powiązanych\",IF(K277=\"\",I277,0),0)","v":0},0]
["20a.","Okres przygotowawczy",null,null,null,null,null,null,{"$f":"SUM(I279:I281)","v":0},null,null,null,null,null,null,null,0,0]
[null,null,{"$f":"'Koszty produkcji - szczegółowy'!C279","v":"Hotele "},{"$f":"'Koszty produkcji - szczegółowy'!D279","v":0},{"$f":"'Koszty produkcji - szczegółowy'!E279","v":"Dni"},{"$f":"'Koszty produkcji - szczegółowy'!F279","v":0},{"$f":"'Koszty produkcji - szczegółowy'!G279","v":1},{"$f":"'Koszty produkcji - szczegółowy'!H279","v":0},{"$f":"'Koszty produkcji - szczegółowy'!I279","v":0},{"$f":"'Koszty produkcji - szczegółowy'!J279","v":"Producent zewnętrzny - zasoby własne oraz spółek powiązanych"},null,null,null,null,null,null,0,0]
[null,null,{"$f":"'Koszty produkcji - szczegółowy'!C280","v":"Diety"},{"$f":"'Koszty produkcji - szczegółowy'!D280","v":0},{"$f":"'Koszty produkcji - szczegółowy'!E280","v":"Os. / dni"},{"$f":"'Koszty produkcji - szczegółowy'!F280","v":0},{"$f":"'Koszty produkcji - szczegółowy'!G280","v":1},{"$f":"'Koszty produkcji - szczegółowy'!H280","v":0},{"$f":"'Koszty produkcji - szczegółowy'!I280","v":0},{"$f":"'Koszty produkcji - szczegółowy'!J280","v":"Producent zewnętrzny - zasoby własne oraz spółek powiązanych"},null,null,null,null,null,null,0,0]
[null,null,{"$f":"'Koszty produkcji - szczegółowy'!C281","v":"Przejazdy"},{"$f":"'Koszty produkcji - szczegółowy'!D281","v":0},{"$f":"'Koszty produkcji - szczegółowy'!E281","v":"Szt. / os."},{"$f":"'Koszty produkcji - szczegółowy'!F281","v":0},{"$f":"'Koszty produkcji - szczegółowy'!G281","v":1},{"$f":"'Koszty produkcji - szczegółowy'!H281","v":0},{"$f":"'Koszty produkcji - szczegółowy'!I281","v":0},{"$f":"'Koszty produkcji - szczegółowy'!J281","v":"Producent zewnętrzny - zasoby własne oraz spółek powiązanych"},null,null,null,null,null,null,0,0]
["20b.","Okres zdjęciowy - ekipa",null,null,null,null,null,null,{"$f":"SUM(I283:I285)","v":0},null,null,null,null,null,null,null,0,0]
[null,null,{"$f":"'Koszty produkcji - szczegółowy'!C283","v":"Hotele"},{"$f":"'Koszty produkcji - szczegółowy'!D283","v":0},{"$f":"'Koszty produkcji - szczegółowy'!E283","v":"Dni"},{"$f":"'Koszty produkcji - szczegółowy'!F283","v":0},{"$f":"'Koszty produkcji - szczegółowy'!G283","v":1},{"$f":"'Koszty produkcji - szczegółowy'!H283","v":0},{"$f":"'Koszty produkcji - szczegółowy'!I283","v":0},{"$f":"'Koszty produkcji - szczegółowy'!J283","v":"Producent zewnętrzny - zasoby własne oraz spółek powiązanych"},null,null,null,null,null,null,0,0]
[null,null,{"$f":"'Koszty produkcji - szczegółowy'!C284","v":"Diety"},{"$f":"'Koszty produkcji - szczegółowy'!D284","v":0},{"$f":"'Koszty produkcji - szczegółowy'!E284","v":"Os. / dni"},{"$f":"'Koszty produkcji - szczegółowy'!F284","v":0},{"$f":"'Koszty produkcji - szczegółowy'!G284","v":1},{"$f":"'Koszty produkcji - szczegółowy'!H284","v":0},{"$f":"'Koszty produkcji - szczegółowy'!I284","v":0},{"$f":"'Koszty produkcji - szczegółowy'!J284","v":"Producent zewnętrzny - zasoby własne oraz spółek powiązanych"},null,null,null,null,null,null,0,0]
[null,null,{"$f":"'Koszty produkcji - szczegółowy'!C285","v":"Przejazdy"},{"$f":"'Koszty produkcji - szczegółowy'!D285","v":0},{"$f":"'Koszty produkcji - szczegółowy'!E285","v":"Szt. / os."},{"$f":"'Koszty produkcji - szczegółowy'!F285","v":0},{"$f":"'Koszty produkcji - szczegółowy'!G285","v":1},{"$f":"'Koszty produkcji - szczegółowy'!H285","v":0},{"$f":"'Koszty produkcji - szczegółowy'!I285","v":0},{"$f":"'Koszty produkcji - szczegółowy'!J285","v":"Producent zewnętrzny - zasoby własne oraz spółek powiązanych"},null,null,null,null,null,null,0,0]
["20c.","Okres zdjęciowy-aktorzy",null,null,null,null,null,null,{"$f":"SUM(I287:I289)","v":0},null,null,null,null,null,null,null,0,0]
[null,null,{"$f":"'Koszty produkcji - szczegółowy'!C287","v":"Hotele"},{"$f":"'Koszty produkcji - szczegółowy'!D287","v":0},{"$f":"'Koszty produkcji - szczegółowy'!E287","v":"Dni"},{"$f":"'Koszty produkcji - szczegółowy'!F287","v":0},{"$f":"'Koszty produkcji - szczegółowy'!G287","v":1},{"$f":"'Koszty produkcji - szczegółowy'!H287","v":0},{"$f":"'Koszty produkcji - szczegółowy'!I287","v":0},{"$f":"'Koszty produkcji - szczegółowy'!J287","v":"Producent zewnętrzny - zasoby własne oraz spółek powiązanych"},null,null,null,null,null,null,0,0]
[null,null,{"$f":"'Koszty produkcji - szczegółowy'!C288","v":"Diety"},{"$f":"'Koszty produkcji - szczegółowy'!D288","v":0},{"$f":"'Koszty produkcji - szczegółowy'!E288","v":"Os. / dni"},{"$f":"'Koszty produkcji - szczegółowy'!F288","v":0},{"$f":"'Koszty produkcji - szczegółowy'!G288","v":1},{"$f":"'Koszty produkcji - szczegółowy'!H288","v":0},{"$f":"'Koszty produkcji - szczegółowy'!I288","v":0},{"$f":"'Koszty produkcji - szczegółowy'!J288","v":"Producent zewnętrzny - zasoby własne oraz spółek powiązanych"},null,null,null,null,null,null,0,0]
[null,null,{"$f":"'Koszty produkcji - szczegółowy'!C289","v":"Przejazdy"},{"$f":"'Koszty produkcji - szczegółowy'!D289","v":0},{"$f":"'Koszty produkcji - szczegółowy'!E289","v":"Szt. / os."},{"$f":"'Koszty produkcji - szczegółowy'!F289","v":0},{"$f":"'Koszty produkcji - szczegółowy'!G289","v":1},{"$f":"'Koszty produkcji - szczegółowy'!H289","v":0},{"$f":"'Koszty produkcji - szczegółowy'!I289","v":0},{"$f":"'Koszty produkcji - szczegółowy'!J289","v":"Producent zewnętrzny - zasoby własne oraz spółek powiązanych"},null,null,null,null,null,null,0,0]
["20d."," Ryczałty samochodowe",null,null,null,null,null,null,{"$f":"SUM(I291:I292)","v":0},null,null,null,null,null,null,null,0,0]
[null,null,{"$f":"'Koszty produkcji - szczegółowy'!C291","v":"Ryczałty samochodowe"},{"$f":"'Koszty produkcji - szczegółowy'!D291","v":0},{"$f":"'Koszty produkcji - szczegółowy'!E291","v":"Ryczałt"},{"$f":"'Koszty produkcji - szczegółowy'!F291","v":0},{"$f":"'Koszty produkcji - szczegółowy'!G291","v":1},{"$f":"'Koszty produkcji - szczegółowy'!H291","v":0},{"$f":"'Koszty produkcji - szczegółowy'!I291","v":0},{"$f":"'Koszty produkcji - szczegółowy'!J291","v":"Producent zewnętrzny - zasoby własne oraz spółek powiązanych"},null,null,null,null,null,null,0,0]
[null,null,{"$f":"'Koszty produkcji - szczegółowy'!C292","v":"Paliwo do agregatu"},{"$f":"'Koszty produkcji - szczegółowy'!D292","v":0},{"$f":"'Koszty produkcji - szczegółowy'!E292","v":"Dni"},{"$f":"'Koszty produkcji - szczegółowy'!F292","v":0},{"$f":"'Koszty produkcji - szczegółowy'!G292","v":1},{"$f":"'Koszty produkcji - szczegółowy'!H292","v":0},{"$f":"'Koszty produkcji - szczegółowy'!I292","v":0},{"$f":"'Koszty produkcji - szczegółowy'!J292","v":"Producent zewnętrzny - zasoby własne oraz spółek powiązanych"},null,null,null,null,null,null,0,0]
["21.","Promocja",null,null,null,null,null,null,{"$f":"SUM(I294:I298)","v":0},null,null,null,null,null,null,null,0,0]
[null,null,{"$f":"'Koszty produkcji - szczegółowy'!C294","v":"Koszty PR "},{"$f":"'Koszty produkcji - szczegółowy'!D294","v":0},{"$f":"'Koszty produkcji - szczegółowy'!E294","v":"Odcinek"},{"$f":"'Koszty produkcji - szczegółowy'!F294","v":0},{"$f":"'Koszty produkcji - szczegółowy'!G294","v":1},{"$f":"'Koszty produkcji - szczegółowy'!H294","v":0},{"$f":"'Koszty produkcji - szczegółowy'!I294","v":0},{"$f":"'Koszty produkcji - szczegółowy'!J294","v":"Producent zewnętrzny - zasoby własne oraz spółek powiązanych"},null,null,null,null,null,null,0,0]
[null,null,{"$f":"'Koszty produkcji - szczegółowy'!C295","v":"Obsługa strony internetowej"},{"$f":"'Koszty produkcji - szczegółowy'!D295","v":0},{"$f":"'Koszty produkcji - szczegółowy'!E295","v":"Miesiąc"},{"$f":"'Koszty produkcji - szczegółowy'!F295","v":0},{"$f":"'Koszty produkcji - szczegółowy'!G295","v":1},{"$f":"'Koszty produkcji - szczegółowy'!H295","v":0},{"$f":"'Koszty produkcji - szczegółowy'!I295","v":0},{"$f":"'Koszty produkcji - szczegółowy'!J295","v":"Producent zewnętrzny - zasoby własne oraz spółek powiązanych"},null,null,null,null,null,null,0,0]
[null,null,{"$f":"'Koszty produkcji - szczegółowy'!C296","v":"Przygotowanie making off"},{"$f":"'Koszty produkcji - szczegółowy'!D296","v":0},{"$f":"'Koszty produkcji - szczegółowy'!E296","v":"Ryczałt"},{"$f":"'Koszty produkcji - szczegółowy'!F296","v":0},{"$f":"'Koszty produkcji - szczegółowy'!G296","v":1},{"$f":"'Koszty produkcji - szczegółowy'!H296","v":0},{"$f":"'Koszty produkcji - szczegółowy'!I296","v":0},{"$f":"'Koszty produkcji - szczegółowy'!J296","v":"Producent zewnętrzny - zasoby własne oraz spółek powiązanych"},null,null,null,null,null,null,0,0]
[null,null,{"$f":"'Koszty produkcji - szczegółowy'!C297","v":"Ogłoszenia prasowe - promocja"},{"$f":"'Koszty produkcji - szczegółowy'!D297","v":0},{"$f":"'Koszty produkcji - szczegółowy'!E297","v":"Ryczałt"},{"$f":"'Koszty produkcji - szczegółowy'!F297","v":0},{"$f":"'Koszty produkcji - szczegółowy'!G297","v":1},{"$f":"'Koszty produkcji - szczegółowy'!H297","v":0},{"$f":"'Koszty produkcji - szczegółowy'!I297","v":0},{"$f":"'Koszty produkcji - szczegółowy'!J297","v":"Producent zewnętrzny - zasoby własne oraz spółek powiązanych"},null,null,null,null,null,null,0,0]
[null,null,{"$f":"'Koszty produkcji - szczegółowy'!C298","v":0},{"$f":"'Koszty produkcji - szczegółowy'!D298","v":0},{"$f":"'Koszty produkcji - szczegółowy'!E298","v":0},{"$f":"'Koszty produkcji - szczegółowy'!F298","v":0},{"$f":"'Koszty produkcji - szczegółowy'!G298","v":1},{"$f":"'Koszty produkcji - szczegółowy'!H298","v":0},{"$f":"'Koszty produkcji - szczegółowy'!I298","v":0},{"$f":"'Koszty produkcji - szczegółowy'!J298","v":"Producent zewnętrzny - zasoby własne oraz spółek powiązanych"},null,null,null,null,null,null,0,0]
["22.","Inne zlecenia",null,null,null,null,null,null,{"$f":"SUM(I300:I305)","v":0},null,null,null,null,null,null,null,0,0]
[null,null,{"$f":"'Koszty produkcji - szczegółowy'!C300","v":"Wyszczególnienie (proszę dokonać wyboru obok)"},{"$f":"'Koszty produkcji - szczegółowy'!D300","v":0},{"$f":"'Koszty produkcji - szczegółowy'!E300","v":"Godz."},{"$f":"'Koszty produkcji - szczegółowy'!F300","v":0},{"$f":"'Koszty produkcji - szczegółowy'!G300","v":1},{"$f":"'Koszty produkcji - szczegółowy'!H300","v":0},{"$f":"'Koszty produkcji - szczegółowy'!I300","v":0},{"$f":"'Koszty produkcji - szczegółowy'!J300","v":"Producent zewnętrzny - zasoby własne oraz spółek powiązanych"},null,null,null,null,null,null,0,0]
[null,null,{"$f":"'Koszty produkcji - szczegółowy'!C301","v":"Wyszczególnienie (proszę dokonać wyboru obok)"},{"$f":"'Koszty produkcji - szczegółowy'!D301","v":0},{"$f":"'Koszty produkcji - szczegółowy'!E301","v":"Dni"},{"$f":"'Koszty produkcji - szczegółowy'!F301","v":0},{"$f":"'Koszty produkcji - szczegółowy'!G301","v":1},{"$f":"'Koszty produkcji - szczegółowy'!H301","v":0},{"$f":"'Koszty produkcji - szczegółowy'!I301","v":0},{"$f":"'Koszty produkcji - szczegółowy'!J301","v":"Producent zewnętrzny - zasoby własne oraz spółek powiązanych"},null,null,null,null,null,null,0,0]
[null,null,{"$f":"'Koszty produkcji - szczegółowy'!C302","v":0},{"$f":"'Koszty produkcji - szczegółowy'!D302","v":0},{"$f":"'Koszty produkcji - szczegółowy'!E302","v":0},{"$f":"'Koszty produkcji - szczegółowy'!F302","v":0},{"$f":"'Koszty produkcji - szczegółowy'!G302","v":1},{"$f":"'Koszty produkcji - szczegółowy'!H302","v":0},{"$f":"'Koszty produkcji - szczegółowy'!I302","v":0},{"$f":"'Koszty produkcji - szczegółowy'!J302","v":"Producent zewnętrzny - zasoby własne oraz spółek powiązanych"},null,null,null,null,null,null,0,0]
[null,null,{"$f":"'Koszty produkcji - szczegółowy'!C303","v":0},{"$f":"'Koszty produkcji - szczegółowy'!D303","v":0},{"$f":"'Koszty produkcji - szczegółowy'!E303","v":0},{"$f":"'Koszty produkcji - szczegółowy'!F303","v":0},{"$f":"'Koszty produkcji - szczegółowy'!G303","v":1},{"$f":"'Koszty produkcji - szczegółowy'!H303","v":0},{"$f":"'Koszty produkcji - szczegółowy'!I303","v":0},{"$f":"'Koszty produkcji - szczegółowy'!J303","v":"Producent zewnętrzny - zasoby własne oraz spółek powiązanych"},null,null,null,null,null,null,0,0]
[null,null,{"$f":"'Koszty produkcji - szczegółowy'!C304","v":0},{"$f":"'Koszty produkcji - szczegółowy'!D304","v":0},{"$f":"'Koszty produkcji - szczegółowy'!E304","v":0},{"$f":"'Koszty produkcji - szczegółowy'!F304","v":0},{"$f":"'Koszty produkcji - szczegółowy'!G304","v":1},{"$f":"'Koszty produkcji - szczegółowy'!H304","v":0},{"$f":"'Koszty produkcji - szczegółowy'!I304","v":0},{"$f":"'Koszty produkcji - szczegółowy'!J304","v":"Producent zewnętrzny - zasoby własne oraz spółek powiązanych"},null,null,null,null,null,null,0,0]
[null,null,{"$f":"'Koszty produkcji - szczegółowy'!C305","v":0},{"$f":"'Koszty produkcji - szczegółowy'!D305","v":0},{"$f":"'Koszty produkcji - szczegółowy'!E305","v":0},{"$f":"'Koszty produkcji - szczegółowy'!F305","v":0},{"$f":"'Koszty produkcji - szczegółowy'!G305","v":1},{"$f":"'Koszty produkcji - szczegółowy'!H305","v":0},{"$f":"'Koszty produkcji - szczegółowy'!I305","v":0},{"$f":"'Koszty produkcji - szczegółowy'!J305","v":"Producent zewnętrzny - zasoby własne oraz spółek powiązanych"},null,null,null,null,null,null,0,0]
[null,null,null,null,null,null,null,null,null,null,null,null,null,null,null,null,{"$f":"SUM(Q3:Q305)","v":0},{"$f":"SUM(R3:R305)","v":0}]
[null,"Suma kosztów","Producent zasoby własne",null,null,null,null,null,{"$f":"Q306","v":0}]
[null,null,"Koszty zewnętrzne",null,null,null,null,null,{"$f":"R306","v":0}]
[null,null,"TVP S.A. - Zasoby własne",null,null,null,null,null,{"$f":"SUMIFS($I$2:$I$305,$K$2:$K$305,\"TVP S.A. - Zasoby własne\")","v":0}]
[null,null,"TVP S.A. - Koszty zewnętrzne ",null,null,null,null,null,{"$f":"SUMIFS($I$2:$I$305,$K$2:$K$305,\"TVP S.A. - Koszty zewnętrzne \")","v":0}]
[]
[null,null,"Pracownik",null,null,null,null,null,{"$f":"SUMIFS($I$2:$I$305,$L$2:$L$305,\"Pracownik\")","v":0}]
[null,null,"Współpracownik",null,null,null,null,null,{"$f":"SUMIFS($I$2:$I$305,$L$2:$L$305,\"Współpracownik\")","v":0}]
[]
[null,null,null,null,null,null,"ZUS",0.18279999999999999,{"$f":"I312*$H$315","v":0}]
[null,null,"Pochodne od wynagrodzeń",null,null,"Średnie od wynagrodzeń pracowniczych",null,0.125,{"$f":"I312*$H$316","v":0}]
[null,null,null,null,null,null,null,null,{"$f":"SUM(I315:I316)","v":0}]
[]
[null,null,"Podatek - 32,32%",null,null,null,{"$f":"SUMIFS(I3:I305,M3:M305,\"Tak\")","v":0},null,{"$f":"(G319*0.23)*0.3232","v":0}]
[]
[null,null,"RAZEM",null,null,null,null,null,{"$f":"SUM(I307,I308,I309,I310,I317,I319)","v":0}]

{"sheet":"Podsumowanie koszt - zmiany TVP","index":8,"n_rows":88,"n_cols":8,"rows_kept":88,"cut":false,"hidden":true,"merged":[[70,1,70,2],[6,7,11,7],[7,2,7,3],[8,2,8,3],[6,2,6,3],[1,2,1,3],[2,2,2,3],[3,2,3,3],[4,2,4,3],[5,2,5,3]]}
[]
[null,"Tytuł",{"$f":"'Podsumowanie kosztów'!C2:D2","v":0}]
[null,"Data wprowadzania",{"$f":"'Podsumowanie kosztów'!C4","v":"00:00:00"}]
[null,"Liczba odcinków",{"$f":"'Podsumowanie kosztów'!C6:D6","v":1}]
[null,"Czas emisji",{"$f":"'Podsumowanie kosztów'!C7:D7","v":0}]
[null,"Format obrazu i dźwięku",{"$f":"'Podsumowanie kosztów'!C8:D8","v":0}]
[null,"Nośnik",{"$f":"'Podsumowanie kosztów'!C9:D9","v":0},null,null,null,null,"Koszty uruchomienia nie wliczają się do sumy kosztów produkcji wykazanych poniżej."]
[null,"Liczba dni zdjęciowych",{"$f":"'Podsumowanie kosztów'!C10:D10","v":0}]
[null,"Kontrahent",{"$f":"'Podsumowanie kosztów'!C11:D11","v":0}]
[]
[null,"L.p.","Kategoria wydatków","Budżet"]
[null,"0.","Development",{"$f":"'Podsumowanie kosztów'!D14","v":0}]
[null,"0.1","Materiały",{"$f":"'Podsumowanie kosztów'!D15","v":{"$error":"#REF!"}}]
[null,"0.2","Honoraria",{"$f":"'Podsumowanie kosztów'!D16","v":0}]
[null,"0.3","Hotele, delegacje",{"$f":"'Podsumowanie kosztów'!D18","v":0}]
[null,"0.4","Transport",{"$f":"'Podsumowanie kosztów'!D19","v":0}]
[null,null,"Koszty uruchomienia",{"$f":"'Podsumowanie kosztów'!D20","v":0}]
[null,"1.","Prace literackie",{"$f":"'Kosztorys szczeg. - zmiany TVP'!I2","v":0}]
[null,"2.","Pion reżyserski",{"$f":"'Kosztorys szczeg. - zmiany TVP'!I11","v":0}]
[null,"3.","Pion produkcji",{"$f":"'Kosztorys szczeg. - zmiany TVP'!I21","v":0}]
[null,"4.","Pion operatorski",{"$f":"'Kosztorys szczeg. - zmiany TVP'!I36","v":0}]
[null,"5.","Pion scenografii ",{"$f":"'Kosztorys szczeg. - zmiany TVP'!I52","v":0}]
[null,"6.","Pion kostiumograficzny",{"$f":"'Kosztorys szczeg. - zmiany TVP'!I68","v":0}]
[null,"7.","Pion charakteryzatorski",{"$f":"'Kosztorys szczeg. - zmiany TVP'!I77","v":0}]
[null,"8.","Pion dźwiękowy",{"$f":"'Kosztorys szczeg. - zmiany TVP'!I87","v":0}]
[null,"9.","Wykonawcy i odtwórcy",{"$f":"'Kosztorys szczeg. - zmiany TVP'!I95","v":0}]
[null,"10.","Konsultacje",{"$f":"'Kosztorys szczeg. - zmiany TVP'!I110","v":0}]
[null,"11.","Muzyka",{"$f":"'Kosztorys szczeg. - zmiany TVP'!I120","v":0}]
[null,"12.","Technika zdjęciowa",{"$f":"'Kosztorys szczeg. - zmiany TVP'!I130","v":0}]
[null,"13.","Scenografia i rekwizyty",{"$f":"'Kosztorys szczeg. - zmiany TVP'!I154","v":0}]
[null,"14.","Kostiumy materiały",{"$f":"'Kosztorys szczeg. - zmiany TVP'!I174","v":0}]
[null,"15.","Charakteryzacja materiały ",{"$f":"'Kosztorys szczeg. - zmiany TVP'!I183","v":0}]
[null,"16.","Postprodukcja - montaż i udźwiekowienie",{"$f":"'Kosztorys szczeg. - zmiany TVP'!I190","v":0}]
[null,"17.","Usługi obce ",{"$f":"'Kosztorys szczeg. - zmiany TVP'!I212","v":0}]
[null,"18.","Koszty administracyjno - biurowe",{"$f":"'Kosztorys szczeg. - zmiany TVP'!I230","v":0}]
[null,"19.","Transport",{"$f":"'Kosztorys szczeg. - zmiany TVP'!I239","v":0}]
[null,"19a.","Okres przygotowawczy",{"$f":"'Kosztorys szczeg. - zmiany TVP'!I240","v":0}]
[null,"19b.","Okres zdjęciowy",{"$f":"'Kosztorys szczeg. - zmiany TVP'!I248","v":0}]
[null,"19c.","Okres likwidacji",{"$f":"'Kosztorys szczeg. - zmiany TVP'!I270","v":0}]
[null,"20.","Delegacje,Hotele",{"$f":"'Kosztorys szczeg. - zmiany TVP'!I277","v":0}]
[null,"20a.","Okres przygotowawczy",{"$f":"'Kosztorys szczeg. - zmiany TVP'!I278","v":0}]
[null,"20b.","Okres zdjęciowy - ekipa",{"$f":"'Kosztorys szczeg. - zmiany TVP'!I282","v":0}]
[null,"20c.","Okres zdjęciowy-aktorzy",{"$f":"'Kosztorys szczeg. - zmiany TVP'!I286","v":0}]
[null,"20d.","Ryczałty samochodowe",{"$f":"'Kosztorys szczeg. - zmiany TVP'!I290","v":0}]
[null,"21.","Promocja",{"$f":"'Kosztorys szczeg. - zmiany TVP'!I293","v":0}]
[null,"22.","Inne zlecenia",{"$f":"'Kosztorys szczeg. - zmiany TVP'!I299","v":0}]
[null,null,"W UDZIALE:"]
[null,null,{"$f":"'Kosztorys szczeg. - zmiany TVP'!C307","v":"Producent zasoby własne"},{"$f":"'Kosztorys szczeg. - zmiany TVP'!I307","v":0}]
[null,null,{"$f":"'Kosztorys szczeg. - zmiany TVP'!C308","v":"Koszty zewnętrzne"},{"$f":"'Kosztorys szczeg. - zmiany TVP'!I308","v":0}]
[null,null,"Narzut X% - producent zewnętrzny",{"$f":"'Podsumowanie kosztów'!D53","v":0}]
[null,null,"Narzut ",{"$f":"(D48+D49)*D50","v":0}]
[null,null,"Razem koszty",{"$f":"D51+D49+D48","v":0}]
[null,null,"Zysk X%- producent zewnętrzny",{"$f":"'Podsumowanie kosztów'!D58","v":0}]
[null,null,"Zysk",{"$f":"D52*D53","v":0}]
[null,null,"RAZEM KOSZTY BEZPOŚREDNIE - producent zewnętrzny",{"$f":"D54+D52","v":0}]
[null,null,{"$f":"'Kosztorys szczeg. - zmiany TVP'!C309","v":"TVP S.A. - Zasoby własne"},{"$f":"'Kosztorys szczeg. - zmiany TVP'!I309","v":0}]
[null,null,{"$f":"'Kosztorys szczeg. - zmiany TVP'!C310","v":"TVP S.A. - Koszty zewnętrzne "},{"$f":"'Kosztorys szczeg. - zmiany TVP'!I310","v":0}]
[null,null,{"$f":"'Kosztorys szczeg. - zmiany TVP'!C316","v":"Pochodne od wynagrodzeń"},{"$f":"'Kosztorys szczeg. - zmiany TVP'!I317","v":0}]
[null,null,"Podatek - 32,32%",{"$f":"'Kosztorys szczeg. - zmiany TVP'!I319","v":0}]
[null,"A","RAZEM KOSZTY BEZPOŚREDNIE ",{"$f":"SUM(D55:D59)","v":0}]
[null,null,"Średni koszt bezpośredni 1 odcinka",{"$f":"D60/C4","v":0}]
[null,null,"Koszty pośrednie jednostki produkcyjnej X%",0]
[null,"B","Koszty pośrednie jednostki produkcyjnej",{"$f":"D60*D62","v":0}]
[]
[null,"C=A+B","Razem koszty netto",{"$f":"D63+D60","v":0}]
[]
[null,"D","Podatek VAT 23%",{"$f":"D65*0.23","v":0}]
[]
[null,"E= D+C","Koszt brutto",{"$f":"D65+D67","v":0}]
[]
[null,"Koszty uruchomienia wliczone w koszty bezpośrednie - tylko producent zewnętrzny",null,{"$f":"D48+D49+D17","v":0}]
[null,null,"Zysk X%- producent zewnętrzny",{"$f":"'Podsumowanie kosztów'!D58","v":0}]
[null,null,"Zysk",{"$f":"D71*D72","v":0}]
[null,null,"RAZEM KOSZTY - producent zewnętrzny",{"$f":"D73+D71","v":0}]
[null,null,{"$f":"'Kosztorys szczeg. - zmiany TVP'!C309","v":"TVP S.A. - Zasoby własne"},{"$f":"'Kosztorys szczeg. - zmiany TVP'!I309","v":0}]
[null,null,{"$f":"'Kosztorys szczeg. - zmiany TVP'!C310","v":"TVP S.A. - Koszty zewnętrzne "},{"$f":"'Kosztorys szczeg. - zmiany TVP'!I310","v":0}]
[null,null,{"$f":"'Kosztorys szczeg. - zmiany TVP'!C316","v":"Pochodne od wynagrodzeń"},{"$f":"'Kosztorys szczeg. - zmiany TVP'!I317","v":0}]
[null,null,"Podatek - 32,32%",{"$f":"'Kosztorys szczeg. - zmiany TVP'!I319","v":0}]
[null,"A","RAZEM KOSZTY BEZPOŚREDNIE ",{"$f":"SUM(D74:D78)","v":0}]
[null,null,"Średni koszt bezpośredni 1 odcinka",{"$f":"D79/C4","v":0}]
[null,null,"Koszty pośrednie jednostki produkcyjnej X%",0]
[null,"B","Koszty pośrednie jednostki produkcyjnej",{"$f":"D79*D81","v":0}]
[]
[null,"C=A+B","Razem koszty netto",{"$f":"D79+D82","v":0}]
[]
[null,"D","Podatek VAT 23%",{"$f":"D84*0.23","v":0}]
[]
[null,"E= D+C","Koszt brutto",{"$f":"D84+D86","v":0}]

{"sheet":"Obsada aktorska","index":9,"n_rows":260,"n_cols":7,"rows_kept":260,"cut":false,"hidden":false,"merged":[[1,1,1,4],[3,2,3,4]]}
[]
[null,"OBSADA AKTORSKA SERIALU (I i II-go PLANOWI)"]
[]
[null,"Tytuł :",{"$f":"'Podsumowanie kosztów'!$C$2","v":0}]
[]
["Lp.","Rola","Imię i nazwisko aktora","Ilość dni zdjęciowych","Stawka jednostkowa za dzień zdjęciowy","Suma","Typ"]
["1.",null,null,null,null,{"$f":"D7*E7","v":0}]
["2.",null,null,null,null,{"$f":"D8*E8","v":0}]
["3.",null,null,null,null,0]
["4.",null,null,null,null,0]
["5.",null,null,null,null,0]
["6.",null,null,null,null,0]
["7.",null,null,null,null,0]
["8.",null,null,null,null,0]
["9.",null,null,null,null,0]
["10.",null,null,null,null,0]
["11.",null,null,null,null,0]
["12.",null,null,null,null,0]
["13.",null,null,null,null,0]
["14.",null,null,null,null,0]
["15.",null,null,null,null,0]
["16.",null,null,null,null,0]
["17.",null,null,null,null,0]
["18.",null,null,null,null,0]
["19.",null,null,null,null,0]
["20.",null,null,null,null,0]
["21.",null,null,null,null,0]
["22.",null,null,null,null,0]
["23.",null,null,null,null,0]
["24.",null,null,null,null,0]
["25.",null,null,null,null,0]
["26.",null,null,null,null,0]
["27.",null,null,null,null,0]
["28.",null,null,null,null,0]
["29.",null,null,null,null,0]
["30.",null,null,null,null,0]
["31.",null,null,null,null,0]
["32.",null,null,null,null,0]
["33.",null,null,null,null,0]
["34.",null,null,null,null,0]
["35.",null,null,null,null,0]
["36.",null,null,null,null,0]
["37.",null,null,null,null,0]
["38.",null,null,null,null,0]
["39.",null,null,null,null,0]
["40.",null,null,null,null,0]
["41.",null,null,null,null,0]
["42.",null,null,null,null,0]
["43.",null,null,null,null,0]
["44.",null,null,null,null,0]
["45.",null,null,null,null,0]
["46.",null,null,null,null,0]
["47.",null,null,null,null,0]
["48.",null,null,null,null,0]
["49.",null,null,null,null,0]
["50.",null,null,null,null,0]
["51.",null,null,null,null,0]
["52.",null,null,null,null,0]
["53.",null,null,null,null,0]
["54.",null,null,null,null,0]
["55.",null,null,null,null,0]
["56.",null,null,null,null,0]
["57.",null,null,null,null,0]
["58.",null,null,null,null,0]
["59.",null,null,null,null,0]
["60.",null,null,null,null,0]
["61.",null,null,null,null,0]
["62.",null,null,null,null,0]
["63.",null,null,null,null,0]
["64.",null,null,null,null,0]
["65.",null,null,null,null,0]
["66.",null,null,null,null,{"$f":"D72*E72","v":0}]
["67.",null,null,null,null,0]
["68.",null,null,null,null,0]
["69.",null,null,null,null,0]
["70.",null,null,null,null,0]
["71.",null,null,null,null,0]
["72.",null,null,null,null,0]
["73.",null,null,null,null,0]
["74.",null,null,null,null,0]
["75.",null,null,null,null,0]
["76.",null,null,null,null,0]
["77.",null,null,null,null,0]
["78.",null,null,null,null,0]
["79.",null,null,null,null,0]
["80.",null,null,null,null,0]
["81.",null,null,null,null,0]
["82.",null,null,null,null,0]
["83.",null,null,null,null,0]
["84.",null,null,null,null,0]
["85.",null,null,null,null,0]
["86.",null,null,null,null,0]
["87.",null,null,null,null,0]
["88.",null,null,null,null,0]
["89.",null,null,null,null,0]
["90.",null,null,null,null,0]
["91.",null,null,null,null,0]
["92.",null,null,null,null,0]
["93.",null,null,null,null,0]
["94.",null,null,null,null,0]
["95.",null,null,null,null,0]
["96.",null,null,null,null,0]
["97.",null,null,null,null,0]
["98.",null,null,null,null,0]
["99.",null,null,null,null,0]
["100.",null,null,null,null,0]
["101.",null,null,null,null,0]
["102.",null,null,null,null,0]
["103.",null,null,null,null,0]
["104.",null,null,null,null,0]
["105.",null,null,null,null,0]
["106.",null,null,null,null,0]
["107.",null,null,null,null,0]
["108.",null,null,null,null,0]
["109.",null,null,null,null,0]
["110.",null,null,null,null,0]
["111.",null,null,null,null,0]
["112.",null,null,null,null,0]
["113.",null,null,null,null,0]
["114.",null,null,null,null,0]
["115.",null,null,null,null,0]
["116.",null,null,null,null,0]
["117.",null,null,null,null,0]
["118.",null,null,null,null,0]
["119.",null,null,null,null,0]
["120.",null,null,null,null,0]
["121.",null,null,null,null,0]
["122.",null,null,null,null,0]
["123.",null,null,null,null,0]
["124.",null,null,null,null,0]
["125.",null,null,null,null,0]
["126.",null,null,null,null,0]
["127.",null,null,null,null,0]
["128.",null,null,null,null,0]
["129.",null,null,null,null,0]
["130.",null,null,null,null,{"$f":"D136*E136","v":0}]
["131.",null,null,null,null,0]
["132.",null,null,null,null,0]
["133.",null,null,null,null,0]
["134.",null,null,null,null,0]
["135.",null,null,null,null,0]
["136.",null,null,null,null,0]
["137.",null,null,null,null,0]
["138.",null,null,null,null,0]
["139.",null,null,null,null,0]
["140.",null,null,null,null,0]
["141.",null,null,null,null,0]
["142.",null,null,null,null,0]
["143.",null,null,null,null,0]
["144.",null,null,null,null,0]
["145.",null,null,null,null,0]
["146.",null,null,null,null,0]
["147.",null,null,null,null,0]
["148.",null,null,null,null,0]
["149.",null,null,null,null,0]
["150.",null,null,null,null,0]
["151.",null,null,null,null,0]
["152.",null,null,null,null,0]
["153.",null,null,null,null,0]
["154.",null,null,null,null,0]
["155.",null,null,null,null,0]
["156.",null,null,null,null,0]
["157.",null,null,null,null,0]
["158.",null,null,null,null,0]
["159.",null,null,null,null,0]
["160.",null,null,null,null,0]
["161.",null,null,null,null,0]
["162.",null,null,null,null,0]
["163.",null,null,null,null,0]
["164.",null,null,null,null,0]
["165.",null,null,null,null,0]
["166.",null,null,null,null,0]
["167.",null,null,null,null,0]
["168.",null,null,null,null,0]
["169.",null,null,null,null,0]
["170.",null,null,null,null,0]
["171.",null,null,null,null,0]
["172.",null,null,null,null,0]
["173.",null,null,null,null,0]
["174.",null,null,null,null,0]
["175.",null,null,null,null,0]
["176.",null,null,null,null,0]
["177.",null,null,null,null,0]
["178.",null,null,null,null,0]
["179.",null,null,null,null,0]
["180.",null,null,null,null,0]
["181.",null,null,null,null,0]
["182.",null,null,null,null,0]
["183.",null,null,null,null,0]
["184.",null,null,null,null,0]
["185.",null,null,null,null,0]
["186.",null,null,null,null,0]
["187.",null,null,null,null,0]
["188.",null,null,null,null,0]
["189.",null,null,null,null,0]
["190.",null,null,null,null,0]
["191.",null,null,null,null,0]
["192.",null,null,null,null,0]
["193.",null,null,null,null,0]
["194.",null,null,null,null,{"$f":"D200*E200","v":0}]
["195.",null,null,null,null,0]
["196.",null,null,null,null,0]
["197.",null,null,null,null,0]
["198.",null,null,null,null,0]
["199.",null,null,null,null,0]
["200.",null,null,null,null,0]
["201.",null,null,null,null,0]
["202.",null,null,null,null,0]
["203.",null,null,null,null,0]
["204.",null,null,null,null,0]
["205.",null,null,null,null,0]
["206.",null,null,null,null,0]
["207.",null,null,null,null,0]
["208.",null,null,null,null,0]
["209.",null,null,null,null,0]
["210.",null,null,null,null,0]
["211.",null,null,null,null,0]
["212.",null,null,null,null,0]
["213.",null,null,null,null,0]
["214.",null,null,null,null,0]
["215.",null,null,null,null,0]
["216.",null,null,null,null,0]
["217.",null,null,null,null,0]
["218.",null,null,null,null,0]
["219.",null,null,null,null,0]
["220.",null,null,null,null,0]
["221.",null,null,null,null,0]
["222.",null,null,null,null,0]
["223.",null,null,null,null,0]
["224.",null,null,null,null,0]
["225.",null,null,null,null,0]
["226.",null,null,null,null,0]
["227.",null,null,null,null,0]
["228.",null,null,null,null,0]
["229.",null,null,null,null,0]
["230.",null,null,null,null,0]
["231.",null,null,null,null,0]
["232.",null,null,null,null,0]
["233.",null,null,null,null,0]
["234.",null,null,null,null,0]
["235.",null,null,null,null,0]
["236.",null,null,null,null,0]
["237.",null,null,null,null,0]
["238.",null,null,null,null,0]
["239.",null,null,null,null,0]
["240.",null,null,null,null,0]
["241.",null,null,null,null,0]
["242.",null,null,null,null,0]
["243.",null,null,null,null,0]
["244.",null,null,null,null,0]
["245.",null,null,null,null,0]
["246.",null,null,null,null,0]
["247.",null,null,null,null,0]
["248.",null,null,null,null,0]
["249.",null,null,null,null,{"$f":"D255*E255","v":0}]
["250.",null,null,null,null,0]
[null,null,null,null,"Suma",{"$f":"SUM(F7:F256)","v":0}]
[]
[null,null,null,null,"Główne",{"$f":"SUMIFS($F$7:$F$256,$G$7:$G$256,\"główne\")","v":0}]
[null,null,null,null,"Drugoplanowe",{"$f":"SUMIFS($F$7:$F$256,$G$7:$G$256,\"drugoplanowe\")","v":0}]

{"sheet":"Wynajem obiektów zdjęciowych","index":10,"n_rows":128,"n_cols":5,"rows_kept":128,"cut":false,"hidden":false,"merged":[[1,1,1,4],[3,2,3,4]]}
[]
[null,"Wynajem obiektów zdjęciowych"]
[]
[null,"Tytuł :",{"$f":"'Podsumowanie kosztów'!C2","v":0}]
[]
["Lp.","Nazwa obiektu","Ilość dni","Stawka","Suma"]
["1.",null,null,null,{"$f":"C7*D7","v":0}]
["2.",null,null,null,{"$f":"C8*D8","v":0}]
["3.",null,null,null,0]
["4.",null,null,null,0]
["5.",null,null,null,0]
["6.",null,null,null,0]
["7.",null,null,null,0]
["8.",null,null,null,0]
["9.",null,null,null,0]
["10.",null,null,null,0]
["11.",null,null,null,0]
["12.",null,null,null,0]
["13.",null,null,null,0]
["14.",null,null,null,0]
["15.",null,null,null,0]
["16.",null,null,null,0]
["17.",null,null,null,0]
["18.",null,null,null,0]
["19.",null,null,null,0]
["20.",null,null,null,0]
["21.",null,null,null,0]
["22.",null,null,null,0]
["23.",null,null,null,0]
["24.",null,null,null,0]
["25.",null,null,null,0]
["26.",null,null,null,0]
["27.",null,null,null,0]
["28.",null,null,null,0]
["29.",null,null,null,0]
["30.",null,null,null,0]
["31.",null,null,null,0]
["32.",null,null,null,0]
["33.",null,null,null,0]
["34.",null,null,null,0]
["35.",null,null,null,0]
["36.",null,null,null,0]
["37.",null,null,null,0]
["38.",null,null,null,0]
["39.",null,null,null,0]
["40.",null,null,null,0]
["41.",null,null,null,0]
["42.",null,null,null,0]
["43.",null,null,null,0]
["44.",null,null,null,0]
["45.",null,null,null,0]
["46.",null,null,null,0]
["47.",null,null,null,0]
["48.",null,null,null,0]
["49.",null,null,null,0]
["50.",null,null,null,0]
["51.",null,null,null,0]
["52.",null,null,null,0]
["53.",null,null,null,0]
["54.",null,null,null,0]
["55.",null,null,null,0]
["56.",null,null,null,0]
["57.",null,null,null,0]
["58.",null,null,null,0]
["59.",null,null,null,0]
["60.",null,null,null,0]
["61.",null,null,null,0]
["62.",null,null,null,0]
["63.",null,null,null,0]
["64.",null,null,null,0]
["65.",null,null,null,0]
["66.",null,null,null,{"$f":"C72*D72","v":0}]
["67.",null,null,null,0]
["68.",null,null,null,0]
["69.",null,null,null,0]
["70.",null,null,null,0]
["71.",null,null,null,0]
["72.",null,null,null,0]
["73.",null,null,null,0]
["74.",null,null,null,0]
["75.",null,null,null,0]
["76.",null,null,null,0]
["77.",null,null,null,0]
["78.",null,null,null,0]
["79.",null,null,null,0]
["80.",null,null,null,0]
["81.",null,null,null,0]
["82.",null,null,null,0]
["83.",null,null,null,0]
["84.",null,null,null,0]
["85.",null,null,null,0]
["86.",null,null,null,0]
["87.",null,null,null,0]
["88.",null,null,null,0]
["89.",null,null,null,0]
["90.",null,null,null,0]
["91.",null,null,null,0]
["92.",null,null,null,0]
["93.",null,null,null,0]
["94.",null,null,null,0]
["95.",null,null,null,0]
["96.",null,null,null,0]
["97.",null,null,null,0]
["98.",null,null,null,0]
["99.",null,null,null,0]
["100.",null,null,null,0]
["101.",null,null,null,0]
["102.",null,null,null,0]
["103.",null,null,null,0]
["104.",null,null,null,0]
["105.",null,null,null,0]
["106.",null,null,null,0]
["107.",null,null,null,0]
["108.",null,null,null,0]
["109.",null,null,null,0]
["110.",null,null,null,0]
["111.",null,null,null,0]
["112.",null,null,null,0]
["113.",null,null,null,0]
["114.",null,null,null,0]
["115.",null,null,null,0]
["116.",null,null,null,0]
["117.",null,null,null,0]
["118.",null,null,null,0]
["119.",null,null,null,0]
["120.",null,null,null,{"$f":"C126*D126","v":0}]
[]
[null,null,null,"Suma",{"$f":"SUM(E7:E126)","v":0}]

{"sheet":"Budowa dekoracji","index":11,"n_rows":210,"n_cols":6,"rows_kept":210,"cut":false,"hidden":false,"merged":[[1,1,1,3],[3,2,3,3],[108,0,108,3],[6,1,6,3],[4,5,5,11]]}
[]
[null,"Budowa dekoracji ( robocizna i materiały)"]
[]
[null,"Tytuł :",{"$f":"'Podsumowanie kosztów'!C2","v":0}]
[null,null,null,null,null,"W wierszach od 8 do 107 - informacje dotyczące kosztów uruchomienia \nW wierszach od 110 do 209 - informacje dotyczące kosztów produkcji"]
["Lp.","Obiekt","Robocizna (zł)","Materiały (zł)","Suma (zł)"]
[null,"Koszty uruchomienia",null,null,1]
["1.",null,null,null,{"$f":"C8+D8","v":0}]
["2.",null,null,null,{"$f":"C9+D9","v":0}]
["3.",null,null,null,0]
["4.",null,null,null,0]
["5.",null,null,null,0]
["6.",null,null,null,0]
["7.",null,null,null,0]
["8.",null,null,null,0]
["9.",null,null,null,0]
["10.",null,null,null,0]
["11.",null,null,null,0]
["12.",null,null,null,0]
["13.",null,null,null,{"$f":"C20+D20","v":0}]
["14.",null,null,null,0]
["15.",null,null,null,0]
["16.",null,null,null,0]
["17.",null,null,null,0]
["18.",null,null,null,0]
["19.",null,null,null,0]
["20.",null,null,null,0]
["21.",null,null,null,0]
["22.",null,null,null,0]
["23.",null,null,null,0]
["24.",null,null,null,0]
["25.",null,null,null,0]
["26.",null,null,null,0]
["27.",null,null,null,0]
["28.",null,null,null,0]
["29.",null,null,null,0]
["30.",null,null,null,0]
["31.",null,null,null,0]
["32.",null,null,null,0]
["33.",null,null,null,0]
["34.",null,null,null,0]
["35.",null,null,null,0]
["36.",null,null,null,0]
["37.",null,null,null,0]
["38.",null,null,null,0]
["39.",null,null,null,0]
["40.",null,null,null,0]
["41.",null,null,null,0]
["42.",null,null,null,0]
["43.",null,null,null,0]
["44.",null,null,null,0]
["45.",null,null,null,0]
["46.",null,null,null,0]
["47.",null,null,null,0]
["48.",null,null,null,0]
["49.",null,null,null,0]
["50.",null,null,null,0]
["51.",null,null,null,0]
["52.",null,null,null,0]
["53.",null,null,null,0]
["54.",null,null,null,0]
["55.",null,null,null,0]
["56.",null,null,null,0]
["57.",null,null,null,0]
["58.",null,null,null,0]
["59.",null,null,null,0]
["60.",null,null,null,0]
["61.",null,null,null,0]
["62.",null,null,null,0]
["63.",null,null,null,0]
["64.",null,null,null,0]
["65.",null,null,null,0]
["66.",null,null,null,{"$f":"C73+D73","v":0}]
["67.",null,null,null,0]
["68.",null,null,null,0]
["69.",null,null,null,0]
["70.",null,null,null,0]
["71.",null,null,null,0]
["72.",null,null,null,0]
["73.",null,null,null,0]
["74.",null,null,null,0]
["75.",null,null,null,0]
["76.",null,null,null,0]
["77.",null,null,null,0]
["78.",null,null,null,0]
["79.",null,null,null,0]
["80.",null,null,null,0]
["81.",null,null,null,0]
["82.",null,null,null,0]
["83.",null,null,null,0]
["84.",null,null,null,0]
["85.",null,null,null,0]
["86.",null,null,null,0]
["87.",null,null,null,0]
["88.",null,null,null,0]
["89.",null,null,null,0]
["90.",null,null,null,0]
["91.",null,null,null,0]
["92.",null,null,null,0]
["93.",null,null,null,0]
["94.",null,null,null,0]
["95.",null,null,null,0]
["96.",null,null,null,0]
["97.",null,null,null,0]
["98.",null,null,null,0]
["99.",null,null,null,0]
["100.",null,null,null,0]
[null,null,{"$f":"SUM(C8:C107)","v":0},{"$f":"SUM(D8:D107)","v":0},{"$f":"SUM(E8:E107)","v":0}]
["Koszty produkcji - szczegółowy",null,null,null,1]
["101.",null,null,null,0]
["102.",null,null,null,0]
["103.",null,null,null,0]
["104.",null,null,null,0]
["105.",null,null,null,0]
["106.",null,null,null,0]
["107.",null,null,null,0]
["108.",null,null,null,0]
["109.",null,null,null,0]
["110.",null,null,null,0]
["111.",null,null,null,0]
["112.",null,null,null,0]
["113.",null,null,null,0]
["114.",null,null,null,0]
["115.",null,null,null,0]
["116.",null,null,null,0]
["117.",null,null,null,0]
["118.",null,null,null,0]
["119.",null,null,null,0]
["120.",null,null,null,0]
["121.",null,null,null,0]
["122.",null,null,null,0]
["123.",null,null,null,0]
["124.",null,null,null,0]
["125.",null,null,null,0]
["126.",null,null,null,0]
["127.",null,null,null,0]
["128.",null,null,null,0]
["129.",null,null,null,0]
["130.",null,null,null,{"$f":"C139+D139","v":0}]
["131.",null,null,null,0]
["132.",null,null,null,0]
["133.",null,null,null,0]
["134.",null,null,null,0]
["135.",null,null,null,0]
["136.",null,null,null,0]
["137.",null,null,null,0]
["138.",null,null,null,0]
["139.",null,null,null,0]
["140.",null,null,null,0]
["141.",null,null,null,0]
["142.",null,null,null,0]
["143.",null,null,null,0]
["144.",null,null,null,0]
["145.",null,null,null,0]
["146.",null,null,null,0]
["147.",null,null,null,0]
["148.",null,null,null,0]
["149.",null,null,null,0]
["150.",null,null,null,0]
["151.",null,null,null,0]
["152.",null,null,null,0]
["153.",null,null,null,0]
["154.",null,null,null,0]
["155.",null,null,null,0]
["156.",null,null,null,0]
["157.",null,null,null,0]
["158.",null,null,null,0]
["159.",null,null,null,0]
["160.",null,null,null,0]
["161.",null,null,null,0]
["162.",null,null,null,0]
["163.",null,null,null,0]
["164.",null,null,null,0]
["165.",null,null,null,0]
["166.",null,null,null,0]
["167.",null,null,null,0]
["168.",null,null,null,0]
["169.",null,null,null,0]
["170.",null,null,null,0]
["171.",null,null,null,0]
["172.",null,null,null,0]
["173.",null,null,null,0]
["174.",null,null,null,0]
["175.",null,null,null,0]
["176.",null,null,null,0]
["177.",null,null,null,0]
["178.",null,null,null,0]
["179.",null,null,null,0]
["180.",null,null,null,0]
["181.",null,null,null,0]
["182.",null,null,null,0]
["183.",null,null,null,0]
["184.",null,null,null,0]
["185.",null,null,null,0]
["186.",null,null,null,0]
["187.",null,null,null,0]
["188.",null,null,null,0]
["189.",null,null,null,0]
["190.",null,null,null,0]
["191.",null,null,null,0]
["192.",null,null,null,0]
["193.",null,null,null,0]
["194.",null,null,null,{"$f":"C203+D203","v":0}]
["195.",null,null,null,0]
["196.",null,null,null,{"$f":"C205+D205","v":0}]
["197.",null,null,null,0]
["198.",null,null,null,0]
["199.",null,null,null,0]
["200.",null,null,null,0]
[null,null,{"$f":"SUM(C110:C209)","v":0},{"$f":"SUM(D110:D209)","v":0},{"$f":"SUM(E110:E209)","v":0}]

{"sheet":"Raport kosztów","index":12,"n_rows":304,"n_cols":34,"rows_kept":304,"cut":false,"hidden":false,"merged":[[0,0,0,14],[1,0,1,14]]}
[{"$f":"'Podsumowanie kosztów'!C2","v":0}]
["\"Odcinki XXX - ZZZ\""]
["Lp.","Kategoria wydatków","Pozycja kosztorysowa","Imię nazwisko/ Usługodawca","Nr dokumentu księgowego","Nr umowy","Nr faktury usługodawcy","Data faktury","Opis","Jednostka","Mnożnik","Ilość ","Stawka jednostkowa","Wartość pozycji","Nr odcinka/ Dzień zdjęciowy",null,null,null,null,"I.1 Scenariusz oryginalny",null,null,null,null,null,null,"Prace literackie",null,null,null,null,null,null,"odcinek"]
[1,null,null,null,null,null,null,null,null,null,1,null,null,{"$f":"K4*L4*M4","v":0},null,null,null,null,null,"I.2 Scenariusz adaptowany",null,null,null,null,null,null,"Pion reżyserski",null,null,null,null,null,null,"dni"]
[2,null,null,null,null,null,null,null,null,null,1,null,null,{"$f":"K5*L5*M5","v":0},null,null,null,null,null,"I.3 Scenopis",null,null,null,null,null,null,"Pion produkcji",null,null,null,null,null,null,"miesiąc"]
[3,null,null,null,null,null,null,null,null,null,1,null,null,{"$f":"K6*L6*M6","v":0},null,null,null,null,null,"I.4 Dialogi",null,null,null,null,null,null,"Pion operatorski",null,null,null,null,null,null,"ryczałt"]
[4,null,null,null,null,null,null,null,null,null,1,null,null,0,null,null,null,null,null,"I.5 Tłumaczenia",null,null,null,null,null,null,"Pion scenografii ",null,null,null,null,null,null,"godz."]
[5,null,null,null,null,null,null,null,null,null,1,null,null,0,null,null,null,null,null,"I.6 Redakcja",null,null,null,null,null,null,"Pion kostiumograficzny",null,null,null,null,null,null,"sesja"]
[6,null,null,null,null,null,null,null,null,null,1,null,null,0,null,null,null,null,null,"I.7 Research",null,null,null,null,null,null,"Pion charakteryzatorski",null,null,null,null,null,null,"szt."]
[7,null,null,null,null,null,null,null,null,null,1,null,null,0,null,null,null,null,null,"I.8 Licencja",null,null,null,null,null,null,"Pion dźwiękowy",null,null,null,null,null,null,"os./dni"]
[8,null,null,null,null,null,null,null,null,null,1,null,null,0,null,null,null,null,null,"I.9 Prawa do pierwowzoru literackiego",null,null,null,null,null,null,"Wykonawcy i odtwórcy",null,null,null,null,null,null,"szt./dni"]
[9,null,null,null,null,null,null,null,null,null,1,null,null,0,null,null,null,null,null,"I.9 Reżyser",null,null,null,null,null,null,"Konsultacje"]
[10,null,null,null,null,null,null,null,null,null,1,null,null,0,null,null,null,null,null,"I.10 Operator obrazu",null,null,null,null,null,null,"Muzyka"]
[11,null,null,null,null,null,null,null,null,null,1,null,null,0,null,null,null,null,null,"I.11 Producent",null,null,null,null,null,null,"Technika zdjęciowa"]
[12,null,null,null,null,null,null,null,null,null,1,null,null,0,null,null,null,null,null,"I.12 Nadzór licencjodawcy",null,null,null,null,null,null,"Scenografia i rekwizyty"]
[13,null,null,null,null,null,null,null,null,null,1,null,null,0,null,null,null,null,null,"I.13 Kierownik produkcji",null,null,null,null,null,null,"Kostiumy materiały"]
[14,null,null,null,null,null,null,null,null,null,1,null,null,0,null,null,null,null,null,"I.14 Scenograf",null,null,null,null,null,null,"Charakteryzacja materiały "]
[15,null,null,null,null,null,null,null,null,null,1,null,null,0,null,null,null,null,null,"I.15 Dekorator wnętrz",null,null,null,null,null,null,"Postprodukcja - montaż i udźwiekowienie"]
[16,null,null,null,null,null,null,null,null,null,1,null,null,0,null,null,null,null,null,"I.16 Operator dźwięku - plan",null,null,null,null,null,null,"Usługi obce "]
[17,null,null,null,null,null,null,null,null,null,1,null,null,0,null,null,null,null,null,"I.17 Operator dźwięku - postprodukcja",null,null,null,null,null,null,"Koszty administracyjno - biurowe"]
[18,null,null,null,null,null,null,null,null,null,1,null,null,0,null,null,null,null,null,"I.18 Reżyser II unit",null,null,null,null,null,null,"Transport"]
[19,null,null,null,null,null,null,null,null,null,1,null,null,0,null,null,null,null,null,"I.19 II reżyser biuro",null,null,null,null,null,null,"Delegacje,Hotele"]
[20,null,null,null,null,null,null,null,null,null,1,null,null,0,null,null,null,null,null,"I.20 II reżyser plan",null,null,null,null,null,null,"Promocja"]
[21,null,null,null,null,null,null,null,null,null,1,null,null,0,null,null,null,null,null,"I.21 Reżyser castingu",null,null,null,null,null,null,"Inne zlecenia"]
[22,null,null,null,null,null,null,null,null,null,1,null,null,0,null,null,null,null,null,"I.22 Operator kamery (x ilość kamer)"]
[23,null,null,null,null,null,null,null,null,null,1,null,null,0,null,null,null,null,null,"I.23 Operator steadicamu"]
[24,null,null,null,null,null,null,null,null,null,1,null,null,0,null,null,null,null,null,"I.24 Operator II Unit"]
[25,null,null,null,null,null,null,null,null,null,1,null,null,0,null,null,null,null,null,"I.25 II kierownik produkcji biuro/koordynacja"]
[26,null,null,null,null,null,null,null,null,null,1,null,null,0,null,null,null,null,null,"I.26 II kierownik produkcji plan/ obiekty"]
[27,null,null,null,null,null,null,null,null,null,1,null,null,0,null,null,null,null,null,"I.27 II kierownik produkcji postprodukcja"]
[28,null,null,null,null,null,null,null,null,null,1,null,null,0,null,null,null,null,null,"I.28 II scenograf"]
[29,null,null,null,null,null,null,null,null,null,1,null,null,0,null,null,null,null,null,"I.29 Kostiumograf"]
[30,null,null,null,null,null,null,null,null,null,1,null,null,0,null,null,null,null,null,"I.30 II kostiumograf"]
[31,null,null,null,null,null,null,null,null,null,1,null,null,0,null,null,null,null,null,"I.31 Charakteryzator"]
[32,null,null,null,null,null,null,null,null,null,1,null,null,0,null,null,null,null,null,"I.32 II charakteryzator"]
[33,null,null,null,null,null,null,null,null,null,1,null,null,0,null,null,null,null,null,"I.33 Fotosista"]
[34,null,null,null,null,null,null,null,null,null,1,null,null,0,null,null,null,null,null,"I.34 Montażysta"]
[35,null,null,null,null,null,null,null,null,null,1,null,null,0,null,null,null,null,null,"I.35 Kompozytor"]
[36,null,null,null,null,null,null,null,null,null,1,null,null,0,null,null,null,null,null,"I.36 Konsultant muzyczny"]
[37,null,null,null,null,null,null,null,null,null,1,null,null,0,null,null,null,null,null,"I.37 Grafik/Plastyk"]
[38,null,null,null,null,null,null,null,null,null,1,null,null,0,null,null,null,null,null,"I.38 Asystent reżysera"]
[39,null,null,null,null,null,null,null,null,null,1,null,null,0,null,null,null,null,null,"I.39 Asystent operatora obrazu-ostrzyciel (x ilość kamer)"]
[40,null,null,null,null,null,null,null,null,null,1,null,null,0,null,null,null,null,null,"I.40 Asystent operatora obrazu -CCU"]
[41,null,null,null,null,null,null,null,null,null,1,null,null,0,null,null,null,null,null,"I.41 DIT"]
[42,null,null,null,null,null,null,null,null,null,1,null,null,0,null,null,null,null,null,"I.42 II asystent operatora obrazu (techniczny, podgląd)"]
[43,null,null,null,null,null,null,null,null,null,1,null,null,0,null,null,null,null,null,"I.43 Kierownik planu"]
[44,null,null,null,null,null,null,null,null,null,1,null,null,0,null,null,null,null,null,"I.44 Asystent kierownika produkcji"]
[45,null,null,null,null,null,null,null,null,null,1,null,null,0,null,null,null,null,null,"I.45 Sekretarka planu"]
[46,null,null,null,null,null,null,null,null,null,1,null,null,0,null,null,null,null,null,"I.46 Klapser"]
[47,null,null,null,null,null,null,null,null,null,1,null,null,0,null,null,null,null,null,"I.47 Administrator"]
[48,null,null,null,null,null,null,null,null,null,1,null,null,0,null,null,null,null,null,"I.48 Kasjer"]
[49,null,null,null,null,null,null,null,null,null,1,null,null,0,null,null,null,null,null,"I.49 Sekretarka grupy zdjęciowej"]
[50,null,null,null,null,null,null,null,null,null,1,null,null,0,null,null,null,null,null,"I.50 Spisywanie listy dialogowej"]
[51,null,null,null,null,null,null,null,null,null,1,null,null,0,null,null,null,null,null,"I.51 Asystent scenografa"]
[52,null,null,null,null,null,null,null,null,null,1,null,null,0,null,null,null,null,null,"I.52 Kierownik budowy dekoracji"]
[53,null,null,null,null,null,null,null,null,null,1,null,null,0,null,null,null,null,null,"I.53 Asystent kostiumografa/garderobiana"]
[54,null,null,null,null,null,null,null,null,null,1,null,null,0,null,null,null,null,null,"I.54 Asystent charakteryzatora"]
[55,null,null,null,null,null,null,null,null,null,1,null,null,0,null,null,null,null,null,"I.55 Stylista/wizażysta"]
[56,null,null,null,null,null,null,null,null,null,1,null,null,0,null,null,null,null,null,"I.56 Fryzjer"]
[57,null,null,null,null,null,null,null,null,null,1,null,null,0,null,null,null,null,null,"I.57 Mikrofoniarz"]
[58,null,null,null,null,null,null,null,null,null,1,null,null,0,null,null,null,null,null,"I.58 Mikrofoniarz"]
[59,null,null,null,null,null,null,null,null,null,1,null,null,0,null,null,null,null,null,"I.59 Asystent operatora dźwięku - postprodukcja"]
[60,null,null,null,null,null,null,null,null,null,1,null,null,0,null,null,null,null,null,"I.60 Wózkarz"]
[61,null,null,null,null,null,null,null,null,null,1,null,null,0,null,null,null,null,null,"I.61 Pomocnik wózkarza"]
[62,null,null,null,null,null,null,null,null,null,1,null,null,0,null,null,null,null,null,"I.62 Główny oświetlacz"]
[63,null,null,null,null,null,null,null,null,null,1,null,null,0,null,null,null,null,null,"I.63 Oświetlacz"]
[64,null,null,null,null,null,null,null,null,null,1,null,null,0,null,null,null,null,null,"I.64 Oświetlacz"]
[65,null,null,null,null,null,null,null,null,null,1,null,null,0,null,null,null,null,null,"I.65 Oświetlacz"]
[66,null,null,null,null,null,null,null,null,null,1,null,null,{"$f":"K69*L69*M69","v":0},null,null,null,null,null,"I.66 Dyżurny planu"]
[67,null,null,null,null,null,null,null,null,null,1,null,null,0,null,null,null,null,null,"I.67 Dyżurny planu"]
[68,null,null,null,null,null,null,null,null,null,1,null,null,0,null,null,null,null,null,"I.68 Rekwizytor"]
[69,null,null,null,null,null,null,null,null,null,1,null,null,0,null,null,null,null,null,"I.69 Rekwizytor - plan"]
[70,null,null,null,null,null,null,null,null,null,1,null,null,0,null,null,null,null,null,"I.70 Agregaciarz"]
[71,null,null,null,null,null,null,null,null,null,1,null,null,0,null,null,null,null,null,"I.71 Imitator dźwięku"]
[72,null,null,null,null,null,null,null,null,null,1,null,null,0,null,null,null,null,null,"I.72 Asystent montażysty"]
[73,null,null,null,null,null,null,null,null,null,1,null,null,0,null,null,null,null,null,"I.73 Pirotechnik"]
[74,null,null,null,null,null,null,null,null,null,1,null,null,0,null,null,null,null,null,"I.74 Nadgodziny"]
[75,null,null,null,null,null,null,null,null,null,1,null,null,0,null,null,null,null,null,"I.75 Oddelegowania"]
[76,null,null,null,null,null,null,null,null,null,1,null,null,0,null,null,null,null,null,"I.76 Składki ZUS"]
[77,null,null,null,null,null,null,null,null,null,1,null,null,0,null,null,null,null,null,"I.77 Role główne"]
[78,null,null,null,null,null,null,null,null,null,1,null,null,0,null,null,null,null,null,"I.78 Role drugoplanowe"]
[79,null,null,null,null,null,null,null,null,null,1,null,null,0,null,null,null,null,null,"I79 Epizody"]
[80,null,null,null,null,null,null,null,null,null,1,null,null,0,null,null,null,null,null,"I.80 Lektor"]
[81,null,null,null,null,null,null,null,null,null,1,null,null,0,null,null,null,null,null,"I.81 Statyści"]
[82,null,null,null,null,null,null,null,null,null,1,null,null,0,null,null,null,null,null,"I.82 Kaskaderzy"]
[83,null,null,null,null,null,null,null,null,null,1,null,null,0,null,null,null,null,null,"I.83 Dublerzy"]
[84,null,null,null,null,null,null,null,null,null,1,null,null,0,null,null,null,null,null,"I.84 Tancerze"]
[85,null,null,null,null,null,null,null,null,null,1,null,null,0,null,null,null,null,null,"I.85 Grupy rekonstrukcyjne"]
[86,null,null,null,null,null,null,null,null,null,1,null,null,0,null,null,null,null,null,"I.86 Konsultant ds. zwierząt"]
[87,null,null,null,null,null,null,null,null,null,1,null,null,0,null,null,null,null,null,"I.87 Konsultant ds. pojazdów"]
[88,null,null,null,null,null,null,null,null,null,1,null,null,0,null,null,null,null,null,"I.88 Konsultant FX"]
[89,null,null,null,null,null,null,null,null,null,1,null,null,0,null,null,null,null,null,"I.89 Konsultant BHP"]
[90,null,null,null,null,null,null,null,null,null,1,null,null,0,null,null,null,null,null,"I.90 Konsultant ds. kaskaderskich"]
[91,null,null,null,null,null,null,null,null,null,1,null,null,0,null,null,null,null,null,"I.91 Muzycy"]
[92,null,null,null,null,null,null,null,null,null,1,null,null,0,null,null,null,null,null,"I.92 Realizator nagrania"]
[93,null,null,null,null,null,null,null,null,null,1,null,null,0,null,null,null,null,null,"I.93 Dyrygent"]
[94,null,null,null,null,null,null,null,null,null,1,null,null,0,null,null,null,null,null,"I.94 Clearowanie praw"]
[95,null,null,null,null,null,null,null,null,null,1,null,null,0,null,null,null,null,null,"I.95 Wyszczególnienie (w tym  pomoc fizyczna, dozór obiektów, opieka nad dziećmi, sprzątanie obiektów zdjęciowych, rekultywowanie terenów zielonych itp.)"]
[96,null,null,null,null,null,null,null,null,null,1,null,null,0,null,null,null,null,null,"II.1 Wynajem obiektów zdjęciowych"]
[97,null,null,null,null,null,null,null,null,null,1,null,null,0,null,null,null,null,null,"II.2 Wynajem hali z zapleczem i mediami"]
[98,null,null,null,null,null,null,null,null,null,1,null,null,0,null,null,null,null,null,"II.3 Budowa dekoracji materiały +robocizna budowa dekoracji"]
[99,null,null,null,null,null,null,null,null,null,1,null,null,0,null,null,null,null,null,"II.4 Wypożyczenie scenografii"]
[100,null,null,null,null,null,null,null,null,null,1,null,null,0,null,null,null,null,null,"II.5 Zakup + wykonanie scenografii"]
[101,null,null,null,null,null,null,null,null,null,1,null,null,0,null,null,null,null,null,"II.6 Wynajem zwierząt, pojazdów, broni itp."]
[102,null,null,null,null,null,null,null,null,null,1,null,null,0,null,null,null,null,null,"II.7 Drobne materiały scenograficzne"]
[103,null,null,null,null,null,null,null,null,null,1,null,null,0,null,null,null,null,null,"II.8 Materiały do efektów FX -green screeny"]
[104,null,null,null,null,null,null,null,null,null,1,null,null,0,null,null,null,null,null,"II.9 Wynajem magazynu"]
[105,null,null,null,null,null,null,null,null,null,1,null,null,0,null,null,null,null,null,"II.10 Wynajem rekwizytorni "]
[106,null,null,null,null,null,null,null,null,null,1,null,null,0,null,null,null,null,null,"II.11 Wynajem charakteryzatorni"]
[107,null,null,null,null,null,null,null,null,null,1,null,null,0,null,null,null,null,null,"II.12 Wynajem luster charakteryzatorskich"]
[108,null,null,null,null,null,null,null,null,null,1,null,null,0,null,null,null,null,null,"II.13 Wynajem pracowni scenograficznej"]
[109,null,null,null,null,null,null,null,null,null,1,null,null,0,null,null,null,null,null,"II.14 Wypożyczenie"]
[110,null,null,null,null,null,null,null,null,null,1,null,null,0,null,null,null,null,null,"II.15 Zakup + wykonanie"]
[111,null,null,null,null,null,null,null,null,null,1,null,null,0,null,null,null,null,null,"II.16 Pranie"]
[112,null,null,null,null,null,null,null,null,null,1,null,null,0,null,null,null,null,null,"II.17 Materiały krawieckie"]
[113,null,null,null,null,null,null,null,null,null,1,null,null,0,null,null,null,null,null,"II.18 Materiały"]
[114,null,null,null,null,null,null,null,null,null,1,null,null,0,null,null,null,null,null,"II.19 Wynajmy - peruki"]
[115,null,null,null,null,null,null,null,null,null,1,null,null,0,null,null,null,null,null,"II.20 Materiały"]
[116,null,null,null,null,null,null,null,null,null,1,null,null,0,null,null,null,null,null,"II21 Usługi"]
[117,null,null,null,null,null,null,null,null,null,1,null,null,0,null,null,null,null,null,"III.1 Kamery"]
[118,null,null,null,null,null,null,null,null,null,1,null,null,0,null,null,null,null,null,"III.2 Optyka"]
[119,null,null,null,null,null,null,null,null,null,1,null,null,0,null,null,null,null,null,"III.3 Akcesoria do kamery (car mount itp.)"]
[120,null,null,null,null,null,null,null,null,null,1,null,null,0,null,null,null,null,null,"III.4 Oświetlenie"]
[121,null,null,null,null,null,null,null,null,null,1,null,null,0,null,null,null,null,null,"III.5 Sprzęt wózkarski, kran, steadycam itp. (wyszczególnienie)"]
[122,null,null,null,null,null,null,null,null,null,1,null,null,0,null,null,null,null,null,"III.6 Sprzęt dźwiękowy"]
[123,null,null,null,null,null,null,null,null,null,1,null,null,0,null,null,null,null,null,"III.7 Kasety zdjęciowe"]
[124,null,null,null,null,null,null,null,null,null,1,null,null,0,null,null,null,null,null,"III.8 Materiały oświetleniowe, folie"]
[125,null,null,null,null,null,null,null,null,null,1,null,null,0,null,null,null,null,null,"III.9 Kasety DAT"]
[126,null,null,null,null,null,null,null,null,null,1,null,null,0,null,null,null,null,null,"III.10 Materiały fotosowe"]
[127,null,null,null,null,null,null,null,null,null,1,null,null,0,null,null,null,null,null,"III.11 Dyski"]
[128,null,null,null,null,null,null,null,null,null,1,null,null,0,null,null,null,null,null,"III.12 Baterie"]
[129,null,null,null,null,null,null,null,null,null,1,null,null,0,null,null,null,null,null,"III.13 DVD"]
[130,null,null,null,null,null,null,null,null,null,1,null,null,{"$f":"K133*L133*M133","v":0},null,null,null,null,null,"IV.1 Posiłki profilaktyczne"]
[131,null,null,null,null,null,null,null,null,null,1,null,null,0,null,null,null,null,null,"IV.2 Barobus"]
[132,null,null,null,null,null,null,null,null,null,1,null,null,0,null,null,null,null,null,"IV.3 Parkowanie"]
[133,null,null,null,null,null,null,null,null,null,1,null,null,0,null,null,null,null,null,"IV.4 Opieka medyczna"]
[134,null,null,null,null,null,null,null,null,null,1,null,null,0,null,null,null,null,null,"IV.5 Zabezpieczenie kaskaderskie materiały i sprzęt"]
[135,null,null,null,null,null,null,null,null,null,1,null,null,0,null,null,null,null,null,"IV.6 Straż pożarna, policja, pomoc drogowa, MPO itp.)"]
[136,null,null,null,null,null,null,null,null,null,1,null,null,0,null,null,null,null,null,"IV.7 Pozwolenia i zgody na zajęcie terenu"]
[137,null,null,null,null,null,null,null,null,null,1,null,null,0,null,null,null,null,null,"IV.8 Administracyjna obsługa obiektów"]
[138,null,null,null,null,null,null,null,null,null,1,null,null,0,null,null,null,null,null,"IV.9 Ochrona planu"]
[139,null,null,null,null,null,null,null,null,null,1,null,null,0,null,null,null,null,null,"IV.10 Łączność"]
[140,null,null,null,null,null,null,null,null,null,1,null,null,0,null,null,null,null,null,"IV.11 Gard./make-up plenerowy"]
[141,null,null,null,null,null,null,null,null,null,1,null,null,0,null,null,null,null,null,"IV.12 Toalety plenerowe"]
[142,null,null,null,null,null,null,null,null,null,1,null,null,0,null,null,null,null,null,"IV.13 Podnośniki"]
[143,null,null,null,null,null,null,null,null,null,1,null,null,0,null,null,null,null,null,"IV.14 Energia elektryczna + podłączenia"]
[144,null,null,null,null,null,null,null,null,null,1,null,null,0,null,null,null,null,null,"IV.15 Materiały planowe (taśmy, narzędzia itp.)"]
[145,null,null,null,null,null,null,null,null,null,1,null,null,0,null,null,null,null,null,"IV.16 Środki czystości"]
[146,null,null,null,null,null,null,null,null,null,1,null,null,0,null,null,null,null,null,"IV.17 BHP - apteczka, napoje"]
[147,null,null,null,null,null,null,null,null,null,1,null,null,0,null,null,null,null,null,"IV.18 Studio castingowe"]
[148,null,null,null,null,null,null,null,null,null,1,null,null,0,null,null,null,null,null,"IV.19 Campery"]
[149,null,null,null,null,null,null,null,null,null,1,null,null,0,null,null,null,null,null,"IV.20 Agregat"]
[150,null,null,null,null,null,null,null,null,null,1,null,null,0,null,null,null,null,null,"IV.21 Paliwo do agregatu"]
[151,null,null,null,null,null,null,null,null,null,1,null,null,0,null,null,null,null,null,"V.1 Samochód produkcyjny (dokumentacje i inne )"]
[152,null,null,null,null,null,null,null,null,null,1,null,null,0,null,null,null,null,null,"V.2 Samochód rekwizytorski (kostiumograficzny)"]
[153,null,null,null,null,null,null,null,null,null,1,null,null,0,null,null,null,null,null,"V.3 Samochód budowy dekoracji"]
[154,null,null,null,null,null,null,null,null,null,1,null,null,0,null,null,null,null,null,"V.4 Taxi"]
[155,null,null,null,null,null,null,null,null,null,1,null,null,0,null,null,null,null,null,"V.5 Samochód produkcyjny "]
[156,null,null,null,null,null,null,null,null,null,1,null,null,0,null,null,null,null,null,"V.6 Busy i autobusy"]
[157,null,null,null,null,null,null,null,null,null,1,null,null,0,null,null,null,null,null,"V.7 Minibus produkcyjny"]
[158,null,null,null,null,null,null,null,null,null,1,null,null,0,null,null,null,null,null,"V.8 Inne środki transportu osób"]
[159,null,null,null,null,null,null,null,null,null,1,null,null,0,null,null,null,null,null,"V.9 Taxi"]
[160,null,null,null,null,null,null,null,null,null,1,null,null,0,null,null,null,null,null,"V.10 Samochód zdjęciowy"]
[161,null,null,null,null,null,null,null,null,null,1,null,null,0,null,null,null,null,null,"V.11 Samochód oświetleniowy"]
[162,null,null,null,null,null,null,null,null,null,1,null,null,0,null,null,null,null,null,"V.12 Samochód do przewozu wózka i kranu"]
[163,null,null,null,null,null,null,null,null,null,1,null,null,0,null,null,null,null,null,"V.13 Samochód dźwiękowy"]
[164,null,null,null,null,null,null,null,null,null,1,null,null,0,null,null,null,null,null,"V.14 Samochody rekwizytorskie"]
[165,null,null,null,null,null,null,null,null,null,1,null,null,0,null,null,null,null,null,"V.15 Samochód budowy dekoracji"]
[166,null,null,null,null,null,null,null,null,null,1,null,null,0,null,null,null,null,null,"V.16 Inne transport techniczny (specjalne)"]
[167,null,null,null,null,null,null,null,null,null,1,null,null,0,null,null,null,null,null,"V.17 Samochód pirotechników"]
[168,null,null,null,null,null,null,null,null,null,1,null,null,0,null,null,null,null,null,"V.18 "]
[169,null,null,null,null,null,null,null,null,null,1,null,null,0,null,null,null,null,null,"V.19 Samochód produkcyjny"]
[170,null,null,null,null,null,null,null,null,null,1,null,null,0,null,null,null,null,null,"V.20 Samochód rekwizytorski"]
[171,null,null,null,null,null,null,null,null,null,1,null,null,0,null,null,null,null,null,"V.21 Taxi"]
[172,null,null,null,null,null,null,null,null,null,1,null,null,0,null,null,null,null,null,"VI.1 Hotele "]
[173,null,null,null,null,null,null,null,null,null,1,null,null,0,null,null,null,null,null,"VI.2     diety"]
[174,null,null,null,null,null,null,null,null,null,1,null,null,0,null,null,null,null,null,"VI.3 Przejazdy"]
[175,null,null,null,null,null,null,null,null,null,1,null,null,0,null,null,null,null,null,"VI.4 Hotele"]
[176,null,null,null,null,null,null,null,null,null,1,null,null,0,null,null,null,null,null,"VI.5 Diety"]
[177,null,null,null,null,null,null,null,null,null,1,null,null,0,null,null,null,null,null,"VI.6 Przejazdy"]
[178,null,null,null,null,null,null,null,null,null,1,null,null,0,null,null,null,null,null,"VI.7 Hotele"]
[179,null,null,null,null,null,null,null,null,null,1,null,null,0,null,null,null,null,null,"VI.8 Diety"]
[180,null,null,null,null,null,null,null,null,null,1,null,null,0,null,null,null,null,null,"VI.9 Przejazdy"]
[181,null,null,null,null,null,null,null,null,null,1,null,null,0,null,null,null,null,null,"Vi.10 Hotele"]
[182,null,null,null,null,null,null,null,null,null,1,null,null,0,null,null,null,null,null,"VI.11 Diety"]
[183,null,null,null,null,null,null,null,null,null,1,null,null,0,null,null,null,null,null,"VI.12 Przejazdy"]
[184,null,null,null,null,null,null,null,null,null,1,null,null,0,null,null,null,null,null,"VI.13 Ryczałty samochodowe"]
[185,null,null,null,null,null,null,null,null,null,1,null,null,0,null,null,null,null,null,"VII.1 Efekty komputerowe"]
[186,null,null,null,null,null,null,null,null,null,1,null,null,0,null,null,null,null,null,"VII.2 Korekcja koloru"]
[187,null,null,null,null,null,null,null,null,null,1,null,null,0,null,null,null,null,null,"VII.3 Czołówka sprzęt i obsługa"]
[188,null,null,null,null,null,null,null,null,null,1,null,null,0,null,null,null,null,null,"VII.4 Napisy sprzęt i obsługa"]
[189,null,null,null,null,null,null,null,null,null,1,null,null,0,null,null,null,null,null,"VII.5 Materiały archiwalne - zakup praw, obróbka "]
[190,null,null,null,null,null,null,null,null,null,1,null,null,0,null,null,null,null,null,"VII.6 Przegrania, mastery"]
[191,null,null,null,null,null,null,null,null,null,1,null,null,0,null,null,null,null,null,"VII.7 Czyszczenie dysków"]
[192,null,null,null,null,null,null,null,null,null,1,null,null,0,null,null,null,null,null,"VII.8 Digitalizacja"]
[193,null,null,null,null,null,null,null,null,null,1,null,null,0,null,null,null,null,null,"VII.9 Montaż off-line"]
[194,null,null,null,null,null,null,null,null,null,1,null,null,{"$f":"K197*L197*M197","v":0},null,null,null,null,null,"VII.10 Montaż on-line-konforming"]
[195,null,null,null,null,null,null,null,null,null,1,null,null,0,null,null,null,null,null,"VII.11 Materiały - kasety montażowe, DVD, dyski, kasety emisyjne"]
[196,null,null,null,null,null,null,null,null,null,1,null,null,0,null,null,null,null,null,"VII.12 Przepisanie dźwięku do komputera"]
[197,null,null,null,null,null,null,null,null,null,1,null,null,0,null,null,null,null,null,"VII.13 Montaż  dialogów"]
[198,null,null,null,null,null,null,null,null,null,1,null,null,0,null,null,null,null,null,"VII.14 Efekty synchroniczne"]
[199,null,null,null,null,null,null,null,null,null,1,null,null,0,null,null,null,null,null,"VII.15 Efekty boczne"]
[200,null,null,null,null,null,null,null,null,null,1,null,null,0,null,null,null,null,null,"VII.16 Postsynchrony"]
[201,null,null,null,null,null,null,null,null,null,1,null,null,0,null,null,null,null,null,"VII.17 Nagranie muzyki (studio) lub fonoteka"]
[202,null,null,null,null,null,null,null,null,null,1,null,null,0,null,null,null,null,null,"VII.18 Podłożenie muzyki"]
[203,null,null,null,null,null,null,null,null,null,1,null,null,0,null,null,null,null,null,"VII.19 Zgranie "]
[204,null,null,null,null,null,null,null,null,null,1,null,null,0,null,null,null,null,null,"VII.20 Dolby E"]
[205,null,null,null,null,null,null,null,null,null,1,null,null,0,null,null,null,null,null,"VII.21 Tony międzynarodowe"]
[206,null,null,null,null,null,null,null,null,null,1,null,null,0,null,null,null,null,null,"VII.22 Prawa do utworów/licencje muzyczne"]
[207,null,null,null,null,null,null,null,null,null,1,null,null,0,null,null,null,null,null,"VII.23 Materiały - kasety/płyty DVD"]
[208,null,null,null,null,null,null,null,null,null,1,null,null,0,null,null,null,null,null,"VIII.1 Wynajem wszystkich pomieszczeń produkcyjnych (wyszczególnienie)"]
[209,null,null,null,null,null,null,null,null,null,1,null,null,0,null,null,null,null,null,"VIII.2 Telekomunikacja"]
[210,null,null,null,null,null,null,null,null,null,1,null,null,0,null,null,null,null,null,"VIII.3 Internet"]
[211,null,null,null,null,null,null,null,null,null,1,null,null,0,null,null,null,null,null,"VIII.4 Wynajem urządzeń biurowych"]
[212,null,null,null,null,null,null,null,null,null,1,null,null,0,null,null,null,null,null,"VIII.5 Ogłoszenia prasowe"]
[213,null,null,null,null,null,null,null,null,null,1,null,null,0,null,null,null,null,null,"VIII.6 Obsługa prawna"]
[214,null,null,null,null,null,null,null,null,null,1,null,null,0,null,null,null,null,null,"VIII.7 Ubezpieczenia"]
[215,null,null,null,null,null,null,null,null,null,1,null,null,0,null,null,null,null,null,"VIII.8 Usługi kurierskie"]
[216,null,null,null,null,null,null,null,null,null,1,null,null,0,null,null,null,null,null,"VIII.9 Opłaty pocztowe, bankowe"]
[217,null,null,null,null,null,null,null,null,null,1,null,null,0,null,null,null,null,null,"VIII.10 Materiały biurowe"]
[218,null,null,null,null,null,null,null,null,null,1,null,null,0,null,null,null,null,null,"VIII.11 Ksero"]
[219,null,null,null,null,null,null,null,null,null,1,null,null,0,null,null,null,null,null,"VIII.12 Pieczątki"]
[220,null,null,null,null,null,null,null,null,null,1,null,null,0,null,null,null,null,null,"VIII.13 Koszty PR "]
[221,null,null,null,null,null,null,null,null,null,1,null,null,0,null,null,null,null,null,"VIII.14 Obsługa strony internetowej"]
[222,null,null,null,null,null,null,null,null,null,1,null,null,0,null,null,null,null,null,"VIII.15 Przygotowanie zwiastunów"]
[223,null,null,null,null,null,null,null,null,null,1,null,null,0,null,null,null,null,null,"VIII.16 Przygotowanie making off"]
[224,null,null,null,null,null,null,null,null,null,1,null,null,0,null,null,null,null,null,"VIII.17 Archiwizacja materiałów"]
[225,null,null,null,null,null,null,null,null,null,1,null,null,0]
[226,null,null,null,null,null,null,null,null,null,1,null,null,0]
[227,null,null,null,null,null,null,null,null,null,1,null,null,0]
[228,null,null,null,null,null,null,null,null,null,1,null,null,0]
[229,null,null,null,null,null,null,null,null,null,1,null,null,0]
[230,null,null,null,null,null,null,null,null,null,1,null,null,0]
[231,null,null,null,null,null,null,null,null,null,1,null,null,0]
[232,null,null,null,null,null,null,null,null,null,1,null,null,0]
[233,null,null,null,null,null,null,null,null,null,1,null,null,0]
[234,null,null,null,null,null,null,null,null,null,1,null,null,0]
[235,null,null,null,null,null,null,null,null,null,1,null,null,0]
[236,null,null,null,null,null,null,null,null,null,1,null,null,0]
[237,null,null,null,null,null,null,null,null,null,1,null,null,0]
[238,null,null,null,null,null,null,null,null,null,1,null,null,0]
[239,null,null,null,null,null,null,null,null,null,1,null,null,0]
[240,null,null,null,null,null,null,null,null,null,1,null,null,0]
[241,null,null,null,null,null,null,null,null,null,1,null,null,0]
[242,null,null,null,null,null,null,null,null,null,1,null,null,0]
[243,null,null,null,null,null,null,null,null,null,1,null,null,0]
[244,null,null,null,null,null,null,null,null,null,1,null,null,0]
[245,null,null,null,null,null,null,null,null,null,1,null,null,0]
[246,null,null,null,null,null,null,null,null,null,1,null,null,0]
[247,null,null,null,null,null,null,null,null,null,1,null,null,0]
[248,null,null,null,null,null,null,null,null,null,1,null,null,0]
[249,null,null,null,null,null,null,null,null,null,1,null,null,0]
[250,null,null,null,null,null,null,null,null,null,1,null,null,0]
[251,null,null,null,null,null,null,null,null,null,1,null,null,0]
[252,null,null,null,null,null,null,null,null,null,1,null,null,0]
[253,null,null,null,null,null,null,null,null,null,1,null,null,0]
[254,null,null,null,null,null,null,null,null,null,1,null,null,0]
[255,null,null,null,null,null,null,null,null,null,1,null,null,0]
[256,null,null,null,null,null,null,null,null,null,1,null,null,0]
[257,null,null,null,null,null,null,null,null,null,1,null,null,0]
[258,null,null,null,null,null,null,null,null,null,1,null,null,{"$f":"K261*L261*M261","v":0}]
[259,null,null,null,null,null,null,null,null,null,1,null,null,0]
[260,null,null,null,null,null,null,null,null,null,1,null,null,0]
[261,null,null,null,null,null,null,null,null,null,1,null,null,0]
[262,null,null,null,null,null,null,null,null,null,1,null,null,0]
[263,null,null,null,null,null,null,null,null,null,1,null,null,0]
[264,null,null,null,null,null,null,null,null,null,1,null,null,0]
[265,null,null,null,null,null,null,null,null,null,1,null,null,0]
[266,null,null,null,null,null,null,null,null,null,1,null,null,0]
[267,null,null,null,null,null,null,null,null,null,1,null,null,0]
[268,null,null,null,null,null,null,null,null,null,1,null,null,0]
[269,null,null,null,null,null,null,null,null,null,1,null,null,0]
[270,null,null,null,null,null,null,null,null,null,1,null,null,0]
[271,null,null,null,null,null,null,null,null,null,1,null,null,0]
[272,null,null,null,null,null,null,null,null,null,1,null,null,0]
[273,null,null,null,null,null,null,null,null,null,1,null,null,0]
[274,null,null,null,null,null,null,null,null,null,1,null,null,0]
[275,null,null,null,null,null,null,null,null,null,1,null,null,0]
[276,null,null,null,null,null,null,null,null,null,1,null,null,0]
[277,null,null,null,null,null,null,null,null,null,1,null,null,0]
[278,null,null,null,null,null,null,null,null,null,1,null,null,0]
[279,null,null,null,null,null,null,null,null,null,1,null,null,0]
[280,null,null,null,null,null,null,null,null,null,1,null,null,0]
[281,null,null,null,null,null,null,null,null,null,1,null,null,0]
[282,null,null,null,null,null,null,null,null,null,1,null,null,0]
[283,null,null,null,null,null,null,null,null,null,1,null,null,0]
[284,null,null,null,null,null,null,null,null,null,1,null,null,0]
[285,null,null,null,null,null,null,null,null,null,1,null,null,0]
[286,null,null,null,null,null,null,null,null,null,1,null,null,0]
[287,null,null,null,null,null,null,null,null,null,1,null,null,0]
[288,null,null,null,null,null,null,null,null,null,1,null,null,0]
[289,null,null,null,null,null,null,null,null,null,1,null,null,0]
[290,null,null,null,null,null,null,null,null,null,1,null,null,0]
[291,null,null,null,null,null,null,null,null,null,1,null,null,0]
[292,null,null,null,null,null,null,null,null,null,1,null,null,0]
[293,null,null,null,null,null,null,null,null,null,1,null,null,0]
[294,null,null,null,null,null,null,null,null,null,1,null,null,0]
[295,null,null,null,null,null,null,null,null,null,1,null,null,0]
[296,null,null,null,null,null,null,null,null,null,1,null,null,0]
[297,null,null,null,null,null,null,null,null,null,1,null,null,0]
[298,null,null,null,null,null,null,null,null,null,1,null,null,0]
[299,null,null,null,null,null,null,null,null,null,1,null,null,0]
[300,null,null,null,null,null,null,null,null,null,1,null,null,0]
[null,null,null,null,null,null,null,null,null,null,null,null,null,{"$f":"SUM(N4:N303)","v":0}]

{"sheet":"Cost to cost","index":13,"n_rows":51,"n_cols":5,"rows_kept":51,"cut":false,"hidden":false,"merged":[[8,2,8,4],[1,2,1,4],[3,2,3,4],[4,2,4,4],[5,2,5,4],[6,2,6,4],[7,2,7,4],[2,2,2,4]]}
[]
[null,"Tytuł",{"$f":"'Podsumowanie kosztów'!C2","v":0}]
[null,"Gatunek",{"$f":"'Podsumowanie kosztów'!C3","v":0}]
[null,"Liczba odcinków",{"$f":"'Podsumowanie kosztów'!C6","v":1}]
[null,"Czas emisji",{"$f":"'Podsumowanie kosztów'!C7","v":0}]
[null,"Format obrazu i dźwięku",{"$f":"'Podsumowanie kosztów'!C8","v":0}]
[null,"Nośnik",{"$f":"'Podsumowanie kosztów'!C9","v":0}]
[null,"Liczba dni zdjęciowych",{"$f":"'Podsumowanie kosztów'!C10","v":0}]
[null,"Kontrahent",{"$f":"'Podsumowanie kosztów'!C11","v":0}]
[]
["L.p.","Kategoria wydatków","Koszty poniesione","Budżet","Pozostała kwota"]
[1,"Prace literackie",{"$f":"SUMIFS('Raport kosztów'!N4:N303,'Raport kosztów'!B4:B303,\"Prace literackie\")","v":0},{"$f":"'Podsumowanie kosztów'!D22","v":0},{"$f":"D12-C12","v":0}]
[2,"Pion reżyserski",{"$f":"SUMIFS('Raport kosztów'!N5:N304,'Raport kosztów'!B5:B304,\"Pion reżyserski\")","v":0},{"$f":"'Podsumowanie kosztów'!D23","v":0},{"$f":"D13-C13","v":0}]
[3,"Pion produkcji",{"$f":"SUMIFS('Raport kosztów'!N6:N305,'Raport kosztów'!B6:B305,\"Pion produkcji\")","v":0},{"$f":"'Podsumowanie kosztów'!D24","v":0},0]
[4,"Pion operatorski",{"$f":"SUMIFS('Raport kosztów'!N7:N306,'Raport kosztów'!B7:B306,\"Pion operatorski\")","v":0},{"$f":"'Podsumowanie kosztów'!D25","v":0},0]
[5,"Pion scenografii ",{"$f":"SUMIFS('Raport kosztów'!N8:N307,'Raport kosztów'!B8:B307,\"Pion scenografii \")","v":0},{"$f":"'Podsumowanie kosztów'!D26","v":0},0]
[6,"Pion kostiumograficzny",{"$f":"SUMIFS('Raport kosztów'!N9:N308,'Raport kosztów'!B9:B308,\"Pion kostiumograficzny\")","v":0},{"$f":"'Podsumowanie kosztów'!D27","v":0},0]
[7,"Pion charakteryzatorski",{"$f":"SUMIFS('Raport kosztów'!N10:N309,'Raport kosztów'!B10:B309,\"Pion charakteryzatorski\")","v":0},{"$f":"'Podsumowanie kosztów'!D28","v":0},0]
[8,"Pion dźwiękowy",{"$f":"SUMIFS('Raport kosztów'!N11:N310,'Raport kosztów'!B11:B310,\"Pion dźwiękowy\")","v":0},{"$f":"'Podsumowanie kosztów'!D29","v":0},0]
[9,"Wykonawcy i odtwórcy",{"$f":"SUMIFS('Raport kosztów'!N12:N311,'Raport kosztów'!B12:B311,\"Wykonawcy i odtwórcy\")","v":0},{"$f":"'Podsumowanie kosztów'!D30","v":0},0]
[10,"Konsultacje",{"$f":"SUMIFS('Raport kosztów'!N13:N312,'Raport kosztów'!B13:B312,\"Konsultacje\")","v":0},{"$f":"'Podsumowanie kosztów'!D31","v":0},0]
[11,"Muzyka",{"$f":"SUMIFS('Raport kosztów'!N14:N313,'Raport kosztów'!B14:B313,\"Muzyka\")","v":0},{"$f":"'Podsumowanie kosztów'!D32","v":0},0]
[12,"Technika zdjęciowa",{"$f":"SUMIFS('Raport kosztów'!N15:N314,'Raport kosztów'!B15:B314,\"Technika zdjęciowa\")","v":0},{"$f":"'Podsumowanie kosztów'!D33","v":0},0]
[13,"Scenografia i rekwizyty",{"$f":"SUMIFS('Raport kosztów'!N16:N315,'Raport kosztów'!B16:B315,\"Scenografia i rekwizyty\")","v":0},{"$f":"'Podsumowanie kosztów'!D34","v":0},0]
[14,"Kostiumy materiały",{"$f":"SUMIFS('Raport kosztów'!N17:N316,'Raport kosztów'!B17:B316,\"Kostiumy materiały\")","v":0},{"$f":"'Podsumowanie kosztów'!D35","v":0},0]
[15,"Charakteryzacja materiały ",{"$f":"SUMIFS('Raport kosztów'!N18:N317,'Raport kosztów'!B18:B317,\"Charakteryzacja materiały \")","v":0},{"$f":"'Podsumowanie kosztów'!D36","v":0},0]
[16,"Postprodukcja - montaż i udźwiekowienie",{"$f":"SUMIFS('Raport kosztów'!N19:N318,'Raport kosztów'!B19:B318,\"Postprodukcja - montaż i udźwiekowienie\")","v":0},{"$f":"'Podsumowanie kosztów'!D37","v":0},0]
[17,"Usługi obce ",{"$f":"SUMIFS('Raport kosztów'!N20:N319,'Raport kosztów'!B20:B319,\"Usługi obce \")","v":0},{"$f":"'Podsumowanie kosztów'!D38","v":0},0]
[18,"Koszty administracyjno - biurowe",{"$f":"SUMIFS('Raport kosztów'!N21:N320,'Raport kosztów'!B21:B320,\"Koszty administracyjno - biurowe\")","v":0},{"$f":"'Podsumowanie kosztów'!D39","v":0},0]
[19,"Transport",{"$f":"SUMIFS('Raport kosztów'!N22:N321,'Raport kosztów'!B22:B321,\"Transport\")","v":0},{"$f":"'Podsumowanie kosztów'!D40","v":0},0]
[20,"Delegacje,Hotele",{"$f":"SUMIFS('Raport kosztów'!N23:N322,'Raport kosztów'!B23:B322,\"Delegacje,Hotele\")","v":0},{"$f":"'Podsumowanie kosztów'!D44","v":0},0]
[21,"Promocja",{"$f":"SUMIFS('Raport kosztów'!N24:N323,'Raport kosztów'!B24:B323,\"Promocja\")","v":0},{"$f":"'Podsumowanie kosztów'!D49","v":0},0]
[22,"Inne zlecenia",{"$f":"SUMIFS('Raport kosztów'!N25:N324,'Raport kosztów'!B25:B324,\"Inne zlecenia\")","v":0},{"$f":"'Podsumowanie kosztów'!D50","v":0},0]
[null,"SUMA:",{"$f":"SUM(C12:C33)","v":0},{"$f":"SUM(D12:D33)","v":0},{"$f":"SUM(E12:E33)","v":0}]
[]
["A","RAZEM KOSZTY BEZPOŚREDNIE ",{"$f":"C34","v":0},{"$f":"D34","v":0},{"$f":"D36-C36","v":0}]
[null,"Średni koszt bezpośredni 1 odcinka",{"$f":"C36/C4","v":0},{"$f":"D36/C4","v":0},{"$f":"D37-C37","v":0}]
[null,"Narzut X%",{"$f":"'Podsumowanie kosztów'!$D$53","v":0},{"$f":"'Podsumowanie kosztów'!$D$53","v":0}]
["B","Narzut ",{"$f":"C36*C38","v":0},{"$f":"D36*D38","v":0},{"$f":"D39-C39","v":0}]
[]
["C=A+B","Razem koszty",{"$f":"C36+C39","v":0},{"$f":"D36+D39","v":0},{"$f":"D41-C41","v":0}]
[]
[null,"Zysk X%",{"$f":"'Podsumowanie kosztów'!$D$58","v":0},{"$f":"'Podsumowanie kosztów'!$D$58","v":0}]
["D","Zysk ",{"$f":"C41*C43","v":0},{"$f":"D41*D43","v":0},{"$f":"D44-C44","v":0}]
[]
["E=C+D","Razem koszty netto",{"$f":"C41+C44","v":0},{"$f":"D41+D44","v":0},{"$f":"D46-C46","v":0}]
[null,"Średni koszt 1 odcinka po narzutach i zysku",{"$f":"C46/$C$4","v":0},{"$f":"D46/$C$4","v":0},{"$f":"E46/$C$4","v":0}]
[]
["F","Podatek VAT 23%",{"$f":"C46*0.23","v":0},{"$f":"D46*0.23","v":0},{"$f":"D49-C49","v":0}]
[]
["G=E+F","Koszt brutto",{"$f":"C46+C49","v":0},{"$f":"D46+D49","v":0},{"$f":"D51-C51","v":0}]

{"sheet":"Notatnik","index":14,"n_rows":0,"n_cols":0,"rows_kept":0,"cut":false,"hidden":false,"merged":[]}

{"sheet":"check szczeg","index":15,"n_rows":0,"n_cols":0,"rows_kept":0,"cut":false,"hidden":true,"merged":[]}

{"sheet":"check pods","index":16,"n_rows":0,"n_cols":0,"rows_kept":0,"cut":false,"hidden":true,"merged":[]}

{"sheet":"check uruch","index":17,"n_rows":0,"n_cols":0,"rows_kept":0,"cut":false,"hidden":true,"merged":[]}

{"sheet":"check zmian szczeg","index":18,"n_rows":0,"n_cols":0,"rows_kept":0,"cut":false,"hidden":true,"merged":[]}